Workbook

Sheet Introduction
B2: Lease Simulation Tool - Version 12.10.20 beta
B3: Gregg Ibendahl and Dan O'brien
B5: This tool is desiged to evaluate cash, share, and flex leases when the crops prices and yields are uncertain. A Monte Carlo simulation is used to vary yields and prices.
B7: How to use
B8: Budget Tab The Budgets tab is where the crops to be grown are incorporated into the profitability analysis. The "Hide / Show all comments" will turn on all the cell comments. These provide the basic overview of how the program works. At the top middle part of the budget page is where the crops to be grown are entered. These cells function as a drop down list. Once you click within the cell, a triangle will appear to the right of the cell. By clicking on this triangle, the list of available budgets will appear. To the left of the budgets is where the user enters the number of crop acres. As part of the acres, the number of fallow acres and the number of double crop acres are needed. These last two numbers are needed to calculate the number of tillable acres. The checkboxes in the upper left hand corner of the budget page can be used to turn a crop on or off. These can be useful to quickly see the effect of a single crop on the analysis. However, when using the simulaiton analysis, all the crops shown in the middle section should be used. Otherwise the correlation matrix may not function correctly. Column C is where the share percentages are entered. If these are left blank, the program assumes that the tenant pays 100%. For the program to adjust these through the share estimate percent, enter something other than a number between 0 and 100. For example, entering an * makes it easy to see that these items are to be adjusted though the share calculation. Cell Z7 is where the share estimation percent is used. The value entered here is then used to calcualte those cells in column C that were not hard coded to a value within the range of 0 to 100. That is if an * was entered in column C, that astrisk would be replaced by the number entered into cell Z7. Excel wil calculate the equitable share percentage. This number shows the tenant's contribution toward all costs that are not shared. Included in the total cost calculation of costs that are not shared is a charge to land. For the equitable share calculation, the cash rent is used as a proxy for a land charge. In effect, this number represents both a charge to borrowed capital and a landowners equity in the land. The equitable share percentage does NOT mean that a tenant and landowner earn the same dollar amout per acre. Differences in the contribution amounts results in different amounts of net $ returns. Note that in the $ return to the landowner on row 63, there is no charge against the land included. The % return to the landlord does include the cash rent as a land charge. Including a land charge for the landlord in the $ of net returns would always result in the landlord earning a negative net return on a cash lease. Thus, to help facilitate comparisons between cash and share leases for the landlord, the landcharge was left off the $ return row. However, the % return for the landlord left in the cash rent as a land charge so that it would match how the equitable share lease was calculated. This has the effect of causing the % return to the landlord for a cash lease to always be negative. Flex Leases Tab The flex lease tab is where the information needed to analyze a flex lease is entered. Because a flex lease is difficult to analyze with just a single set of yields and prices, a Monte Carlo simulaiton is used. A triangluar distribution is used for yields and prices. Thus, the user needs to enter an estimate of the maximum and minium expected price and yield for each crop to be grown on the land. To make the analysis more accurate, the correlation between the yields and prices for th crop mix must also be entered. The bottom section is where information about the flex leases is entered. There are currently 2 major types of flex leases available - flex on prices and flex on yields. For both of these, either a base price or a base yield is needed. The flex part comes from either the final yield or price as the ratio of the yield or price to the base yield or price determines the flex. To see how varying yields and prices affect not only the flex leases but also the cash and share lease, click on the "Run Simulation" button. This normally takes 15 to 30 seconds to run. Closing all other spreadsheets will speed up the calculations. When clicking on the button, it may look like nothing happened but in the lower left corner of the spreadsheet (in the green bar) is a message that says "Please be patient". Excel will present a message box when the simulation has finished running. Output Tab The output tab is where the results are presented Limitations The tool correctly accounts for correlation when running the simulations. However, only triangular distributions are used in the analysis. Only a 200 run simulation is used. Flex lease types are limited to one price flex and one yield flex. Expenses are not adjusted as yields and prices change in the simulation. Some of these limitations will be addressed in future versions of this tool. Additional Documentation All of the tabs have a "Hide / Show all comments" that have more explanations of how the tool works
B31: all results generated by this spreadsheet are offered without any form of warranty, not even for merchantability or fitness for any particular purpose. The user accpets full responsibility for any and all decisions made using the numbers generated from this spreadsheet.
B33: Copyright of Excel macros © 2019 [Gregg Ibendahl]. All Rights Reserved.

Sheet Sheet1 (hidden)
B1: Crop
B2: Yield
B3: Price
B4: Should be other but the budget pages don't have this on the test sheet - be sure to adjust budgets for next year
B5: Direct Exp
A6: Seeds | C6: Seeds
A7: Fertilizers less lime | C7: Fertilizer (less lime)
A8: Lime | C8: --Lime
A9: Burndown | C9: Herbicides-Burndown
A10: Pre-emergence | C10: Herbicides-Preemergence
A11: Post-emergence | C11: Herbicides-Postemergence
A12: plant | C12: --Planting
A13: fertapp | C13: --Fertilizer App
A14: till | C14: --Tillage
A15: spray | C15: --Spraying
A16: Harvesting | C16: --Harvesting
A17: Hauling | C17: --Hauling
A18: Drying | C18: --Drying
A19: Custom Fld Ops less Harvest and Haul | C19: Custom Fld Ops less Harvest, Haul, and Drying
A20: Crop insurance | C20: Crop insurance
A21: Labor (beyond custom field operations) | C21: Extra labor
A22: Miscellaneous | C22: Miscellaneous
A23: Natural Gas | C23: Irrigation fuel
A24: Repair & Maintenance | C24: Irrigation repair and maintenance
C25: Other direct exp
A26: Interest on operating capital | C26: Interest on direct expenses
B27: Fixed expenses
A28: Depreciation | C28: Depreciation on irrigation equipment
A29: Interest on durable equipment | C29: Interest on irrigation equipment
C30: Cash rent

Sheet Sheet2 (hidden)
B1: test of converting to Excel version-26_extra
B2: [test of converting to Excel version-26_extra.xlsm]BUDGET'!$K$21
B5: =(LEFT(CELL("filename"),FIND("[",CELL("filename"))-1)) -> https://d.docs.live.net/796bb202c3f22606/EagleFiler/Files/Extension/Budgets/
A7: 1 | B7: =E9=B5 & INDIRECT("[" & B$1 & ".xlsm]Test!A" & $A7) -> 
A8: 2 | B8: =INDIRECT("'[" & B$1 & ".xlsm]Test'!A" & $A8) -> 
A9: 3
A10: 4
A11: 5
A12: 6
A13: 7
A14: 8
A15: 9
A16: 10
A17: 11
A18: 12
A19: 13
A20: 14
A21: 15
A22: 16
A23: 17
A24: 18
A25: 19
A26: 20
A27: 21
A28: 22
A29: 23
A30: 24
A31: 25
A32: 26
A33: 27
A34: 28
A35: 29
A36: 30
A37: 31
A38: 32
A39: 33
A40: 34
A41: 35
A42: 36
A43: 37
A44: 38
A45: 39

Sheet Budgets
A1: 2
B2: Budget date | D2: Nov-08-2018 | M2: The simulation will run faster if all other spreadsheets are closed
T3: Interest rate for budgets | W3: 0.06 | Y3: Equitable Crop Share % | AA3: ='Calculations '!U120 -> 0.6847652116 | AB3: (tenant's share)
B4: Use | C4: # of acres grown
C5: 1 | E5: Wheat - North Central KS_Rotation | Z5: Crop Share % to Use
E6: None | T6: On a cash lease | Z6: 0.68
E7: None | T7: does landlord
E8: None
E9: None
C10: 0 | E10: Number of fallow acres | T10: - - - - - - - - - - C A S H L E A S E - - - - - - - - - - | Z10: - - - - - S H A R E L E A S E - - - - -
E11: Number of acres that are double-cropped | K11: s | T11: Cash Lease | U11: - - - Tenant - - - | W11: Landlord | Z11: Share Lease - per tillable acre
B12: Total | C12: =IFERROR('Calculations '!L66 & " Crop acres and " & 'Calculations '!L67 & " tillable acres", "") -> 1 Crop acres and 1 tillable acres | H12: =IFERROR('Data from budgets'!C8,"") -> 0 | K12: =IFERROR('Data from budgets'!D8,"") -> 0 | N12: =IFERROR('Data from budgets'!E8,"") -> 0 | Q12: =IFERROR('Data from budgets'!F8,"") -> 0 | T12: Totals | U12: per planted | V12: per tillable | W12: per tillable | Z12: Tenant | AA12: Landlord
E13: =IFERROR('Data from budgets'!B8,"") -> 1 | H13: =IFERROR('Data from budgets'!C8,"") -> 0 | K13: =IFERROR('Data from budgets'!D8,"") -> 0 | N13: =IFERROR('Data from budgets'!E8,"") -> 0 | Q13: =IFERROR('Data from budgets'!F8,"") -> 0 | U13: acre | V13: acre | W13: acre
E14: Budget | F14: Override | H14: Budget | I14: Override | K14: Budget | L14: Override | N14: Budget | O14: Override | Q14: Budget | R14: Override
A15: Crop | C15: Tenant % | E15: =IFERROR('Data from budgets'!B10,"") -> Wheat - North Central KS_Rotation | H15: =IFERROR('Data from budgets'!C10,"") ->  | K15: =IFERROR('Data from budgets'!D10,"") ->  | N15: =IFERROR('Data from budgets'!E10,"") ->  | Q15: =IFERROR('Data from budgets'!F10,"") ->  | T15: Totals - Tenant & Landlord | U15: Per Acre Planted | V15: Per Acre Tillable | W15: Per Acre Tillable | Y15: % Tenant | Z15: $ Tenant | AA15: $ Landlord
A16: Yield | C16: * | E16: =IFERROR('Data from budgets'!B11,"") -> 50 | H16: =IFERROR('Data from budgets'!C11,"") ->  | K16: =IFERROR('Data from budgets'!D11,"") ->  | N16: =IFERROR('Data from budgets'!E11,"") ->  | Q16: =IFERROR('Data from budgets'!F11,"") -> 
A17: Price | E17: =IFERROR('Data from budgets'!B12,"") -> 5.5 | H17: =IFERROR('Data from budgets'!C12,"") ->  | K17: =IFERROR('Data from budgets'!D12,"") ->  | N17: =IFERROR('Data from budgets'!E12,"") ->  | Q17: =IFERROR('Data from budgets'!F12,"") ->  | T17: =IFERROR('Calculations '!L71,"") -> 275 | U17: =IFERROR('Calculations '!M71,"") -> 275 | V17: =IFERROR('Calculations '!N71,"") -> 275 | Y17: ='Calculations '!C70 -> 0.68 | Z17: =IFERROR('Calculations '!P71,"") -> 187 | AA17: =IFERROR('Calculations '!Q71,"") -> 88
A18: Other income | C18: * | E18: =IFERROR('Data from budgets'!B13,"") -> 0 | H18: =IFERROR('Data from budgets'!C13,"") ->  | K18: =IFERROR('Data from budgets'!D13,"") ->  | N18: =IFERROR('Data from budgets'!E13,"") ->  | Q18: =IFERROR('Data from budgets'!F13,"") ->  | T18: =IFERROR('Calculations '!L72,"") -> 0 | U18: =IFERROR('Calculations '!M72,"") -> 0 | V18: =IFERROR('Calculations '!N72,"") -> 0 | Y18: ='Calculations '!C72 -> 0.68 | Z18: =IFERROR('Calculations '!P72,"") -> 0 | AA18: =IFERROR('Calculations '!Q72,"") -> 0
B19: <Total Revenue> | E19: =IFERROR('Calculations '!D8,"") -> 275 | H19: =IFERROR('Calculations '!G8,"") ->  | K19: =IFERROR('Calculations '!J8,"") ->  | N19: =IFERROR('Calculations '!M8,"") ->  | Q19: =IFERROR('Calculations '!P8,"") ->  | T19: =IFERROR('Calculations '!L73,"") -> 275 | U19: =IFERROR('Calculations '!M73,"") -> 275 | V19: =IFERROR('Calculations '!N73,"") -> 275 | W19: =V58 -> 50 | Z19: =IFERROR('Calculations '!P73,"") -> 187 | AA19: =IFERROR('Calculations '!Q73,"") -> 88
A21: Variable expenses
B22: Seeds | C22: * | E22: =IFERROR('Data from budgets'!B17,"") -> 24.75 | H22: =IFERROR('Data from budgets'!C17,"") ->  | K22: =IFERROR('Data from budgets'!D17,"") ->  | N22: =IFERROR('Data from budgets'!E17,"") ->  | Q22: =IFERROR('Data from budgets'!F17,"") ->  | T22: =IFERROR('Calculations '!L76,"") -> 24.75 | U22: =IFERROR('Calculations '!M76,"") -> 24.75 | V22: =IFERROR('Calculations '!N76,"") -> 24.75 | Y22: ='Calculations '!C76 -> 0.68 | Z22: =IFERROR('Calculations '!P76,"") -> 16.83 | AA22: =IFERROR('Calculations '!Q76,"") -> 7.92
B23: Fertilizer (less lime) | C23: * | E23: =IFERROR('Data from budgets'!B18,"") -> 45.0725 | H23: =IFERROR('Data from budgets'!C18,"") ->  | K23: =IFERROR('Data from budgets'!D18,"") ->  | N23: =IFERROR('Data from budgets'!E18,"") ->  | Q23: =IFERROR('Data from budgets'!F18,"") ->  | T23: =IFERROR('Calculations '!L77,"") -> 45.0725 | U23: =IFERROR('Calculations '!M77,"") -> 45.0725 | V23: =IFERROR('Calculations '!N77,"") -> 45.0725 | Y23: ='Calculations '!C77 -> 0.68 | Z23: =IFERROR('Calculations '!P77,"") -> 30.6493 | AA23: =IFERROR('Calculations '!Q77,"") -> 14.4232
B24: --Lime | C24: 0 | E24: =IFERROR('Data from budgets'!B19,"") -> 0 | H24: =IFERROR('Data from budgets'!C19,"") ->  | K24: =IFERROR('Data from budgets'!D19,"") ->  | N24: =IFERROR('Data from budgets'!E19,"") ->  | Q24: =IFERROR('Data from budgets'!F19,"") ->  | T24: =IFERROR('Calculations '!L78,"") -> 0 | U24: =IFERROR('Calculations '!M78,"") -> 0 | V24: =IFERROR('Calculations '!N78,"") -> 0 | W24: ='Calculations '!O78 -> 0 | Y24: ='Calculations '!C78 -> 0 | Z24: =IFERROR('Calculations '!P78,"") -> 0 | AA24: =IFERROR('Calculations '!Q78,"") -> 0
B25: Herbicides | C25: * | E25: =IFERROR('Data from budgets'!B20,"") -> 4.95 | H25: =IFERROR('Data from budgets'!C20,"") ->  | K25: =IFERROR('Data from budgets'!D20,"") ->  | N25: =IFERROR('Data from budgets'!E20,"") ->  | Q25: =IFERROR('Data from budgets'!F20,"") ->  | T25: =IFERROR('Calculations '!L79,"") -> 4.95 | U25: =IFERROR('Calculations '!M79,"") -> 4.95 | V25: =IFERROR('Calculations '!N79,"") -> 4.95 | Y25: ='Calculations '!C79 -> 0.68 | Z25: =IFERROR('Calculations '!P79,"") -> 3.366 | AA25: =IFERROR('Calculations '!Q79,"") -> 1.584
B26: Fungicides | E26: =IFERROR('Data from budgets'!B21,"") -> 21.1875 | H26: =IFERROR('Data from budgets'!C21,"") ->  | K26: =IFERROR('Data from budgets'!D21,"") ->  | N26: =IFERROR('Data from budgets'!E21,"") ->  | Q26: =IFERROR('Data from budgets'!F21,"") ->  | T26: =IFERROR('Calculations '!L80,"") -> 21.1875 | U26: =IFERROR('Calculations '!M80,"") -> 21.1875 | V26: =IFERROR('Calculations '!N80,"") -> 21.1875 | Y26: ='Calculations '!C80 -> 1 | Z26: =IFERROR('Calculations '!P80,"") -> 21.1875 | AA26: =IFERROR('Calculations '!Q80,"") -> 0
B27: Insecticides | E27: =IFERROR('Data from budgets'!B22,"") -> 0 | H27: =IFERROR('Data from budgets'!C22,"") ->  | K27: =IFERROR('Data from budgets'!D22,"") ->  | N27: =IFERROR('Data from budgets'!E22,"") ->  | Q27: =IFERROR('Data from budgets'!F22,"") ->  | T27: =IFERROR('Calculations '!L81,"") -> 0 | U27: =IFERROR('Calculations '!M81,"") -> 0 | V27: =IFERROR('Calculations '!N81,"") -> 0 | Y27: ='Calculations '!C81 -> 1 | Z27: =IFERROR('Calculations '!P81,"") -> 0 | AA27: =IFERROR('Calculations '!Q81,"") -> 0
B28: Crop consulting | E28: =IFERROR('Data from budgets'!B23,"") -> 0 | H28: =IFERROR('Data from budgets'!C23,"") ->  | K28: =IFERROR('Data from budgets'!D23,"") ->  | N28: =IFERROR('Data from budgets'!E23,"") ->  | Q28: =IFERROR('Data from budgets'!F23,"") ->  | T28: =IFERROR('Calculations '!L82,"") -> 0 | U28: =IFERROR('Calculations '!M82,"") -> 0 | V28: =IFERROR('Calculations '!N82,"") -> 0 | Y28: ='Calculations '!C82 -> 1 | Z28: =IFERROR('Calculations '!P82,"") -> 0 | AA28: =IFERROR('Calculations '!Q82,"") -> 0
B29: Crop insurance | E29: =IFERROR('Data from budgets'!B24,"") -> 9.912 | H29: =IFERROR('Data from budgets'!C24,"") ->  | K29: =IFERROR('Data from budgets'!D24,"") ->  | N29: =IFERROR('Data from budgets'!E24,"") ->  | Q29: =IFERROR('Data from budgets'!F24,"") ->  | T29: =IFERROR('Calculations '!L83,"") -> 9.912 | U29: =IFERROR('Calculations '!M83,"") -> 9.912 | V29: =IFERROR('Calculations '!N83,"") -> 9.912 | Y29: ='Calculations '!C83 -> 1 | Z29: =IFERROR('Calculations '!P83,"") -> 9.912 | AA29: =IFERROR('Calculations '!Q83,"") -> 0
B30: Miscellaneous | E30: =IFERROR('Data from budgets'!B25,"") -> 6.5 | H30: =IFERROR('Data from budgets'!C25,"") ->  | K30: =IFERROR('Data from budgets'!D25,"") ->  | N30: =IFERROR('Data from budgets'!E25,"") ->  | Q30: =IFERROR('Data from budgets'!F25,"") ->  | T30: =IFERROR('Calculations '!L84,"") -> 6.5 | U30: =IFERROR('Calculations '!M84,"") -> 6.5 | V30: =IFERROR('Calculations '!N84,"") -> 6.5 | Y30: ='Calculations '!C84 -> 1 | Z30: =IFERROR('Calculations '!P84,"") -> 6.5 | AA30: =IFERROR('Calculations '!Q84,"") -> 0
B31: Surfactant | E31: =IFERROR('Data from budgets'!B26,"") -> 0 | H31: =IFERROR('Data from budgets'!C26,"") ->  | K31: =IFERROR('Data from budgets'!D26,"") ->  | N31: =IFERROR('Data from budgets'!E26,"") ->  | Q31: =IFERROR('Data from budgets'!F26,"") ->  | T31: =IFERROR('Calculations '!L85,"") -> 0 | U31: =IFERROR('Calculations '!M85,"") -> 0 | V31: =IFERROR('Calculations '!N85,"") -> 0 | Y31: ='Calculations '!C85 -> 1 | Z31: =IFERROR('Calculations '!P85,"") -> 0 | AA31: =IFERROR('Calculations '!Q85,"") -> 0
B32: Other inputs | E32: =IFERROR('Data from budgets'!B27,"") -> 0 | H32: =IFERROR('Data from budgets'!C27,"") ->  | K32: =IFERROR('Data from budgets'!D27,"") ->  | N32: =IFERROR('Data from budgets'!E27,"") ->  | Q32: =IFERROR('Data from budgets'!F27,"") ->  | T32: =IFERROR('Calculations '!L86,"") -> 0 | U32: =IFERROR('Calculations '!M86,"") -> 0 | V32: =IFERROR('Calculations '!N86,"") -> 0 | Y32: ='Calculations '!C86 -> 1 | Z32: =IFERROR('Calculations '!P86,"") -> 0 | AA32: =IFERROR('Calculations '!Q86,"") -> 0
B33: MACHINERY
B34: --fertilizer application | E34: =IFERROR('Data from budgets'!B29,"") -> 2.676079018 | H34: =IFERROR('Data from budgets'!C29,"") ->  | K34: =IFERROR('Data from budgets'!D29,"") ->  | N34: =IFERROR('Data from budgets'!E29,"") ->  | Q34: =IFERROR('Data from budgets'!F29,"") ->  | T34: =IFERROR('Calculations '!L88,"") -> 2.676079018 | U34: =IFERROR('Calculations '!M88,"") -> 2.676079018 | V34: =IFERROR('Calculations '!N88,"") -> 2.676079018 | Y34: ='Calculations '!C88 -> 1 | Z34: =IFERROR('Calculations '!P88,"") -> 2.676079018 | AA34: =IFERROR('Calculations '!Q88,"") -> 0
B35: --harvesting | E35: =IFERROR('Data from budgets'!B30,"") -> 9.779783282 | H35: =IFERROR('Data from budgets'!C30,"") ->  | K35: =IFERROR('Data from budgets'!D30,"") ->  | N35: =IFERROR('Data from budgets'!E30,"") ->  | Q35: =IFERROR('Data from budgets'!F30,"") ->  | T35: =IFERROR('Calculations '!L89,"") -> 9.779783282 | U35: =IFERROR('Calculations '!M89,"") -> 9.779783282 | V35: =IFERROR('Calculations '!N89,"") -> 9.779783282 | Y35: ='Calculations '!C89 -> 1 | Z35: =IFERROR('Calculations '!P89,"") -> 9.779783282 | AA35: =IFERROR('Calculations '!Q89,"") -> 0
B36: --hauling | E36: =IFERROR('Data from budgets'!B31,"") -> 5.559038134 | H36: =IFERROR('Data from budgets'!C31,"") ->  | K36: =IFERROR('Data from budgets'!D31,"") ->  | N36: =IFERROR('Data from budgets'!E31,"") ->  | Q36: =IFERROR('Data from budgets'!F31,"") ->  | T36: =IFERROR('Calculations '!L90,"") -> 5.559038134 | U36: =IFERROR('Calculations '!M90,"") -> 5.559038134 | V36: =IFERROR('Calculations '!N90,"") -> 5.559038134 | Y36: ='Calculations '!C90 -> 1 | Z36: =IFERROR('Calculations '!P90,"") -> 5.559038134 | AA36: =IFERROR('Calculations '!Q90,"") -> 0
B37: --miscellaneous | E37: =IFERROR('Data from budgets'!B32,"") -> 0 | H37: =IFERROR('Data from budgets'!C32,"") ->  | K37: =IFERROR('Data from budgets'!D32,"") ->  | N37: =IFERROR('Data from budgets'!E32,"") ->  | Q37: =IFERROR('Data from budgets'!F32,"") ->  | T37: =IFERROR('Calculations '!L91,"") -> 0 | U37: =IFERROR('Calculations '!M91,"") -> 0 | V37: =IFERROR('Calculations '!N91,"") -> 0 | Y37: ='Calculations '!C91 -> 1 | Z37: =IFERROR('Calculations '!P91,"") -> 0 | AA37: =IFERROR('Calculations '!Q91,"") -> 0
B38: --planting | E38: =IFERROR('Data from budgets'!B33,"") -> 7.647875223 | H38: =IFERROR('Data from budgets'!C33,"") ->  | K38: =IFERROR('Data from budgets'!D33,"") ->  | N38: =IFERROR('Data from budgets'!E33,"") ->  | Q38: =IFERROR('Data from budgets'!F33,"") ->  | T38: =IFERROR('Calculations '!L92,"") -> 7.647875223 | U38: =IFERROR('Calculations '!M92,"") -> 7.647875223 | V38: =IFERROR('Calculations '!N92,"") -> 7.647875223 | Y38: ='Calculations '!C92 -> 1 | Z38: =IFERROR('Calculations '!P92,"") -> 7.647875223 | AA38: =IFERROR('Calculations '!Q92,"") -> 0
B39: --spraying | E39: =IFERROR('Data from budgets'!B34,"") -> 3.353747692 | H39: =IFERROR('Data from budgets'!C34,"") ->  | K39: =IFERROR('Data from budgets'!D34,"") ->  | N39: =IFERROR('Data from budgets'!E34,"") ->  | Q39: =IFERROR('Data from budgets'!F34,"") ->  | T39: =IFERROR('Calculations '!L93,"") -> 3.353747692 | U39: =IFERROR('Calculations '!M93,"") -> 3.353747692 | V39: =IFERROR('Calculations '!N93,"") -> 3.353747692 | Y39: ='Calculations '!C93 -> 1 | Z39: =IFERROR('Calculations '!P93,"") -> 3.353747692 | AA39: =IFERROR('Calculations '!Q93,"") -> 0
B40: --tillage | E40: =IFERROR('Data from budgets'!B35,"") -> 0 | H40: =IFERROR('Data from budgets'!C35,"") ->  | K40: =IFERROR('Data from budgets'!D35,"") ->  | N40: =IFERROR('Data from budgets'!E35,"") ->  | Q40: =IFERROR('Data from budgets'!F35,"") ->  | T40: =IFERROR('Calculations '!L94,"") -> 0 | U40: =IFERROR('Calculations '!M94,"") -> 0 | V40: =IFERROR('Calculations '!N94,"") -> 0 | Y40: ='Calculations '!C94 -> 1 | Z40: =IFERROR('Calculations '!P94,"") -> 0 | AA40: =IFERROR('Calculations '!Q94,"") -> 0
B41: --other | E41: =IFERROR('Data from budgets'!B36,"") -> 0 | H41: =IFERROR('Data from budgets'!C36,"") ->  | K41: =IFERROR('Data from budgets'!D36,"") ->  | N41: =IFERROR('Data from budgets'!E36,"") ->  | Q41: =IFERROR('Data from budgets'!F36,"") ->  | T41: =IFERROR('Calculations '!L95,"") -> 0 | U41: =IFERROR('Calculations '!M95,"") -> 0 | V41: =IFERROR('Calculations '!N95,"") -> 0 | Y41: ='Calculations '!C95 -> 1 | Z41: =IFERROR('Calculations '!P95,"") -> 0 | AA41: =IFERROR('Calculations '!Q95,"") -> 0
B42: --custom operations | E42: =IFERROR('Data from budgets'!B37,"") -> 0 | H42: =IFERROR('Data from budgets'!C37,"") ->  | K42: =IFERROR('Data from budgets'!D37,"") ->  | N42: =IFERROR('Data from budgets'!E37,"") ->  | Q42: =IFERROR('Data from budgets'!F37,"") ->  | T42: =IFERROR('Calculations '!L96,"") -> 0 | U42: =IFERROR('Calculations '!M96,"") -> 0 | V42: =IFERROR('Calculations '!N96,"") -> 0 | Y42: ='Calculations '!C96 -> 1
B43: Irrigation | E43: =IFERROR('Data from budgets'!B38,"") -> 0 | H43: =IFERROR('Data from budgets'!C38,"") ->  | K43: =IFERROR('Data from budgets'!D38,"") ->  | N43: =IFERROR('Data from budgets'!E38,"") ->  | Q43: =IFERROR('Data from budgets'!F38,"") ->  | T43: =IFERROR('Calculations '!L97,"") -> 0 | U43: =IFERROR('Calculations '!M97,"") -> 0 | V43: =IFERROR('Calculations '!N97,"") -> 0 | Y43: ='Calculations '!C97 -> 1 | Z43: =IFERROR('Calculations '!P97,"") -> 0 | AA43: =IFERROR('Calculations '!Q97,"") -> 0
B44: Interest on direct expenses | C44: * | E44: =IFERROR('Calculations '!B33,"") -> 4.2416557 | H44: =IFERROR('Calculations '!E33,"") -> 0 | K44: =IFERROR('Calculations '!H33,"") -> 0 | N44: =IFERROR('Calculations '!K33,"") -> 0 | Q44: =IFERROR('Calculations '!N33,"") -> 0 | T44: =IFERROR('Calculations '!L98,"") -> 4.2416557 | U44: =IFERROR('Calculations '!M98,"") -> 4.2416557 | V44: =IFERROR('Calculations '!N98,"") -> 4.2416557 | W44: =IFERROR('Calculations '!O98,"") -> 0 | Y44: ='Calculations '!C98 -> 0.68 | Z44: =IFERROR('Calculations '!P98,"") -> 3.5238397 | AA44: =IFERROR('Calculations '!Q98,"") -> 0.717816
B45: <Total Direct Expenses> | E45: =IFERROR('Calculations '!D53,"") -> 145.630179 | H45: =IFERROR('Calculations '!G53,"") -> 0 | K45: =IFERROR('Calculations '!J53,"") -> 0 | N45: =IFERROR('Calculations '!M53,"") -> 0 | Q45: =IFERROR('Calculations '!P53,"") -> 0 | T45: =IFERROR('Calculations '!L99,"") -> 145.630179 | U45: =IFERROR('Calculations '!M99,"") -> 145.630179 | V45: =IFERROR('Calculations '!N99,"") -> 145.630179 | W45: ='Calculations '!O99 -> 0 | Z45: =IFERROR('Calculations '!P99,"") -> 120.985163 | AA45: =IFERROR('Calculations '!Q99,"") -> 24.645016
A47: Fixed expenses
B48: MACHINERY
B49: --fertilizer application | E49: =IFERROR('Data from budgets'!B44,"") -> 2.46576207 | H49: =IFERROR('Data from budgets'!C44,"") ->  | K49: =IFERROR('Data from budgets'!D44,"") ->  | N49: =IFERROR('Data from budgets'!E44,"") ->  | Q49: =IFERROR('Data from budgets'!F44,"") ->  | T49: =IFERROR('Calculations '!L103,"") -> 2.46576207 | U49: =IFERROR('Calculations '!M103,"") -> 2.46576207 | V49: =IFERROR('Calculations '!N103,"") -> 2.46576207 | Y49: ='Calculations '!C103 -> 1 | Z49: =IFERROR('Calculations '!P103,"") -> 2.46576207 | AA49: =IFERROR('Calculations '!Q103,"") -> 0
B50: --harvesting | E50: =IFERROR('Data from budgets'!B45,"") -> 18.94833468 | H50: =IFERROR('Data from budgets'!C45,"") ->  | K50: =IFERROR('Data from budgets'!D45,"") ->  | N50: =IFERROR('Data from budgets'!E45,"") ->  | Q50: =IFERROR('Data from budgets'!F45,"") ->  | T50: =IFERROR('Calculations '!L104,"") -> 18.94833468 | U50: =IFERROR('Calculations '!M104,"") -> 18.94833468 | V50: =IFERROR('Calculations '!N104,"") -> 18.94833468 | Y50: ='Calculations '!C104 -> 1 | Z50: =IFERROR('Calculations '!P104,"") -> 18.94833468 | AA50: =IFERROR('Calculations '!Q104,"") -> 0
B51: --hauling | E51: =IFERROR('Data from budgets'!B46,"") -> 6.369716955 | H51: =IFERROR('Data from budgets'!C46,"") ->  | K51: =IFERROR('Data from budgets'!D46,"") ->  | N51: =IFERROR('Data from budgets'!E46,"") ->  | Q51: =IFERROR('Data from budgets'!F46,"") ->  | T51: =IFERROR('Calculations '!L105,"") -> 6.369716955 | U51: =IFERROR('Calculations '!M105,"") -> 6.369716955 | V51: =IFERROR('Calculations '!N105,"") -> 6.369716955 | Y51: ='Calculations '!C105 -> 1 | Z51: =IFERROR('Calculations '!P105,"") -> 6.369716955 | AA51: =IFERROR('Calculations '!Q105,"") -> 0
B52: --miscellaneous | E52: =IFERROR('Data from budgets'!B47,"") -> 0 | H52: =IFERROR('Data from budgets'!C47,"") ->  | K52: =IFERROR('Data from budgets'!D47,"") ->  | N52: =IFERROR('Data from budgets'!E47,"") ->  | Q52: =IFERROR('Data from budgets'!F47,"") ->  | T52: =IFERROR('Calculations '!L106,"") -> 0 | U52: =IFERROR('Calculations '!M106,"") -> 0 | V52: =IFERROR('Calculations '!N106,"") -> 0 | Y52: ='Calculations '!C106 -> 1 | Z52: =IFERROR('Calculations '!P106,"") -> 0 | AA52: =IFERROR('Calculations '!Q106,"") -> 0
B53: --planting | E53: =IFERROR('Data from budgets'!B48,"") -> 8.652221877 | H53: =IFERROR('Data from budgets'!C48,"") ->  | K53: =IFERROR('Data from budgets'!D48,"") ->  | N53: =IFERROR('Data from budgets'!E48,"") ->  | Q53: =IFERROR('Data from budgets'!F48,"") ->  | T53: =IFERROR('Calculations '!L107,"") -> 8.652221877 | U53: =IFERROR('Calculations '!M107,"") -> 8.652221877 | V53: =IFERROR('Calculations '!N107,"") -> 8.652221877 | Y53: ='Calculations '!C107 -> 1 | Z53: =IFERROR('Calculations '!P107,"") -> 8.652221877 | AA53: =IFERROR('Calculations '!Q107,"") -> 0
B54: --spraying | E54: =IFERROR('Data from budgets'!B49,"") -> 3.561396096 | H54: =IFERROR('Data from budgets'!C49,"") ->  | K54: =IFERROR('Data from budgets'!D49,"") ->  | N54: =IFERROR('Data from budgets'!E49,"") ->  | Q54: =IFERROR('Data from budgets'!F49,"") ->  | T54: =IFERROR('Calculations '!L108,"") -> 3.561396096 | U54: =IFERROR('Calculations '!M108,"") -> 3.561396096 | V54: =IFERROR('Calculations '!N108,"") -> 3.561396096 | Y54: ='Calculations '!C108 -> 1 | Z54: =IFERROR('Calculations '!P108,"") -> 3.561396096 | AA54: =IFERROR('Calculations '!Q108,"") -> 0
B55: --tillage | E55: =IFERROR('Data from budgets'!B50,"") -> 0 | H55: =IFERROR('Data from budgets'!C50,"") ->  | K55: =IFERROR('Data from budgets'!D50,"") ->  | N55: =IFERROR('Data from budgets'!E50,"") ->  | Q55: =IFERROR('Data from budgets'!F50,"") ->  | T55: =IFERROR('Calculations '!L109,"") -> 0 | U55: =IFERROR('Calculations '!M109,"") -> 0 | V55: =IFERROR('Calculations '!N109,"") -> 0 | Y55: ='Calculations '!C109 -> 1 | Z55: =IFERROR('Calculations '!P109,"") -> 0 | AA55: =IFERROR('Calculations '!Q109,"") -> 0
B56: --other | E56: =IFERROR('Data from budgets'!B51,"") -> 0 | H56: =IFERROR('Data from budgets'!C51,"") ->  | K56: =IFERROR('Data from budgets'!D51,"") ->  | N56: =IFERROR('Data from budgets'!E51,"") ->  | Q56: =IFERROR('Data from budgets'!F51,"") ->  | T56: =IFERROR('Calculations '!L110,"") -> 0 | U56: =IFERROR('Calculations '!M110,"") -> 0 | V56: =IFERROR('Calculations '!N110,"") -> 0 | W56: ='Calculations '!O103 -> 0 | Y56: ='Calculations '!C110 -> 1 | Z56: =IFERROR('Calculations '!P110,"") -> 0 | AA56: =IFERROR('Calculations '!Q110,"") -> 0
B57: Irrigation | C57: 0 | E57: =IFERROR('Data from budgets'!B52,"") -> 0 | H57: =IFERROR('Data from budgets'!C52,"") ->  | K57: =IFERROR('Data from budgets'!D52,"") ->  | N57: =IFERROR('Data from budgets'!E52,"") ->  | Q57: =IFERROR('Data from budgets'!F52,"") ->  | T57: =IFERROR('Calculations '!L111,"") -> 0 | U57: =IFERROR('Calculations '!M111,"") -> 0 | V57: =IFERROR('Calculations '!N111,"") -> 0 | W57: ='Calculations '!O111 -> 0 | Y57: ='Calculations '!C111 -> 0 | Z57: =IFERROR('Calculations '!P111,"") -> 0 | AA57: =IFERROR('Calculations '!Q111,"") -> 0
B58: Cash rent ( $ / acre ) | C58: 50 | E58: =IFERROR(IF(E13=1, $C58, ""),"") -> 50 | H58: =IFERROR(IF(H13=1, $C58, ""),"") ->  | K58: =IFERROR(IF(K13=1, $C58, ""),"") ->  | N58: =IFERROR(IF(N13=1, $C58, ""),"") ->  | Q58: =IFERROR(IF(Q13=1, $C58, ""),"") ->  | T58: =IFERROR('Calculations '!L112,"") -> 50 | U58: =IFERROR('Calculations '!M112,"") -> 50 | V58: =IFERROR('Calculations '!N112,"") -> 50
B59: <Total Fixed Expenses> | E59: =IFERROR('Calculations '!D56,"") -> 89.99743168 | H59: =IFERROR('Calculations '!G56,"") -> 0 | K59: =IFERROR('Calculations '!J56,"") -> 0 | N59: =IFERROR('Calculations '!M56,"") -> 0 | Q59: =IFERROR('Calculations '!P56,"") -> 0 | T59: =IFERROR('Calculations '!L113,"") -> 89.99743168 | U59: =IFERROR('Calculations '!M113,"") -> 89.99743168 | V59: =IFERROR('Calculations '!N113,"") -> 89.99743168 | W59: =IFERROR('Calculations '!O113,"") -> 0 | Z59: =IFERROR('Calculations '!P113,"") -> 39.99743168 | AA59: =IFERROR('Calculations '!Q113,"") -> 0
T60: =IFERROR('Calculations '!L114,"") -> 0 | U60: =IFERROR('Calculations '!M114,"") -> 0 | V60: =IFERROR('Calculations '!N114,"") -> 0
B61: <Total Specified Expenses> | E61: =IFERROR(E45+E59,"") -> 235.6276107 | H61: =IFERROR(H45+H59,"") -> 0 | K61: =IFERROR(K45+K59,"") -> 0 | N61: =IFERROR(N45+N59,"") -> 0 | Q61: =IFERROR(Q45+Q59,"") -> 0 | T61: =IFERROR('Calculations '!L115,"") -> 235.6276107 | U61: =IFERROR('Calculations '!M115,"") -> 235.6276107 | V61: =IFERROR('Calculations '!N115,"") -> 235.6276107 | W61: ='Calculations '!O115 -> 0 | Z61: =IFERROR('Calculations '!P115,"") -> 160.9825947 | AA61: =IFERROR('Calculations '!Q115,"") -> 24.645016
B62: <Total costs per unit> | E62: =IFERROR(IFERROR(E61 / 'Calculations '!D5, ""),"") -> 4.712552215 | H62: =IFERROR(IFERROR(H61 / 'Calculations '!G5, ""),"") ->  | K62: =IFERROR(IFERROR(K61 / 'Calculations '!J5, ""),"") ->  | N62: =IFERROR(IFERROR(N61 / 'Calculations '!M5, ""),"") ->  | Q62: =IFERROR(IFERROR(Q61 / 'Calculations '!P5, ""),"") ->  | Z62: =IFERROR('Calculations '!P116,"") -> 0 | AA62: =IFERROR('Calculations '!Q116,"") -> 0
Z63: =IFERROR('Calculations '!P117,"") -> 0 | AA63: =IFERROR('Calculations '!Q117,"") -> 0
A64: Returns above direct expenses | E64: =IFERROR(E19-E45,"") -> 129.369821 | H64: =IFERROR(H19-H45,"") ->  | K64: =IFERROR(K19-K45,"") ->  | N64: =IFERROR(N19-N45,"") ->  | Q64: =IFERROR(Q19-Q45,"") ->  | T64: =IFERROR('Calculations '!L118,"") -> 129.369821 | U64: =IFERROR('Calculations '!M118,"") -> 129.369821 | V64: =IFERROR('Calculations '!N118,"") -> 129.369821 | W64: =IFERROR('Calculations '!O118,"") -> 50 | Z64: =IFERROR('Calculations '!P118,"") -> 66.01483695 | AA64: =IFERROR('Calculations '!Q118,"") -> 63.354984
A65: Returns above total specified expenses | E65: =IFERROR(E19 - E61,"") -> 39.37238927 | H65: =IFERROR(H19 - H61,"") ->  | K65: =IFERROR(K19 - K61,"") ->  | N65: =IFERROR(N19 - N61,"") ->  | Q65: =IFERROR(Q19 - Q61,"") ->  | T65: =IFERROR('Calculations '!L119,"") -> 39.37238927 | U65: =IFERROR('Calculations '!M119,"") -> 39.37238927 | V65: =IFERROR('Calculations '!N119,"") -> 39.37238927 | W65: ='Calculations '!O119 -> 50 | Z65: =IFERROR('Calculations '!P119,"") -> 26.01740527 | AA65: =IFERROR('Calculations '!Q119,"") -> 63.354984 | AB65: Landlord value does not reflect property tax cost
A66: Return to total cost | E66: =IFERROR((E65+'Calculations '!#REF! + 'Calculations '!D52) / (E61 -'Calculations '!#REF! - 'Calculations '!D52),"") ->  | H66: =IFERROR((H65+'Calculations '!#REF! + 'Calculations '!G52) / (H61 -'Calculations '!#REF! - 'Calculations '!G52),"") ->  | K66: =IFERROR((K65+'Calculations '!#REF! + 'Calculations '!J52) / (K61 -'Calculations '!#REF! - 'Calculations '!J52),"") ->  | N66: =IFERROR((N65+'Calculations '!#REF! + 'Calculations '!M52) / (N61 -'Calculations '!#REF! - 'Calculations '!M52),"") ->  | Q66: =IFERROR((Q65+'Calculations '!#REF! + 'Calculations '!P52) / (Q61 -'Calculations '!#REF! - 'Calculations '!P52),"") ->  | T66: =IFERROR((T65) / (T61 ),"") -> 0.1670958219 | U66: =IFERROR((U65) / (U61 ),"") -> 0.1670958219 | V66: =IFERROR((V65) / (V61 ),"") -> 0.1670958219 | W66: =IFERROR((W65-V58)/(W61+V58), "") -> 0 | Z66: =IFERROR(Z65/Z61, "") -> 0.1616162624 | AA66: =IFERROR((AA65-V58)/(AA61+V58), "") -> 0.1789132713
T67: Note: the equitable share calculation is based on including the cash rent as a cost to the landlord. The
B68: Breakeven price | E68: =IFERROR((E61-'Calculations '!D7)/'Calculations '!D5,"") -> 4.712552215 | H68: =IFERROR((H61-'Calculations '!G7)/'Calculations '!G5,"") ->  | K68: =IFERROR((K61-'Calculations '!J7)/'Calculations '!J5,"") ->  | N68: =IFERROR((N61-'Calculations '!M7)/'Calculations '!M5,"") ->  | Q68: =IFERROR((Q61-'Calculations '!P7)/'Calculations '!P5,"") ->  | T68: return to the landlord for both cash leases and share leases is based on using the property tax
B69: Breakeven yield | E69: =IFERROR((E61-'Calculations '!D7)/'Calculations '!D6,"") -> 42.84138377 | H69: =IFERROR((H61-'Calculations '!G7)/'Calculations '!G6,"") ->  | K69: =IFERROR((K61-'Calculations '!J7)/'Calculations '!J6,"") ->  | N69: =IFERROR((N61-'Calculations '!M7)/'Calculations '!M6,"") ->  | Q69: =IFERROR((Q61-'Calculations '!P7)/'Calculations '!P6,"") ->  | T69: as the only charge to land. If the cash rent was used as a cost, cash rent would always be negtive for the landlord
T70: Note: the return to the landlord is shown without any property taxes taken out

Sheet Calculations (hidden)
A1: Data from Budgets sheet
A2: Interest rate | B2: =Budgets!W3 -> 0.06
B3: Crop 1 | E3: Crop 2 | H3: Crop 3 | K3: Crop 4 | N3: Crop 5
B4: Budget | C4: override | D4: number to use | E4: Budget | F4: override | G4: number to use | H4: Budget | I4: override | J4: number to use | K4: Budget | L4: override | M4: number to use | N4: Budget | O4: override | P4: number to use
A5: Yield | B5: =Budgets!E16 -> 50 | C5: =Budgets!F16 -> 0 | D5: =IF(ISBLANK(Budgets!F16),'Calculations '!B5, 'Calculations '!C5) -> 50 | E5: =Budgets!H16 ->  | F5: =Budgets!I16 -> 0 | G5: =IF(ISBLANK(Budgets!I16),'Calculations '!E5, 'Calculations '!F5) ->  | H5: =Budgets!K16 ->  | I5: =Budgets!L16 -> 0 | J5: =IF(ISBLANK(Budgets!L16),'Calculations '!H5, 'Calculations '!I5) ->  | K5: =Budgets!N16 ->  | L5: =Budgets!O16 -> 0 | M5: =IF(ISBLANK(Budgets!O16),'Calculations '!K5, 'Calculations '!L5) ->  | N5: =Budgets!Q16 ->  | O5: =Budgets!R16 -> 0 | P5: =IF(ISBLANK(Budgets!R16),'Calculations '!N5, 'Calculations '!O5) -> 
A6: Price | B6: =Budgets!E17 -> 5.5 | C6: =Budgets!F17 -> 0 | D6: =IF(ISBLANK(Budgets!F17),'Calculations '!B6, 'Calculations '!C6) -> 5.5 | E6: =Budgets!H17 ->  | F6: =Budgets!I17 -> 0 | G6: =IF(ISBLANK(Budgets!I17),'Calculations '!E6, 'Calculations '!F6) ->  | H6: =Budgets!K17 ->  | I6: =Budgets!L17 -> 0 | J6: =IF(ISBLANK(Budgets!L17),'Calculations '!H6, 'Calculations '!I6) ->  | K6: =Budgets!N17 ->  | L6: =Budgets!O17 -> 0 | M6: =IF(ISBLANK(Budgets!O17),'Calculations '!K6, 'Calculations '!L6) ->  | N6: =Budgets!Q17 ->  | O6: =Budgets!R17 -> 0 | P6: =IF(ISBLANK(Budgets!R17),'Calculations '!N6, 'Calculations '!O6) -> 
A7: Other income | B7: =Budgets!E18 -> 0 | C7: =Budgets!F18 -> 0 | D7: =IF(ISBLANK(Budgets!F18),'Calculations '!B7, 'Calculations '!C7) -> 0 | E7: =Budgets!H18 ->  | F7: =Budgets!I18 -> 0 | G7: =IF(ISBLANK(Budgets!I18),'Calculations '!E7, 'Calculations '!F7) ->  | H7: =Budgets!K18 ->  | I7: =Budgets!L18 -> 0 | J7: =IF(ISBLANK(Budgets!L18),'Calculations '!H7, 'Calculations '!I7) ->  | K7: =Budgets!N18 ->  | L7: =Budgets!O18 -> 0 | M7: =IF(ISBLANK(Budgets!O18),'Calculations '!K7, 'Calculations '!L7) ->  | N7: =Budgets!Q18 ->  | O7: =Budgets!R18 -> 0 | P7: =IF(ISBLANK(Budgets!R18),'Calculations '!N7, 'Calculations '!O7) -> 
A8: TOTAL REVENUE | D8: =IF(ISNUMBER(B5), D5*D6 +D7, "") -> 275 | G8: =IF(ISNUMBER(E5), G5*G6 +G7, "") ->  | J8: =IF(ISNUMBER(H5), J5*J6 +J7, "") ->  | M8: =IF(ISNUMBER(K5), M5*M6 +M7, "") ->  | P8: =IF(ISNUMBER(N5), P5*P6 +P7, "") -> 
A10: Direct Expenses
A11: Seeds | B11: =Budgets!E22 -> 24.75 | C11: =Budgets!F22 -> 0 | D11: =IF(ISBLANK(Budgets!F22),'Calculations '!B11, 'Calculations '!C11) -> 24.75 | E11: =Budgets!H22 ->  | F11: =Budgets!I22 -> 0 | G11: =IF(ISBLANK(Budgets!I22),'Calculations '!E11, 'Calculations '!F11) ->  | H11: =Budgets!K22 ->  | I11: =Budgets!L22 -> 0 | J11: =IF(ISBLANK(Budgets!L22),'Calculations '!H11, 'Calculations '!I11) ->  | K11: =Budgets!N22 ->  | L11: =Budgets!O22 -> 0 | M11: =IF(ISBLANK(Budgets!O22),'Calculations '!K11, 'Calculations '!L11) ->  | N11: =Budgets!Q22 ->  | O11: =Budgets!R22 -> 0 | P11: =IF(ISBLANK(Budgets!R22),'Calculations '!N11, 'Calculations '!O11) -> 
A12: Fertilizer (less lime) | B12: =Budgets!E23 -> 45.0725 | C12: =Budgets!F23 -> 0 | D12: =IF(ISBLANK(Budgets!F23),'Calculations '!B12, 'Calculations '!C12) -> 45.0725 | E12: =Budgets!H23 ->  | F12: =Budgets!I23 -> 0 | G12: =IF(ISBLANK(Budgets!I23),'Calculations '!E12, 'Calculations '!F12) ->  | H12: =Budgets!K23 ->  | I12: =Budgets!L23 -> 0 | J12: =IF(ISBLANK(Budgets!L23),'Calculations '!H12, 'Calculations '!I12) ->  | K12: =Budgets!N23 ->  | L12: =Budgets!O23 -> 0 | M12: =IF(ISBLANK(Budgets!O23),'Calculations '!K12, 'Calculations '!L12) ->  | N12: =Budgets!Q23 ->  | O12: =Budgets!R23 -> 0 | P12: =IF(ISBLANK(Budgets!R23),'Calculations '!N12, 'Calculations '!O12) -> 
A13: --Lime | B13: =Budgets!E24 -> 0 | C13: =Budgets!F24 -> 0 | D13: =IF(ISBLANK(Budgets!F24),'Calculations '!B13, 'Calculations '!C13) -> 0 | E13: =Budgets!H24 ->  | F13: =Budgets!I24 -> 0 | G13: =IF(ISBLANK(Budgets!I24),'Calculations '!E13, 'Calculations '!F13) ->  | H13: =Budgets!K24 ->  | I13: =Budgets!L24 -> 0 | J13: =IF(ISBLANK(Budgets!L24),'Calculations '!H13, 'Calculations '!I13) ->  | K13: =Budgets!N24 ->  | L13: =Budgets!O24 -> 0 | M13: =IF(ISBLANK(Budgets!O24),'Calculations '!K13, 'Calculations '!L13) ->  | N13: =Budgets!Q24 ->  | O13: =Budgets!R24 -> 0 | P13: =IF(ISBLANK(Budgets!R24),'Calculations '!N13, 'Calculations '!O13) -> 
A14: Herbicides | B14: =Budgets!E25 -> 4.95 | C14: =Budgets!F25 -> 0 | D14: =IF(ISBLANK(Budgets!F25),'Calculations '!B14, 'Calculations '!C14) -> 4.95 | E14: =Budgets!H25 ->  | F14: =Budgets!I25 -> 0 | G14: =IF(ISBLANK(Budgets!I25),'Calculations '!E14, 'Calculations '!F14) ->  | H14: =Budgets!K25 ->  | I14: =Budgets!L25 -> 0 | J14: =IF(ISBLANK(Budgets!L25),'Calculations '!H14, 'Calculations '!I14) ->  | K14: =Budgets!N25 ->  | L14: =Budgets!O25 -> 0 | M14: =IF(ISBLANK(Budgets!O25),'Calculations '!K14, 'Calculations '!L14) ->  | N14: =Budgets!Q25 ->  | O14: =Budgets!R25 -> 0 | P14: =IF(ISBLANK(Budgets!R25),'Calculations '!N14, 'Calculations '!O14) -> 
A15: Fungicides | B15: =Budgets!E26 -> 21.1875 | C15: =Budgets!F26 -> 0 | D15: =IF(ISBLANK(Budgets!F26),'Calculations '!B15, 'Calculations '!C15) -> 21.1875 | E15: =Budgets!H26 ->  | F15: =Budgets!I26 -> 0 | G15: =IF(ISBLANK(Budgets!I26),'Calculations '!E15, 'Calculations '!F15) ->  | H15: =Budgets!K26 ->  | I15: =Budgets!L26 -> 0 | J15: =IF(ISBLANK(Budgets!L26),'Calculations '!H15, 'Calculations '!I15) ->  | K15: =Budgets!N26 ->  | L15: =Budgets!O26 -> 0 | M15: =IF(ISBLANK(Budgets!O26),'Calculations '!K15, 'Calculations '!L15) ->  | N15: =Budgets!Q26 ->  | O15: =Budgets!R26 -> 0 | P15: =IF(ISBLANK(Budgets!R26),'Calculations '!N15, 'Calculations '!O15) -> 
A16: Insecticides | B16: =Budgets!E27 -> 0 | C16: =Budgets!F27 -> 0 | D16: =IF(ISBLANK(Budgets!F27),'Calculations '!B16, 'Calculations '!C16) -> 0 | E16: =Budgets!H27 ->  | F16: =Budgets!I27 -> 0 | G16: =IF(ISBLANK(Budgets!I27),'Calculations '!E16, 'Calculations '!F16) ->  | H16: =Budgets!K27 ->  | I16: =Budgets!L27 -> 0 | J16: =IF(ISBLANK(Budgets!L27),'Calculations '!H16, 'Calculations '!I16) ->  | K16: =Budgets!N27 ->  | L16: =Budgets!O27 -> 0 | M16: =IF(ISBLANK(Budgets!O27),'Calculations '!K16, 'Calculations '!L16) ->  | N16: =Budgets!Q27 ->  | O16: =Budgets!R27 -> 0 | P16: =IF(ISBLANK(Budgets!R27),'Calculations '!N16, 'Calculations '!O16) -> 
A17: Crop consulting | B17: =Budgets!E28 -> 0 | C17: =Budgets!F28 -> 0 | D17: =IF(ISBLANK(Budgets!F28),'Calculations '!B17, 'Calculations '!C17) -> 0 | E17: =Budgets!H28 ->  | F17: =Budgets!I28 -> 0 | G17: =IF(ISBLANK(Budgets!I28),'Calculations '!E17, 'Calculations '!F17) ->  | H17: =Budgets!K28 ->  | I17: =Budgets!L28 -> 0 | J17: =IF(ISBLANK(Budgets!L28),'Calculations '!H17, 'Calculations '!I17) ->  | K17: =Budgets!N28 ->  | L17: =Budgets!O28 -> 0 | M17: =IF(ISBLANK(Budgets!O28),'Calculations '!K17, 'Calculations '!L17) ->  | N17: =Budgets!Q28 ->  | O17: =Budgets!R28 -> 0 | P17: =IF(ISBLANK(Budgets!R28),'Calculations '!N17, 'Calculations '!O17) -> 
A18: Crop insurance | B18: =Budgets!E29 -> 9.912 | C18: =Budgets!F29 -> 0 | D18: =IF(ISBLANK(Budgets!F29),'Calculations '!B18, 'Calculations '!C18) -> 9.912 | E18: =Budgets!H29 ->  | F18: =Budgets!I29 -> 0 | G18: =IF(ISBLANK(Budgets!I29),'Calculations '!E18, 'Calculations '!F18) ->  | H18: =Budgets!K29 ->  | I18: =Budgets!L29 -> 0 | J18: =IF(ISBLANK(Budgets!L29),'Calculations '!H18, 'Calculations '!I18) ->  | K18: =Budgets!N29 ->  | L18: =Budgets!O29 -> 0 | M18: =IF(ISBLANK(Budgets!O29),'Calculations '!K18, 'Calculations '!L18) ->  | N18: =Budgets!Q29 ->  | O18: =Budgets!R29 -> 0 | P18: =IF(ISBLANK(Budgets!R29),'Calculations '!N18, 'Calculations '!O18) -> 
A19: Miscellaneous | B19: =Budgets!E30 -> 6.5 | C19: =Budgets!F30 -> 0 | D19: =IF(ISBLANK(Budgets!F30),'Calculations '!B19, 'Calculations '!C19) -> 6.5 | E19: =Budgets!H30 ->  | F19: =Budgets!I30 -> 0 | G19: =IF(ISBLANK(Budgets!I30),'Calculations '!E19, 'Calculations '!F19) ->  | H19: =Budgets!K30 ->  | I19: =Budgets!L30 -> 0 | J19: =IF(ISBLANK(Budgets!L30),'Calculations '!H19, 'Calculations '!I19) ->  | K19: =Budgets!N30 ->  | L19: =Budgets!O30 -> 0 | M19: =IF(ISBLANK(Budgets!O30),'Calculations '!K19, 'Calculations '!L19) ->  | N19: =Budgets!Q30 ->  | O19: =Budgets!R30 -> 0 | P19: =IF(ISBLANK(Budgets!R30),'Calculations '!N19, 'Calculations '!O19) -> 
A20: Surfactant | B20: =Budgets!E31 -> 0 | C20: =Budgets!F31 -> 0 | D20: =IF(ISBLANK(Budgets!F31),'Calculations '!B20, 'Calculations '!C20) -> 0 | E20: =Budgets!H31 ->  | F20: =Budgets!I31 -> 0 | G20: =IF(ISBLANK(Budgets!I31),'Calculations '!E20, 'Calculations '!F20) ->  | H20: =Budgets!K31 ->  | I20: =Budgets!L31 -> 0 | J20: =IF(ISBLANK(Budgets!L31),'Calculations '!H20, 'Calculations '!I20) ->  | K20: =Budgets!N31 ->  | L20: =Budgets!O31 -> 0 | M20: =IF(ISBLANK(Budgets!O31),'Calculations '!K20, 'Calculations '!L20) ->  | N20: =Budgets!Q31 ->  | O20: =Budgets!R31 -> 0 | P20: =IF(ISBLANK(Budgets!R31),'Calculations '!N20, 'Calculations '!O20) -> 
A21: Other inputs | B21: =Budgets!E32 -> 0 | C21: =Budgets!F32 -> 0 | D21: =IF(ISBLANK(Budgets!F32),'Calculations '!B21, 'Calculations '!C21) -> 0 | E21: =Budgets!H32 ->  | F21: =Budgets!I32 -> 0 | G21: =IF(ISBLANK(Budgets!I32),'Calculations '!E21, 'Calculations '!F21) ->  | H21: =Budgets!K32 ->  | I21: =Budgets!L32 -> 0 | J21: =IF(ISBLANK(Budgets!L32),'Calculations '!H21, 'Calculations '!I21) ->  | K21: =Budgets!N32 ->  | L21: =Budgets!O32 -> 0 | M21: =IF(ISBLANK(Budgets!O32),'Calculations '!K21, 'Calculations '!L21) ->  | N21: =Budgets!Q32 ->  | O21: =Budgets!R32 -> 0 | P21: =IF(ISBLANK(Budgets!R32),'Calculations '!N21, 'Calculations '!O21) -> 
A22: MACHINERY
A23: --fertilizer application | B23: =Budgets!E34 -> 2.676079018 | C23: =Budgets!F34 -> 0 | D23: =IF(ISBLANK(Budgets!F34),'Calculations '!B23, 'Calculations '!C23) -> 2.676079018 | E23: =Budgets!H34 ->  | F23: =Budgets!I34 -> 0 | G23: =IF(ISBLANK(Budgets!I34),'Calculations '!E23, 'Calculations '!F23) ->  | H23: =Budgets!K34 ->  | I23: =Budgets!L34 -> 0 | J23: =IF(ISBLANK(Budgets!L34),'Calculations '!H23, 'Calculations '!I23) ->  | K23: =Budgets!N34 ->  | L23: =Budgets!O34 -> 0 | M23: =IF(ISBLANK(Budgets!O34),'Calculations '!K23, 'Calculations '!L23) ->  | N23: =Budgets!Q34 ->  | O23: =Budgets!R34 -> 0 | P23: =IF(ISBLANK(Budgets!R34),'Calculations '!N23, 'Calculations '!O23) -> 
A24: --harvesting | B24: =Budgets!E35 -> 9.779783282 | C24: =Budgets!F35 -> 0 | D24: =IF(ISBLANK(Budgets!F35),'Calculations '!B24, 'Calculations '!C24) -> 9.779783282 | E24: =Budgets!H35 ->  | F24: =Budgets!I35 -> 0 | G24: =IF(ISBLANK(Budgets!I35),'Calculations '!E24, 'Calculations '!F24) ->  | H24: =Budgets!K35 ->  | I24: =Budgets!L35 -> 0 | J24: =IF(ISBLANK(Budgets!L35),'Calculations '!H24, 'Calculations '!I24) ->  | K24: =Budgets!N35 ->  | L24: =Budgets!O35 -> 0 | M24: =IF(ISBLANK(Budgets!O35),'Calculations '!K24, 'Calculations '!L24) ->  | N24: =Budgets!Q35 ->  | O24: =Budgets!R35 -> 0 | P24: =IF(ISBLANK(Budgets!R35),'Calculations '!N24, 'Calculations '!O24) -> 
A25: --hauling | B25: =Budgets!E36 -> 5.559038134 | C25: =Budgets!F36 -> 0 | D25: =IF(ISBLANK(Budgets!F36),'Calculations '!B25, 'Calculations '!C25) -> 5.559038134 | E25: =Budgets!H36 ->  | F25: =Budgets!I36 -> 0 | G25: =IF(ISBLANK(Budgets!I36),'Calculations '!E25, 'Calculations '!F25) ->  | H25: =Budgets!K36 ->  | I25: =Budgets!L36 -> 0 | J25: =IF(ISBLANK(Budgets!L36),'Calculations '!H25, 'Calculations '!I25) ->  | K25: =Budgets!N36 ->  | L25: =Budgets!O36 -> 0 | M25: =IF(ISBLANK(Budgets!O36),'Calculations '!K25, 'Calculations '!L25) ->  | N25: =Budgets!Q36 ->  | O25: =Budgets!R36 -> 0 | P25: =IF(ISBLANK(Budgets!R36),'Calculations '!N25, 'Calculations '!O25) -> 
A26: --miscellaneous | B26: =Budgets!E37 -> 0 | C26: =Budgets!F37 -> 0 | D26: =IF(ISBLANK(Budgets!F37),'Calculations '!B26, 'Calculations '!C26) -> 0 | E26: =Budgets!H37 ->  | F26: =Budgets!I37 -> 0 | G26: =IF(ISBLANK(Budgets!I37),'Calculations '!E26, 'Calculations '!F26) ->  | H26: =Budgets!K37 ->  | I26: =Budgets!L37 -> 0 | J26: =IF(ISBLANK(Budgets!L37),'Calculations '!H26, 'Calculations '!I26) ->  | K26: =Budgets!N37 ->  | L26: =Budgets!O37 -> 0 | M26: =IF(ISBLANK(Budgets!O37),'Calculations '!K26, 'Calculations '!L26) ->  | N26: =Budgets!Q37 ->  | O26: =Budgets!R37 -> 0 | P26: =IF(ISBLANK(Budgets!R37),'Calculations '!N26, 'Calculations '!O26) -> 
A27: --planting | B27: =Budgets!E38 -> 7.647875223 | C27: =Budgets!F38 -> 0 | D27: =IF(ISBLANK(Budgets!F38),'Calculations '!B27, 'Calculations '!C27) -> 7.647875223 | E27: =Budgets!H38 ->  | F27: =Budgets!I38 -> 0 | G27: =IF(ISBLANK(Budgets!I38),'Calculations '!E27, 'Calculations '!F27) ->  | H27: =Budgets!K38 ->  | I27: =Budgets!L38 -> 0 | J27: =IF(ISBLANK(Budgets!L38),'Calculations '!H27, 'Calculations '!I27) ->  | K27: =Budgets!N38 ->  | L27: =Budgets!O38 -> 0 | M27: =IF(ISBLANK(Budgets!O38),'Calculations '!K27, 'Calculations '!L27) ->  | N27: =Budgets!Q38 ->  | O27: =Budgets!R38 -> 0 | P27: =IF(ISBLANK(Budgets!R38),'Calculations '!N27, 'Calculations '!O27) -> 
A28: --spraying | B28: =Budgets!E39 -> 3.353747692 | C28: =Budgets!F39 -> 0 | D28: =IF(ISBLANK(Budgets!F39),'Calculations '!B28, 'Calculations '!C28) -> 3.353747692 | E28: =Budgets!H39 ->  | F28: =Budgets!I39 -> 0 | G28: =IF(ISBLANK(Budgets!I39),'Calculations '!E28, 'Calculations '!F28) ->  | H28: =Budgets!K39 ->  | I28: =Budgets!L39 -> 0 | J28: =IF(ISBLANK(Budgets!L39),'Calculations '!H28, 'Calculations '!I28) ->  | K28: =Budgets!N39 ->  | L28: =Budgets!O39 -> 0 | M28: =IF(ISBLANK(Budgets!O39),'Calculations '!K28, 'Calculations '!L28) ->  | N28: =Budgets!Q39 ->  | O28: =Budgets!R39 -> 0 | P28: =IF(ISBLANK(Budgets!R39),'Calculations '!N28, 'Calculations '!O28) -> 
A29: --tillage | B29: =Budgets!E40 -> 0 | C29: =Budgets!F40 -> 0 | D29: =IF(ISBLANK(Budgets!F40),'Calculations '!B29, 'Calculations '!C29) -> 0 | E29: =Budgets!H40 ->  | F29: =Budgets!I40 -> 0 | G29: =IF(ISBLANK(Budgets!I40),'Calculations '!E29, 'Calculations '!F29) ->  | H29: =Budgets!K40 ->  | I29: =Budgets!L40 -> 0 | J29: =IF(ISBLANK(Budgets!L40),'Calculations '!H29, 'Calculations '!I29) ->  | K29: =Budgets!N40 ->  | L29: =Budgets!O40 -> 0 | M29: =IF(ISBLANK(Budgets!O40),'Calculations '!K29, 'Calculations '!L29) ->  | N29: =Budgets!Q40 ->  | O29: =Budgets!R40 -> 0 | P29: =IF(ISBLANK(Budgets!R40),'Calculations '!N29, 'Calculations '!O29) -> 
A30: --other | B30: =Budgets!E41 -> 0 | C30: =Budgets!F41 -> 0 | D30: =IF(ISBLANK(Budgets!F41),'Calculations '!B30, 'Calculations '!C30) -> 0 | E30: =Budgets!H41 ->  | F30: =Budgets!I41 -> 0 | G30: =IF(ISBLANK(Budgets!I41),'Calculations '!E30, 'Calculations '!F30) ->  | H30: =Budgets!K41 ->  | I30: =Budgets!L41 -> 0 | J30: =IF(ISBLANK(Budgets!L41),'Calculations '!H30, 'Calculations '!I30) ->  | K30: =Budgets!N41 ->  | L30: =Budgets!O41 -> 0 | M30: =IF(ISBLANK(Budgets!O41),'Calculations '!K30, 'Calculations '!L30) ->  | N30: =Budgets!Q41 ->  | O30: =Budgets!R41 -> 0 | P30: =IF(ISBLANK(Budgets!R41),'Calculations '!N30, 'Calculations '!O30) -> 
A31: --custom operations | B31: =Budgets!E42 -> 0 | C31: =Budgets!F42 -> 0 | D31: =IF(ISBLANK(Budgets!F42),'Calculations '!B31, 'Calculations '!C31) -> 0 | E31: =Budgets!H42 ->  | F31: =Budgets!I42 -> 0 | G31: =IF(ISBLANK(Budgets!I42),'Calculations '!E31, 'Calculations '!F31) ->  | H31: =Budgets!K42 ->  | I31: =Budgets!L42 -> 0 | J31: =IF(ISBLANK(Budgets!L42),'Calculations '!H31, 'Calculations '!I31) ->  | K31: =Budgets!N42 ->  | L31: =Budgets!O42 -> 0 | M31: =IF(ISBLANK(Budgets!O42),'Calculations '!K31, 'Calculations '!L31) ->  | N31: =Budgets!Q42 ->  | O31: =Budgets!R42 -> 0 | P31: =IF(ISBLANK(Budgets!R42),'Calculations '!N31, 'Calculations '!O31) -> 
A32: Irrigation | B32: =Budgets!E43 -> 0 | C32: =Budgets!F43 -> 0 | D32: =IF(ISBLANK(Budgets!F43),'Calculations '!B32, 'Calculations '!C32) -> 0 | E32: =Budgets!H43 ->  | F32: =Budgets!I43 -> 0 | G32: =IF(ISBLANK(Budgets!I43),'Calculations '!E32, 'Calculations '!F32) ->  | H32: =Budgets!K43 ->  | I32: =Budgets!L43 -> 0 | J32: =IF(ISBLANK(Budgets!L43),'Calculations '!H32, 'Calculations '!I32) ->  | K32: =Budgets!N43 ->  | L32: =Budgets!O43 -> 0 | M32: =IF(ISBLANK(Budgets!O43),'Calculations '!K32, 'Calculations '!L32) ->  | N32: =Budgets!Q43 ->  | O32: =Budgets!R43 -> 0 | P32: =IF(ISBLANK(Budgets!R43),'Calculations '!N32, 'Calculations '!O32) -> 
A33: Interest on direct expenses | B33: =SUM(D11:D32) * $B$2/2 -> 4.2416557 | C33: =Budgets!F44 -> 0 | D33: =IF(ISBLANK(Budgets!F44),'Calculations '!B33, 'Calculations '!C33) -> 4.2416557 | E33: =SUM(G11:G32) * $B$2/2 -> 0 | F33: =Budgets!I44 -> 0 | G33: =IF(ISBLANK(Budgets!I44),'Calculations '!E33, 'Calculations '!F33) -> 0 | H33: =SUM(J11:J32) * $B$2/2 -> 0 | I33: =Budgets!L44 -> 0 | J33: =IF(ISBLANK(Budgets!L44),'Calculations '!H33, 'Calculations '!I33) -> 0 | K33: =SUM(M11:M32) * $B$2/2 -> 0 | L33: =Budgets!O44 -> 0 | M33: =IF(ISBLANK(Budgets!O44),'Calculations '!K33, 'Calculations '!L33) -> 0 | N33: =SUM(P11:P32) * $B$2/2 -> 0 | O33: =Budgets!R44 -> 0 | P33: =IF(ISBLANK(Budgets!R44),'Calculations '!N33, 'Calculations '!O33) -> 0
A37: Fixed Expenses
A38: --fertilizer application | B38: =Budgets!E49 -> 2.46576207 | C38: =Budgets!F49 -> 0 | D38: =IF(ISBLANK(Budgets!F49),'Calculations '!B38, 'Calculations '!C38) -> 2.46576207 | E38: =Budgets!H49 ->  | F38: =Budgets!I49 -> 0 | G38: =IF(ISBLANK(Budgets!I49),'Calculations '!E38, 'Calculations '!F38) ->  | H38: =Budgets!K49 ->  | I38: =Budgets!L49 -> 0 | J38: =IF(ISBLANK(Budgets!L49),'Calculations '!H38, 'Calculations '!I38) ->  | K38: =Budgets!N49 ->  | L38: =Budgets!O49 -> 0 | M38: =IF(ISBLANK(Budgets!O49),'Calculations '!K38, 'Calculations '!L38) ->  | N38: =Budgets!Q49 ->  | O38: =Budgets!R49 -> 0 | P38: =IF(ISBLANK(Budgets!R49),'Calculations '!N38, 'Calculations '!O38) -> 
A39: --harvesting | B39: =Budgets!E50 -> 18.94833468 | C39: =Budgets!F50 -> 0 | D39: =IF(ISBLANK(Budgets!F50),'Calculations '!B39, 'Calculations '!C39) -> 18.94833468 | E39: =Budgets!H50 ->  | F39: =Budgets!I50 -> 0 | G39: =IF(ISBLANK(Budgets!I50),'Calculations '!E39, 'Calculations '!F39) ->  | H39: =Budgets!K50 ->  | I39: =Budgets!L50 -> 0 | J39: =IF(ISBLANK(Budgets!L50),'Calculations '!H39, 'Calculations '!I39) ->  | K39: =Budgets!N50 ->  | L39: =Budgets!O50 -> 0 | M39: =IF(ISBLANK(Budgets!O50),'Calculations '!K39, 'Calculations '!L39) ->  | N39: =Budgets!Q50 ->  | O39: =Budgets!R50 -> 0 | P39: =IF(ISBLANK(Budgets!R50),'Calculations '!N39, 'Calculations '!O39) -> 
A40: --hauling | B40: =Budgets!E51 -> 6.369716955 | C40: =Budgets!F51 -> 0 | D40: =IF(ISBLANK(Budgets!F51),'Calculations '!B40, 'Calculations '!C40) -> 6.369716955 | E40: =Budgets!H51 ->  | F40: =Budgets!I51 -> 0 | G40: =IF(ISBLANK(Budgets!I51),'Calculations '!E40, 'Calculations '!F40) ->  | H40: =Budgets!K51 ->  | I40: =Budgets!L51 -> 0 | J40: =IF(ISBLANK(Budgets!L51),'Calculations '!H40, 'Calculations '!I40) ->  | K40: =Budgets!N51 ->  | L40: =Budgets!O51 -> 0 | M40: =IF(ISBLANK(Budgets!O51),'Calculations '!K40, 'Calculations '!L40) ->  | N40: =Budgets!Q51 ->  | O40: =Budgets!R51 -> 0 | P40: =IF(ISBLANK(Budgets!R51),'Calculations '!N40, 'Calculations '!O40) -> 
A41: --miscellaneous | B41: =Budgets!E52 -> 0 | C41: =Budgets!F52 -> 0 | D41: =IF(ISBLANK(Budgets!F52),'Calculations '!B41, 'Calculations '!C41) -> 0 | E41: =Budgets!H52 ->  | F41: =Budgets!I52 -> 0 | G41: =IF(ISBLANK(Budgets!I52),'Calculations '!E41, 'Calculations '!F41) ->  | H41: =Budgets!K52 ->  | I41: =Budgets!L52 -> 0 | J41: =IF(ISBLANK(Budgets!L52),'Calculations '!H41, 'Calculations '!I41) ->  | K41: =Budgets!N52 ->  | L41: =Budgets!O52 -> 0 | M41: =IF(ISBLANK(Budgets!O52),'Calculations '!K41, 'Calculations '!L41) ->  | N41: =Budgets!Q52 ->  | O41: =Budgets!R52 -> 0 | P41: =IF(ISBLANK(Budgets!R52),'Calculations '!N41, 'Calculations '!O41) -> 
A42: --planting | B42: =Budgets!E53 -> 8.652221877 | C42: =Budgets!F53 -> 0 | D42: =IF(ISBLANK(Budgets!F53),'Calculations '!B42, 'Calculations '!C42) -> 8.652221877 | E42: =Budgets!H53 ->  | F42: =Budgets!I53 -> 0 | G42: =IF(ISBLANK(Budgets!I53),'Calculations '!E42, 'Calculations '!F42) ->  | H42: =Budgets!K53 ->  | I42: =Budgets!L53 -> 0 | J42: =IF(ISBLANK(Budgets!L53),'Calculations '!H42, 'Calculations '!I42) ->  | K42: =Budgets!N53 ->  | L42: =Budgets!O53 -> 0 | M42: =IF(ISBLANK(Budgets!O53),'Calculations '!K42, 'Calculations '!L42) ->  | N42: =Budgets!Q53 ->  | O42: =Budgets!R53 -> 0 | P42: =IF(ISBLANK(Budgets!R53),'Calculations '!N42, 'Calculations '!O42) -> 
A43: --spraying | B43: =Budgets!E54 -> 3.561396096 | C43: =Budgets!F54 -> 0 | D43: =IF(ISBLANK(Budgets!F54),'Calculations '!B43, 'Calculations '!C43) -> 3.561396096 | E43: =Budgets!H54 ->  | F43: =Budgets!I54 -> 0 | G43: =IF(ISBLANK(Budgets!I54),'Calculations '!E43, 'Calculations '!F43) ->  | H43: =Budgets!K54 ->  | I43: =Budgets!L54 -> 0 | J43: =IF(ISBLANK(Budgets!L54),'Calculations '!H43, 'Calculations '!I43) ->  | K43: =Budgets!N54 ->  | L43: =Budgets!O54 -> 0 | M43: =IF(ISBLANK(Budgets!O54),'Calculations '!K43, 'Calculations '!L43) ->  | N43: =Budgets!Q54 ->  | O43: =Budgets!R54 -> 0 | P43: =IF(ISBLANK(Budgets!R54),'Calculations '!N43, 'Calculations '!O43) -> 
A44: --tillage | B44: =Budgets!E55 -> 0 | C44: =Budgets!F55 -> 0 | D44: =IF(ISBLANK(Budgets!F55),'Calculations '!B44, 'Calculations '!C44) -> 0 | E44: =Budgets!H55 ->  | F44: =Budgets!I55 -> 0 | G44: =IF(ISBLANK(Budgets!I55),'Calculations '!E44, 'Calculations '!F44) ->  | H44: =Budgets!K55 ->  | I44: =Budgets!L55 -> 0 | J44: =IF(ISBLANK(Budgets!L55),'Calculations '!H44, 'Calculations '!I44) ->  | K44: =Budgets!N55 ->  | L44: =Budgets!O55 -> 0 | M44: =IF(ISBLANK(Budgets!O55),'Calculations '!K44, 'Calculations '!L44) ->  | N44: =Budgets!Q55 ->  | O44: =Budgets!R55 -> 0 | P44: =IF(ISBLANK(Budgets!R55),'Calculations '!N44, 'Calculations '!O44) -> 
A45: --other | B45: =Budgets!E56 -> 0 | C45: =Budgets!F56 -> 0 | D45: =IF(ISBLANK(Budgets!F56),'Calculations '!B45, 'Calculations '!C45) -> 0 | E45: =Budgets!H56 ->  | F45: =Budgets!I56 -> 0 | G45: =IF(ISBLANK(Budgets!I56),'Calculations '!E45, 'Calculations '!F45) ->  | H45: =Budgets!K56 ->  | I45: =Budgets!L56 -> 0 | J45: =IF(ISBLANK(Budgets!L56),'Calculations '!H45, 'Calculations '!I45) ->  | K45: =Budgets!N56 ->  | L45: =Budgets!O56 -> 0 | M45: =IF(ISBLANK(Budgets!O56),'Calculations '!K45, 'Calculations '!L45) ->  | N45: =Budgets!Q56 ->  | O45: =Budgets!R56 -> 0 | P45: =IF(ISBLANK(Budgets!R56),'Calculations '!N45, 'Calculations '!O45) -> 
A46: Irrigation | B46: =Budgets!E57 -> 0 | C46: =Budgets!F57 -> 0 | D46: =IF(ISBLANK(Budgets!F57),'Calculations '!B46, 'Calculations '!C46) -> 0 | E46: =Budgets!H57 ->  | F46: =Budgets!I57 -> 0 | G46: =IF(ISBLANK(Budgets!I57),'Calculations '!E46, 'Calculations '!F46) ->  | H46: =Budgets!K57 ->  | I46: =Budgets!L57 -> 0 | J46: =IF(ISBLANK(Budgets!L57),'Calculations '!H46, 'Calculations '!I46) ->  | K46: =Budgets!N57 ->  | L46: =Budgets!O57 -> 0 | M46: =IF(ISBLANK(Budgets!O57),'Calculations '!K46, 'Calculations '!L46) ->  | N46: =Budgets!Q57 ->  | O46: =Budgets!R57 -> 0 | P46: =IF(ISBLANK(Budgets!R57),'Calculations '!N46, 'Calculations '!O46) -> 
A47: Cash rent ( $ / acre ) | B47: =Budgets!E58 -> 50 | C47: =Budgets!F58 -> 0 | D47: =IF(ISBLANK(Budgets!F58),'Calculations '!B47, 'Calculations '!C47) -> 50 | E47: =Budgets!H58 ->  | F47: =Budgets!I58 -> 0 | G47: =IF(ISBLANK(Budgets!I58),'Calculations '!E47, 'Calculations '!F47) ->  | H47: =Budgets!K58 ->  | I47: =Budgets!L58 -> 0 | J47: =IF(ISBLANK(Budgets!L58),'Calculations '!H47, 'Calculations '!I47) ->  | K47: =Budgets!N58 ->  | L47: =Budgets!O58 -> 0 | M47: =IF(ISBLANK(Budgets!O58),'Calculations '!K47, 'Calculations '!L47) ->  | N47: =Budgets!Q58 ->  | O47: =Budgets!R58 -> 0 | P47: =IF(ISBLANK(Budgets!R58),'Calculations '!N47, 'Calculations '!O47) -> 
A48: Property taxes ( $ / acre)
A51: Total direct expenses before interest | D51: =SUM(D11:D32) -> 141.3885233 | G51: =SUM(G11:G32) -> 0 | J51: =SUM(J11:J32) -> 0 | M51: =SUM(M11:M32) -> 0 | P51: =SUM(P11:P32) -> 0
A52: Interest (the interest rate comes from 'Budgets') | D52: =D33 -> 4.2416557 | G52: =G33 -> 0 | J52: =J33 -> 0 | M52: =M33 -> 0 | P52: =P33 -> 0
A53: <Total direct expenses> | D53: =D51+D52 -> 145.630179 | G53: =G51+G52 -> 0 | J53: =J51+J52 -> 0 | M53: =M51+M52 -> 0 | P53: =P51+P52 -> 0
A56: <Total fixed expenses> | D56: =SUM(D38:D47) -> 89.99743168 | G56: =SUM(G38:G47) -> 0 | J56: =SUM(J38:J47) -> 0 | M56: =SUM(M38:M47) -> 0 | P56: =SUM(P38:P47) -> 0
E62: Fallow acres | F62: =Budgets!C10 -> 0
E63: Double crop acres | F63: =Budgets!C11 -> 0 | O63: Cash landlord
M64: CASH - tenant | N64: - - - - - - - > | P64: SHARE | T64: Calculations to find the equitable share percentage
B65: Equitable tenant % | C65: =Budgets!Z6 -> 0.68 | L65: Total | M65: per planted ac | N65: per tillable ac | P65: Tenant | Q65: Landlord | T65: only calculating those costs that are not shared
E66: Acres | F66: =Budgets!C5*'Data from budgets'!B8 -> 1 | G66: =Budgets!C6*'Data from budgets'!C8 -> 0 | H66: =Budgets!C7*'Data from budgets'!D8 -> 0 | I66: =Budgets!C8*'Data from budgets'!E8 -> 0 | J66: =Budgets!C9*'Data from budgets'!F8 -> 0 | L66: =SUM(F66:J66) -> 1
C67: Tenant % | E67: Tillable | L67: =L66+F62-F63 -> 1
B69: Adjustment factor for 2-way tables | F69: Crop A | G69: Crop B | H69: Crop C | I69: Crop D | J69: Crop E | T69: Is the cost fixed?
A70: Yield | B70: 0 | C70: =IF(ISBLANK(Budgets!C16),1,IF(AND(ISNUMBER(Budgets!C16), Budgets!C16>=0), Budgets!C16, $C$65)) -> 0.68 | F70: =IFERROR(D5 * (1 + B70), "") -> 50 | G70: =IFERROR(G5 * (1 + B70), "") ->  | H70: =IFERROR(J5 * (1 + B70), "") ->  | I70: =IFERROR(M5 * (1 + B70), "") ->  | J70: =IFERROR( P5 * (1 + B70), "") -> 
A71: Price | B71: 0 | F71: =IFERROR(D6*(1+$B$71),"") -> 5.5 | G71: =IFERROR(G6*(1+$B$71),"") ->  | H71: =IFERROR(J6*(1+$B$71),"") ->  | I71: =IFERROR(M6*(1+$B$71),"") ->  | J71: =IFERROR(P6*(1+$B$71),"") ->  | L71: =SUMPRODUCT(F66:J66, F70:J70, F71:J71) -> 275 | M71: =L71 / $L$66 -> 275 | N71: =L71 / $L$67 -> 275 | P71: =C70*N71 -> 187 | Q71: =N71-P71 -> 88
A72: Other income | C72: =IF(ISBLANK(Budgets!C18),1,IF(AND(ISNUMBER(Budgets!C18), Budgets!C18>=0), Budgets!C18, $C$65)) -> 0.68 | F72: =D7 -> 0 | G72: =G7 ->  | H72: =J7 ->  | I72: =M7 ->  | J72: =P7 ->  | L72: =SUMPRODUCT(F66:J66, F72:J72) -> 0 | M72: 0 | N72: 0 | P72: =C72 * N72 -> 0 | Q72: =N72-P72 -> 0
B73: <Total Revenue> | F73: =D8 -> 275 | G73: =G8 ->  | H73: =J8 ->  | I73: =M8 ->  | J73: =P8 ->  | L73: =L71+L72 -> 275 | M73: 275 | N73: 275 | O73: =N112 -> 50 | P73: =P71+P72 -> 187 | Q73: =N73-P73 -> 88 | T73: Tenant | W73: landlord
M74: 0 | N74: 0
A75: Direct Exp | M75: 0 | N75: 0
A76: Seeds | C76: =IF(ISBLANK(Budgets!C22),1,IF(AND(ISNUMBER(Budgets!C22), Budgets!C22>=0), Budgets!C22, $C$65)) -> 0.68 | F76: =D11 -> 24.75 | G76: =G11 ->  | H76: =J11 ->  | I76: =M11 ->  | J76: =P11 ->  | L76: =SUMPRODUCT($F$66:$J$66, F76:J76) -> 24.75 | M76: 24.75 | N76: 24.75 | P76: =C76 *N76 -> 16.83 | Q76: =N76-P76 -> 7.92 | T76: =IF(ISBLANK(Budgets!C22),1,IF(AND(ISNUMBER(Budgets!C22), Budgets!C22>=0), Budgets!C22, 0)) -> 0 | U76: =L76*T76 -> 0 | W76: =IF(ISBLANK(Budgets!C22),0,IF(AND(ISNUMBER(Budgets!C22), Budgets!C22>=0), 1- Budgets!C22, 0)) -> 0 | X76: =W76*L76 -> 0
A77: Fertilizer (less lime) | C77: =IF(ISBLANK(Budgets!C23),1,IF(AND(ISNUMBER(Budgets!C23), Budgets!C23>=0), Budgets!C23, $C$65)) -> 0.68 | F77: 45.0725 | L77: =SUMPRODUCT($F$66:$J$66, F77:J77) -> 45.0725 | M77: 45.0725 | N77: 45.0725 | P77: =C77 *N77 -> 30.6493 | Q77: =N77-P77 -> 14.4232 | T77: =IF(ISBLANK(Budgets!C23),1,IF(AND(ISNUMBER(Budgets!C23), Budgets!C23>=0), Budgets!C23, 0)) -> 0 | U77: =L77*T77 -> 0 | W77: =IF(ISBLANK(Budgets!C23),0,IF(AND(ISNUMBER(Budgets!C23), Budgets!C23>=0), 1- Budgets!C23, 0)) -> 0 | X77: =W77*L77 -> 0
A78: --Lime | C78: =IF(ISBLANK(Budgets!C24),1,IF(AND(ISNUMBER(Budgets!C24), Budgets!C24>=0), Budgets!C24, $C$65)) -> 0 | F78: 0 | L78: =SUMPRODUCT($F$66:$J$66, F78:J78) -> 0 | M78: =IF(B140, 0, L78 / $L$66) -> 0 | N78: =IF(B140, 0, L78 / $L$67) -> 0 | O78: =IF(B140, L78 / $L$67, 0) -> 0 | P78: =C78 *(N78+O78) -> 0 | Q78: =N78 + O78 -P78 -> 0 | R78: fixed | T78: =IF(ISBLANK(Budgets!C24),1,IF(AND(ISNUMBER(Budgets!C24), Budgets!C24>=0), Budgets!C24, 0)) -> 0 | U78: 0 | W78: =IF(ISBLANK(Budgets!C24),0,IF(AND(ISNUMBER(Budgets!C24), Budgets!C24>=0), 1- Budgets!C24, 0)) -> 1 | X78: 0
A79: Herbicides | C79: =IF(ISBLANK(Budgets!C25),1,IF(AND(ISNUMBER(Budgets!C25), Budgets!C25>=0), Budgets!C25, $C$65)) -> 0.68 | F79: 4.95 | L79: 4.95 | M79: =L79 / $L$66 -> 4.95 | N79: =L79 / $L$67 -> 4.95 | P79: =C79 *N79 -> 3.366 | Q79: =N79-P79 -> 1.584 | T79: =IF(ISBLANK(Budgets!C25),1,IF(AND(ISNUMBER(Budgets!C25), Budgets!C25>=0), Budgets!C25, 0)) -> 0 | U79: 0 | W79: =IF(ISBLANK(Budgets!C25),0,IF(AND(ISNUMBER(Budgets!C25), Budgets!C25>=0), 1- Budgets!C25, 0)) -> 0 | X79: 0
A80: Fungicides | C80: =IF(ISBLANK(Budgets!C26),1,IF(AND(ISNUMBER(Budgets!C26), Budgets!C26>=0), Budgets!C26, $C$65)) -> 1 | F80: 21.1875 | L80: 21.1875 | M80: 21.1875 | N80: 21.1875 | P80: =C80 *N80 -> 21.1875 | Q80: =N80-P80 -> 0 | T80: =IF(ISBLANK(Budgets!C26),1,IF(AND(ISNUMBER(Budgets!C26), Budgets!C26>=0), Budgets!C26, 0)) -> 1 | U80: 21.1875 | W80: =IF(ISBLANK(Budgets!C26),0,IF(AND(ISNUMBER(Budgets!C26), Budgets!C26>=0), 1- Budgets!C26, 0)) -> 0 | X80: 0
A81: Insecticides | C81: =IF(ISBLANK(Budgets!C27),1,IF(AND(ISNUMBER(Budgets!C27), Budgets!C27>=0), Budgets!C27, $C$65)) -> 1 | F81: 0 | L81: 0 | M81: 0 | N81: 0 | P81: 0 | Q81: 0 | T81: =IF(ISBLANK(Budgets!C27),1,IF(AND(ISNUMBER(Budgets!C27), Budgets!C27>=0), Budgets!C27, 0)) -> 1 | U81: 0 | W81: =IF(ISBLANK(Budgets!C27),0,IF(AND(ISNUMBER(Budgets!C27), Budgets!C27>=0), 1- Budgets!C27, 0)) -> 0 | X81: 0
A82: Crop consulting | C82: =IF(ISBLANK(Budgets!C28),1,IF(AND(ISNUMBER(Budgets!C28), Budgets!C28>=0), Budgets!C28, $C$65)) -> 1 | F82: 0 | L82: 0 | M82: 0 | N82: 0 | P82: 0 | Q82: 0 | T82: =IF(ISBLANK(Budgets!C28),1,IF(AND(ISNUMBER(Budgets!C28), Budgets!C28>=0), Budgets!C28, 0)) -> 1 | U82: 0 | W82: =IF(ISBLANK(Budgets!C28),0,IF(AND(ISNUMBER(Budgets!C28), Budgets!C28>=0), 1- Budgets!C28, 0)) -> 0 | X82: 0
A83: Crop insurance | C83: =IF(ISBLANK(Budgets!C29),1,IF(AND(ISNUMBER(Budgets!C29), Budgets!C29>=0), Budgets!C29, $C$65)) -> 1 | F83: 9.912 | L83: =SUMPRODUCT($F$66:$J$66, F83:J83) -> 9.912 | M83: 9.912 | N83: 9.912 | P83: =C83 *N83 -> 9.912 | Q83: =N83-P83 -> 0 | T83: =IF(ISBLANK(Budgets!C29),1,IF(AND(ISNUMBER(Budgets!C29), Budgets!C29>=0), Budgets!C29, 0)) -> 1 | U83: =L83*T83 -> 9.912 | W83: =IF(ISBLANK(Budgets!C29),0,IF(AND(ISNUMBER(Budgets!C29), Budgets!C29>=0), 1- Budgets!C29, 0)) -> 0 | X83: =W83*L83 -> 0
A84: Miscellaneous | C84: =IF(ISBLANK(Budgets!C30),1,IF(AND(ISNUMBER(Budgets!C30), Budgets!C30>=0), Budgets!C30, $C$65)) -> 1 | F84: 6.5 | L84: 6.5 | M84: 6.5 | N84: 6.5 | P84: 6.5 | Q84: 0 | T84: =IF(ISBLANK(Budgets!C30),1,IF(AND(ISNUMBER(Budgets!C30), Budgets!C30>=0), Budgets!C30, 0)) -> 1 | U84: 6.5 | W84: =IF(ISBLANK(Budgets!C30),0,IF(AND(ISNUMBER(Budgets!C30), Budgets!C30>=0), 1- Budgets!C30, 0)) -> 0 | X84: 0
A85: Surfactant | C85: =IF(ISBLANK(Budgets!C31),1,IF(AND(ISNUMBER(Budgets!C31), Budgets!C31>=0), Budgets!C31, $C$65)) -> 1 | F85: 0 | L85: 0 | M85: 0 | N85: 0 | P85: 0 | Q85: 0 | T85: =IF(ISBLANK(Budgets!C31),1,IF(AND(ISNUMBER(Budgets!C31), Budgets!C31>=0), Budgets!C31, 0)) -> 1 | U85: 0 | W85: =IF(ISBLANK(Budgets!C31),0,IF(AND(ISNUMBER(Budgets!C31), Budgets!C31>=0), 1- Budgets!C31, 0)) -> 0 | X85: 0
A86: Other inputs | C86: =IF(ISBLANK(Budgets!C32),1,IF(AND(ISNUMBER(Budgets!C32), Budgets!C32>=0), Budgets!C32, $C$65)) -> 1 | F86: 0 | L86: 0 | M86: 0 | N86: 0 | P86: 0 | Q86: 0 | T86: =IF(ISBLANK(Budgets!C32),1,IF(AND(ISNUMBER(Budgets!C32), Budgets!C32>=0), Budgets!C32, 0)) -> 1 | U86: 0 | W86: =IF(ISBLANK(Budgets!C32),0,IF(AND(ISNUMBER(Budgets!C32), Budgets!C32>=0), 1- Budgets!C32, 0)) -> 0 | X86: 0
A87: MACHINERY
A88: --fertilizer application | C88: =IF(ISBLANK(Budgets!C34),1,IF(AND(ISNUMBER(Budgets!C34), Budgets!C34>=0), Budgets!C34, $C$65)) -> 1 | F88: =D23 -> 2.676079018 | G88: =G23 ->  | H88: =J23 ->  | I88: =M23 ->  | J88: =P23 ->  | L88: =SUMPRODUCT($F$66:$J$66, F88:J88) -> 2.676079018 | M88: =L88 / $L$66 -> 2.676079018 | N88: =L88 / $L$67 -> 2.676079018 | P88: =C88 *N88 -> 2.676079018 | Q88: =N88-P88 -> 0 | T88: =IF(ISBLANK(Budgets!C34),1,IF(AND(ISNUMBER(Budgets!C34), Budgets!C34>=0), Budgets!C34, 0)) -> 1 | U88: 2.676079018 | W88: =IF(ISBLANK(Budgets!C34),0,IF(AND(ISNUMBER(Budgets!C34), Budgets!C34>=0), 1- Budgets!C34, 0)) -> 0 | X88: 0
A89: --harvesting | C89: =IF(ISBLANK(Budgets!C35),1,IF(AND(ISNUMBER(Budgets!C35), Budgets!C35>=0), Budgets!C35, $C$65)) -> 1 | F89: 9.779783282 | L89: 9.779783282 | M89: 9.779783282 | N89: 9.779783282 | P89: 9.779783282 | Q89: 0 | T89: =IF(ISBLANK(Budgets!C35),1,IF(AND(ISNUMBER(Budgets!C35), Budgets!C35>=0), Budgets!C35, 0)) -> 1 | U89: 9.779783282 | W89: =IF(ISBLANK(Budgets!C35),0,IF(AND(ISNUMBER(Budgets!C35), Budgets!C35>=0), 1- Budgets!C35, 0)) -> 0 | X89: 0
A90: --hauling | C90: =IF(ISBLANK(Budgets!C36),1,IF(AND(ISNUMBER(Budgets!C36), Budgets!C36>=0), Budgets!C36, $C$65)) -> 1 | F90: 5.559038134 | L90: 5.559038134 | M90: 5.559038134 | N90: 5.559038134 | P90: 5.559038134 | Q90: 0 | T90: =IF(ISBLANK(Budgets!C36),1,IF(AND(ISNUMBER(Budgets!C36), Budgets!C36>=0), Budgets!C36, 0)) -> 1 | U90: 5.559038134 | W90: =IF(ISBLANK(Budgets!C36),0,IF(AND(ISNUMBER(Budgets!C36), Budgets!C36>=0), 1- Budgets!C36, 0)) -> 0 | X90: 0
A91: --miscellaneous | C91: =IF(ISBLANK(Budgets!C37),1,IF(AND(ISNUMBER(Budgets!C37), Budgets!C37>=0), Budgets!C37, $C$65)) -> 1 | F91: 0 | L91: 0 | M91: 0 | N91: 0 | P91: 0 | Q91: 0 | T91: =IF(ISBLANK(Budgets!C37),1,IF(AND(ISNUMBER(Budgets!C37), Budgets!C37>=0), Budgets!C37, 0)) -> 1 | U91: 0 | W91: =IF(ISBLANK(Budgets!C37),0,IF(AND(ISNUMBER(Budgets!C37), Budgets!C37>=0), 1- Budgets!C37, 0)) -> 0 | X91: 0
A92: --planting | C92: =IF(ISBLANK(Budgets!C38),1,IF(AND(ISNUMBER(Budgets!C38), Budgets!C38>=0), Budgets!C38, $C$65)) -> 1 | F92: 7.647875223 | L92: 7.647875223 | M92: 7.647875223 | N92: 7.647875223 | P92: 7.647875223 | Q92: 0 | T92: =IF(ISBLANK(Budgets!C38),1,IF(AND(ISNUMBER(Budgets!C38), Budgets!C38>=0), Budgets!C38, 0)) -> 1 | U92: 7.647875223 | W92: =IF(ISBLANK(Budgets!C38),0,IF(AND(ISNUMBER(Budgets!C38), Budgets!C38>=0), 1- Budgets!C38, 0)) -> 0 | X92: 0
A93: --spraying | C93: =IF(ISBLANK(Budgets!C39),1,IF(AND(ISNUMBER(Budgets!C39), Budgets!C39>=0), Budgets!C39, $C$65)) -> 1 | F93: 3.353747692 | L93: 3.353747692 | M93: 3.353747692 | N93: 3.353747692 | P93: 3.353747692 | Q93: 0 | T93: =IF(ISBLANK(Budgets!C39),1,IF(AND(ISNUMBER(Budgets!C39), Budgets!C39>=0), Budgets!C39, 0)) -> 1 | U93: 3.353747692 | W93: =IF(ISBLANK(Budgets!C39),0,IF(AND(ISNUMBER(Budgets!C39), Budgets!C39>=0), 1- Budgets!C39, 0)) -> 0 | X93: 0
A94: --tillage | C94: =IF(ISBLANK(Budgets!C40),1,IF(AND(ISNUMBER(Budgets!C40), Budgets!C40>=0), Budgets!C40, $C$65)) -> 1 | F94: 0 | L94: 0 | M94: 0 | N94: 0 | P94: 0 | Q94: 0 | T94: =IF(ISBLANK(Budgets!C40),1,IF(AND(ISNUMBER(Budgets!C40), Budgets!C40>=0), Budgets!C40, 0)) -> 1 | U94: 0 | W94: =IF(ISBLANK(Budgets!C40),0,IF(AND(ISNUMBER(Budgets!C40), Budgets!C40>=0), 1- Budgets!C40, 0)) -> 0 | X94: 0
A95: --other | C95: =IF(ISBLANK(Budgets!C41),1,IF(AND(ISNUMBER(Budgets!C41), Budgets!C41>=0), Budgets!C41, $C$65)) -> 1 | F95: 0 | L95: 0 | M95: 0 | N95: 0 | P95: 0 | Q95: 0 | T95: =IF(ISBLANK(Budgets!C41),1,IF(AND(ISNUMBER(Budgets!C41), Budgets!C41>=0), Budgets!C41, 0)) -> 1 | U95: 0 | W95: =IF(ISBLANK(Budgets!C41),0,IF(AND(ISNUMBER(Budgets!C41), Budgets!C41>=0), 1- Budgets!C41, 0)) -> 0 | X95: 0
A96: --custom operations | C96: =IF(ISBLANK(Budgets!C42),1,IF(AND(ISNUMBER(Budgets!C42), Budgets!C42>=0), Budgets!C42, $C$65)) -> 1 | F96: 0 | L96: =SUMPRODUCT($F$66:$J$66, F96:J96) -> 0 | M96: =L96 / $L$66 -> 0 | N96: =L96 / $L$67 -> 0 | P96: =C96 *N96 -> 0 | Q96: =N96-P96 -> 0 | T96: =IF(ISBLANK(Budgets!C42),1,IF(AND(ISNUMBER(Budgets!C42), Budgets!C42>=0), Budgets!C42, 0)) -> 1 | U96: =L96*T96 -> 0 | W96: =IF(ISBLANK(Budgets!C42),0,IF(AND(ISNUMBER(Budgets!C42), Budgets!C42>=0), 1- Budgets!C42, 0)) -> 0 | X96: =W96*L96 -> 0
A97: Irrigation | C97: =IF(ISBLANK(Budgets!C43),1,IF(AND(ISNUMBER(Budgets!C43), Budgets!C43>=0), Budgets!C43, $C$65)) -> 1 | F97: 0 | L97: 0 | M97: 0 | N97: 0 | P97: 0 | Q97: 0 | T97: =IF(ISBLANK(Budgets!C43),1,IF(AND(ISNUMBER(Budgets!C43), Budgets!C43>=0), Budgets!C43, 0)) -> 1 | U97: 0 | W97: =IF(ISBLANK(Budgets!C43),0,IF(AND(ISNUMBER(Budgets!C43), Budgets!C43>=0), 1- Budgets!C43, 0)) -> 0 | X97: 0
A98: Interest on direct expenses | C98: =IF(ISBLANK(Budgets!C44),1,IF(AND(ISNUMBER(Budgets!C44), Budgets!C44>=0), Budgets!C44, $C$65)) -> 0.68 | F98: 4.2416557 | G98: 0 | H98: 0 | I98: 0 | J98: 0 | L98: 4.2416557 | M98: =SUM(M76:M97) * $B$2/2 -> 4.2416557 | N98: =SUM(N76:N97) * $B$2/2 -> 4.2416557 | O98: =SUM(O76:O97) * $B$2/2 -> 0 | P98: =IF(OR(ISBLANK(Budgets!C44), AND(Budgets!C44 >=0, Budgets!C44 <= 1)), C98*(N98+O98), SUM(P76:P97) * B2/2) -> 3.5238397 | Q98: =N98+O98-P98 -> 0.717816
B99: <Total Direct Expenses> | L99: =SUM(L76:L98) -> 145.630179 | M99: =SUM(M76:M98) -> 145.630179 | N99: =SUM(N76:N98) -> 145.630179 | O99: =SUM(O76:O98) -> 0 | P99: =SUM(P76:P98) -> 120.985163 | Q99: =N99-P99+O99 -> 24.645016 | R99: fixed
A102: Fixed Expenses
A103: --fertilizer application | C103: =IF(ISBLANK(Budgets!C49),1,IF(AND(ISNUMBER(Budgets!C49), Budgets!C49>=0), Budgets!C49, $C$65)) -> 1 | F103: =D38 -> 2.46576207 | G103: =G38 ->  | H103: =J38 ->  | I103: =M38 ->  | J103: =P38 ->  | L103: =SUMPRODUCT($F$66:$J$66, F103:J103) -> 2.46576207 | M103: =L103 / $L$66 -> 2.46576207 | N103: =L103 / $L$67 -> 2.46576207 | P103: =C103 *(N103 + O103) -> 2.46576207 | Q103: =N103-P103+O103 -> 0 | T103: =IF(ISBLANK(Budgets!C49),1,IF(AND(ISNUMBER(Budgets!C49), Budgets!C49>=0), Budgets!C49, 0)) -> 1 | U103: =L103*T103 -> 2.46576207 | W103: =IF(ISBLANK(Budgets!C49),0,IF(AND(ISNUMBER(Budgets!C49), Budgets!C49>=0), 1- Budgets!C49, 0)) -> 0 | X103: =W103*L103 -> 0
A104: --harvesting | C104: =IF(ISBLANK(Budgets!C50),1,IF(AND(ISNUMBER(Budgets!C50), Budgets!C50>=0), Budgets!C50, $C$65)) -> 1 | F104: =D39 -> 18.94833468 | G104: =G39 ->  | H104: =J39 ->  | I104: =M39 ->  | J104: =P39 ->  | L104: =SUMPRODUCT($F$66:$J$66, F104:J104) -> 18.94833468 | M104: =L104 / $L$66 -> 18.94833468 | N104: =L104 / $L$67 -> 18.94833468 | P104: =C104 *(N104 + O104) -> 18.94833468 | Q104: =N104-P104+O104 -> 0 | T104: =IF(ISBLANK(Budgets!C50),1,IF(AND(ISNUMBER(Budgets!C50), Budgets!C50>=0), Budgets!C50, 0)) -> 1 | U104: =L104*T104 -> 18.94833468 | W104: =IF(ISBLANK(Budgets!C50),0,IF(AND(ISNUMBER(Budgets!C50), Budgets!C50>=0), 1- Budgets!C50, 0)) -> 0 | X104: =W104*L104 -> 0
A105: --hauling | C105: =IF(ISBLANK(Budgets!C51),1,IF(AND(ISNUMBER(Budgets!C51), Budgets!C51>=0), Budgets!C51, $C$65)) -> 1 | F105: 6.369716955 | L105: 6.369716955 | M105: 6.369716955 | N105: 6.369716955 | P105: 6.369716955 | Q105: 0 | T105: =IF(ISBLANK(Budgets!C51),1,IF(AND(ISNUMBER(Budgets!C51), Budgets!C51>=0), Budgets!C51, 0)) -> 1 | U105: 6.369716955 | W105: =IF(ISBLANK(Budgets!C51),0,IF(AND(ISNUMBER(Budgets!C51), Budgets!C51>=0), 1- Budgets!C51, 0)) -> 0 | X105: 0
A106: --miscellaneous | C106: =IF(ISBLANK(Budgets!C52),1,IF(AND(ISNUMBER(Budgets!C52), Budgets!C52>=0), Budgets!C52, $C$65)) -> 1 | F106: 0 | L106: 0 | M106: 0 | N106: 0 | P106: 0 | Q106: 0 | T106: =IF(ISBLANK(Budgets!C52),1,IF(AND(ISNUMBER(Budgets!C52), Budgets!C52>=0), Budgets!C52, 0)) -> 1 | U106: 0 | W106: =IF(ISBLANK(Budgets!C52),0,IF(AND(ISNUMBER(Budgets!C52), Budgets!C52>=0), 1- Budgets!C52, 0)) -> 0 | X106: 0
A107: --planting | C107: =IF(ISBLANK(Budgets!C53),1,IF(AND(ISNUMBER(Budgets!C53), Budgets!C53>=0), Budgets!C53, $C$65)) -> 1 | F107: 8.652221877 | L107: 8.652221877 | M107: 8.652221877 | N107: 8.652221877 | P107: 8.652221877 | Q107: 0 | T107: =IF(ISBLANK(Budgets!C53),1,IF(AND(ISNUMBER(Budgets!C53), Budgets!C53>=0), Budgets!C53, 0)) -> 1 | U107: 8.652221877 | W107: =IF(ISBLANK(Budgets!C53),0,IF(AND(ISNUMBER(Budgets!C53), Budgets!C53>=0), 1- Budgets!C53, 0)) -> 0 | X107: 0
A108: --spraying | C108: =IF(ISBLANK(Budgets!C54),1,IF(AND(ISNUMBER(Budgets!C54), Budgets!C54>=0), Budgets!C54, $C$65)) -> 1 | F108: 3.561396096 | L108: 3.561396096 | M108: 3.561396096 | N108: 3.561396096 | P108: 3.561396096 | Q108: 0 | T108: =IF(ISBLANK(Budgets!C54),1,IF(AND(ISNUMBER(Budgets!C54), Budgets!C54>=0), Budgets!C54, 0)) -> 1 | U108: 3.561396096 | W108: =IF(ISBLANK(Budgets!C54),0,IF(AND(ISNUMBER(Budgets!C54), Budgets!C54>=0), 1- Budgets!C54, 0)) -> 0 | X108: 0
A109: --tillage | C109: =IF(ISBLANK(Budgets!C55),1,IF(AND(ISNUMBER(Budgets!C55), Budgets!C55>=0), Budgets!C55, $C$65)) -> 1 | F109: 0 | L109: 0 | M109: 0 | N109: 0 | P109: 0 | Q109: 0 | T109: =IF(ISBLANK(Budgets!C55),1,IF(AND(ISNUMBER(Budgets!C55), Budgets!C55>=0), Budgets!C55, 0)) -> 1 | U109: 0 | W109: =IF(ISBLANK(Budgets!C55),0,IF(AND(ISNUMBER(Budgets!C55), Budgets!C55>=0), 1- Budgets!C55, 0)) -> 0 | X109: 0
A110: --other | C110: =IF(ISBLANK(Budgets!C56),1,IF(AND(ISNUMBER(Budgets!C56), Budgets!C56>=0), Budgets!C56, $C$65)) -> 1 | F110: 0 | L110: 0 | M110: 0 | N110: 0 | P110: 0 | Q110: 0 | T110: =IF(ISBLANK(Budgets!C56),1,IF(AND(ISNUMBER(Budgets!C56), Budgets!C56>=0), Budgets!C56, 0)) -> 1 | U110: 0 | W110: =IF(ISBLANK(Budgets!C56),0,IF(AND(ISNUMBER(Budgets!C56), Budgets!C56>=0), 1- Budgets!C56, 0)) -> 0 | X110: 0
A111: Irrigation | C111: =IF(ISBLANK(Budgets!C57),1,IF(AND(ISNUMBER(Budgets!C57), Budgets!C57>=0), Budgets!C57, $C$65)) -> 0 | F111: 0 | L111: =SUMPRODUCT($F$66:$J$66, F111:J111) -> 0 | M111: =IF(B141, 0, L111 / $L$66) -> 0 | N111: =IF(B141, 0, L111 / $L$67) -> 0 | O111: =IF(B141, L111 / $L$67, 0) -> 0 | P111: =C111 *(N111 + O111) -> 0 | Q111: =N111-P111+O111 -> 0 | R111: fixed | T111: =IF(ISBLANK(Budgets!C57),1,IF(AND(ISNUMBER(Budgets!C57), Budgets!C57>=0), Budgets!C57, 0)) -> 0 | U111: 0 | W111: =IF(ISBLANK(Budgets!C57),0,IF(AND(ISNUMBER(Budgets!C57), Budgets!C57>=0), 1- Budgets!C57, 0)) -> 1 | X111: 0
A112: Cash rent ( $ / acre ) | F112: 50 | L112: =SUMPRODUCT($F$66:$J$66, F112:J112) + F62*G114 - F63*G114 -> 50 | M112: =L112 / $L$66 -> 50 | N112: =L112 / $L$67 -> 50 | O112: 0 | X112: =L112 -> 50
B113: <Total Fixed Expenses> | L113: =SUM(L103:L112) -> 89.99743168 | M113: =SUM(M103:M112) -> 89.99743168 | N113: =SUM(N103:N112) -> 89.99743168 | O113: =SUM(O103:O112) -> 0 | P113: =SUM(P103:P111) -> 39.99743168 | Q113: =SUM(Q103:Q111) -> 0
F114: Ave cash rent | G114: =AVERAGE(F112:J112) -> 50 | M114: =L114 / $L$66 -> 0 | N114: =L114 / $L$67 -> 0 | Q114: =N114-P114 -> 0 | Z114: Total
B115: <Total Specified Expenses> | L115: =L99+L113 -> 235.6276107 | M115: 235.6276107 | N115: 235.6276107 | O115: 0 | P115: 160.9825947 | Q115: 24.645016 | T115: Sum (w/o interest) | U115: =SUM(U76:U112) -> 106.613455 | X115: =SUM(X76:X112) -> 50 | Z115: =U115+X115 -> 156.613455
M116: =L116 / $L$66 -> 0 | N116: =L116 / $L$67 -> 0 | Q116: =N116-P116 -> 0 | T116: interest | U116: =(U115-SUM(U103:U111)) * $B$2/2 -> 1.9984807 | X116: =SUM(X76:X98) * B2/2 -> 0 | Z116: =U116+X116 -> 1.9984807
M117: =L117 / $L$66 -> 0 | N117: =L117 / $L$67 -> 0 | Q117: =N117-P117 -> 0 | T117: Total sum | U117: =U115+U116 -> 108.6119357 | X117: =X115+X116 -> 50 | Z117: =U117+X117 -> 158.6119357
B118: RETURN OVER DIRECT EXPENSES | L118: =L73 -L99 -> 129.369821 | M118: =M73 -M99 -> 129.369821 | N118: =N73 -N99 -> 129.369821 | O118: =O73 -O99 -> 50 | P118: =P73-P99 -> 66.01483695 | Q118: =Q73-Q99 -> 63.354984
B119: RETURN OVER ALL EXPENSES | L119: =L73 - L115 -> 39.37238927 | M119: =M73 - M115 -> 39.37238927 | N119: =N73 - N115 -> 39.37238927 | O119: =N112-O115 -> 50 | P119: =P73-P115 -> 26.01740527 | Q119: =Q73-Q115 -> 63.354984
T120: Operator share | U120: =U117/Z117 -> 0.6847652116
O121: Cash rent return to landlord
O122: =N112 - O78 -O98-O111 -> 50
B140: TRUE | C140: Landlkord pays for lime
B141: TRUE | C141: Landlord owns irrigation equipmnt

Sheet Data from budgets (hidden)
A1: =Budgets!E5 -> Wheat - North Central KS_Rotation
A2: =Budgets!E6 -> None
A3: =Budgets!E7 -> None
A4: =Budgets!E8 -> None
A5: =Budgets!E9 -> None
A7: Budget Number -> | B7: =IF(B8=1, HLOOKUP($A1,'Name of budgets'!$D$1:$BU$6, 6, FALSE), "") -> 43 | C7: =IF(C8=1, HLOOKUP($A2,'Name of budgets'!$D$1:$BU$6, 6, FALSE), "") ->  | D7: =IF(D8=1, HLOOKUP($A3,'Name of budgets'!$D$1:$BU$6, 6, FALSE), "") ->  | E7: =IF(E8=1, HLOOKUP($A4,'Name of budgets'!$D$1:$BU$6, 6, FALSE), "") ->  | F7: =IF(F8=1, HLOOKUP($A5,'Name of budgets'!$D$1:$BU$6, 6, FALSE), "") -> 
B8: =IF(AND(B9=TRUE, A1<>"None"), 1, 0) -> 1 | C8: =IF(AND(C9=TRUE, A2<>"None"), 1, 0) -> 0 | D8: =IF(AND(D9=TRUE, A3<>"None"), 1, 0) -> 0 | E8: =IF(AND(E9=TRUE, A4<>"None"), 1, 0) -> 0 | F8: =IF(AND(F9=TRUE, A5<>"None"), 1, 0) -> 0
B9: TRUE | C9: TRUE | D9: TRUE | E9: TRUE | F9: TRUE
A10: 1 | B10: =IF(OR($A$1="None", $B$9=FALSE), "", VLOOKUP(Table1[[#This Row],[Column1]],'Name of budgets'!$A$7:$BU$50, B$7+3)) -> Wheat - North Central KS_Rotation | C10: =IF(OR($A$2="None", $C$9=FALSE), "", VLOOKUP(Table1[[#This Row],[Column1]],'Name of budgets'!$A$7:$BU$50, C$7+3)) ->  | D10: =IF(OR($A$3="None", $D$9=FALSE), "", VLOOKUP(Table1[[#This Row],[Column1]],'Name of budgets'!$A$7:$BU$50, D$7+3)) ->  | E10: =IF(OR($A$4="None", $E$9=FALSE), "", VLOOKUP(Table1[[#This Row],[Column1]],'Name of budgets'!$A$7:$BU$50, E$7+3)) ->  | F10: =IF(OR($A$5="None", $F$9=FALSE), "", VLOOKUP(Table1[[#This Row],[Column1]],'Name of budgets'!$A$7:$BU$50, F$7+3)) ->  | I10: CROP
A11: 2 | B11: =IF(OR($A$1="None", $B$9=FALSE), "", VLOOKUP(Table1[[#This Row],[Column1]],'Name of budgets'!$A$7:$BU$50, B$7+3)) -> 50 | C11: =IF(OR($A$2="None", $C$9=FALSE), "", VLOOKUP(Table1[[#This Row],[Column1]],'Name of budgets'!$A$7:$BU$50, C$7+3)) ->  | D11: =IF(OR($A$3="None", $D$9=FALSE), "", VLOOKUP(Table1[[#This Row],[Column1]],'Name of budgets'!$A$7:$BU$50, D$7+3)) ->  | E11: =IF(OR($A$4="None", $E$9=FALSE), "", VLOOKUP(Table1[[#This Row],[Column1]],'Name of budgets'!$A$7:$BU$50, E$7+3)) ->  | F11: =IF(OR($A$5="None", $F$9=FALSE), "", VLOOKUP(Table1[[#This Row],[Column1]],'Name of budgets'!$A$7:$BU$50, F$7+3)) ->  | I11: Yield
A12: 3 | B12: =IF(OR($A$1="None", $B$9=FALSE), "", VLOOKUP(Table1[[#This Row],[Column1]],'Name of budgets'!$A$7:$BU$50, B$7+3)) -> 5.5 | C12: =IF(OR($A$2="None", $C$9=FALSE), "", VLOOKUP(Table1[[#This Row],[Column1]],'Name of budgets'!$A$7:$BU$50, C$7+3)) ->  | D12: =IF(OR($A$3="None", $D$9=FALSE), "", VLOOKUP(Table1[[#This Row],[Column1]],'Name of budgets'!$A$7:$BU$50, D$7+3)) ->  | E12: =IF(OR($A$4="None", $E$9=FALSE), "", VLOOKUP(Table1[[#This Row],[Column1]],'Name of budgets'!$A$7:$BU$50, E$7+3)) ->  | F12: =IF(OR($A$5="None", $F$9=FALSE), "", VLOOKUP(Table1[[#This Row],[Column1]],'Name of budgets'!$A$7:$BU$50, F$7+3)) ->  | I12: Price
A13: 4 | B13: =IF(OR($A$1="None", $B$9=FALSE), "", VLOOKUP(Table1[[#This Row],[Column1]],'Name of budgets'!$A$7:$BU$50, B$7+3)) -> 0 | C13: =IF(OR($A$2="None", $C$9=FALSE), "", VLOOKUP(Table1[[#This Row],[Column1]],'Name of budgets'!$A$7:$BU$50, C$7+3)) ->  | D13: =IF(OR($A$3="None", $D$9=FALSE), "", VLOOKUP(Table1[[#This Row],[Column1]],'Name of budgets'!$A$7:$BU$50, D$7+3)) ->  | E13: =IF(OR($A$4="None", $E$9=FALSE), "", VLOOKUP(Table1[[#This Row],[Column1]],'Name of budgets'!$A$7:$BU$50, E$7+3)) ->  | F13: =IF(OR($A$5="None", $F$9=FALSE), "", VLOOKUP(Table1[[#This Row],[Column1]],'Name of budgets'!$A$7:$BU$50, F$7+3)) ->  | I13: Other income
A14: 5 | B14: =IF(OR($A$1="None", $B$9=FALSE), "", VLOOKUP(Table1[[#This Row],[Column1]],'Name of budgets'!$A$7:$BU$50, B$7+3)) -> 0 | C14: =IF(OR($A$2="None", $C$9=FALSE), "", VLOOKUP(Table1[[#This Row],[Column1]],'Name of budgets'!$A$7:$BU$50, C$7+3)) ->  | D14: =IF(OR($A$3="None", $D$9=FALSE), "", VLOOKUP(Table1[[#This Row],[Column1]],'Name of budgets'!$A$7:$BU$50, D$7+3)) ->  | E14: =IF(OR($A$4="None", $E$9=FALSE), "", VLOOKUP(Table1[[#This Row],[Column1]],'Name of budgets'!$A$7:$BU$50, E$7+3)) ->  | F14: =IF(OR($A$5="None", $F$9=FALSE), "", VLOOKUP(Table1[[#This Row],[Column1]],'Name of budgets'!$A$7:$BU$50, F$7+3)) ->  | J14: <Total Revenue>
A15: 6 | B15: =IF(OR($A$1="None", $B$9=FALSE), "", VLOOKUP(Table1[[#This Row],[Column1]],'Name of budgets'!$A$7:$BU$50, B$7+3)) -> 0 | C15: =IF(OR($A$2="None", $C$9=FALSE), "", VLOOKUP(Table1[[#This Row],[Column1]],'Name of budgets'!$A$7:$BU$50, C$7+3)) ->  | D15: =IF(OR($A$3="None", $D$9=FALSE), "", VLOOKUP(Table1[[#This Row],[Column1]],'Name of budgets'!$A$7:$BU$50, D$7+3)) ->  | E15: =IF(OR($A$4="None", $E$9=FALSE), "", VLOOKUP(Table1[[#This Row],[Column1]],'Name of budgets'!$A$7:$BU$50, E$7+3)) ->  | F15: =IF(OR($A$5="None", $F$9=FALSE), "", VLOOKUP(Table1[[#This Row],[Column1]],'Name of budgets'!$A$7:$BU$50, F$7+3)) -> 
A16: 7 | B16: =IF(OR($A$1="None", $B$9=FALSE), "", VLOOKUP(Table1[[#This Row],[Column1]],'Name of budgets'!$A$7:$BU$50, B$7+3)) -> 0 | C16: =IF(OR($A$2="None", $C$9=FALSE), "", VLOOKUP(Table1[[#This Row],[Column1]],'Name of budgets'!$A$7:$BU$50, C$7+3)) ->  | D16: =IF(OR($A$3="None", $D$9=FALSE), "", VLOOKUP(Table1[[#This Row],[Column1]],'Name of budgets'!$A$7:$BU$50, D$7+3)) ->  | E16: =IF(OR($A$4="None", $E$9=FALSE), "", VLOOKUP(Table1[[#This Row],[Column1]],'Name of budgets'!$A$7:$BU$50, E$7+3)) ->  | F16: =IF(OR($A$5="None", $F$9=FALSE), "", VLOOKUP(Table1[[#This Row],[Column1]],'Name of budgets'!$A$7:$BU$50, F$7+3)) ->  | I16: Direct Expenses
A17: 8 | B17: =IF(OR($A$1="None", $B$9=FALSE), "", VLOOKUP(Table1[[#This Row],[Column1]],'Name of budgets'!$A$7:$BU$50, B$7+3)) -> 24.75 | C17: =IF(OR($A$2="None", $C$9=FALSE), "", VLOOKUP(Table1[[#This Row],[Column1]],'Name of budgets'!$A$7:$BU$50, C$7+3)) ->  | D17: =IF(OR($A$3="None", $D$9=FALSE), "", VLOOKUP(Table1[[#This Row],[Column1]],'Name of budgets'!$A$7:$BU$50, D$7+3)) ->  | E17: =IF(OR($A$4="None", $E$9=FALSE), "", VLOOKUP(Table1[[#This Row],[Column1]],'Name of budgets'!$A$7:$BU$50, E$7+3)) ->  | F17: =IF(OR($A$5="None", $F$9=FALSE), "", VLOOKUP(Table1[[#This Row],[Column1]],'Name of budgets'!$A$7:$BU$50, F$7+3)) ->  | J17: Seeds
A18: 9 | B18: =IF(OR($A$1="None", $B$9=FALSE), "", VLOOKUP(Table1[[#This Row],[Column1]],'Name of budgets'!$A$7:$BU$50, B$7+3)) -> 45.0725 | C18: =IF(OR($A$2="None", $C$9=FALSE), "", VLOOKUP(Table1[[#This Row],[Column1]],'Name of budgets'!$A$7:$BU$50, C$7+3)) ->  | D18: =IF(OR($A$3="None", $D$9=FALSE), "", VLOOKUP(Table1[[#This Row],[Column1]],'Name of budgets'!$A$7:$BU$50, D$7+3)) ->  | E18: =IF(OR($A$4="None", $E$9=FALSE), "", VLOOKUP(Table1[[#This Row],[Column1]],'Name of budgets'!$A$7:$BU$50, E$7+3)) ->  | F18: =IF(OR($A$5="None", $F$9=FALSE), "", VLOOKUP(Table1[[#This Row],[Column1]],'Name of budgets'!$A$7:$BU$50, F$7+3)) ->  | J18: Fertilizer (less lime)
A19: 10 | B19: =IF(OR($A$1="None", $B$9=FALSE), "", VLOOKUP(Table1[[#This Row],[Column1]],'Name of budgets'!$A$7:$BU$50, B$7+3)) -> 0 | C19: =IF(OR($A$2="None", $C$9=FALSE), "", VLOOKUP(Table1[[#This Row],[Column1]],'Name of budgets'!$A$7:$BU$50, C$7+3)) ->  | D19: =IF(OR($A$3="None", $D$9=FALSE), "", VLOOKUP(Table1[[#This Row],[Column1]],'Name of budgets'!$A$7:$BU$50, D$7+3)) ->  | E19: =IF(OR($A$4="None", $E$9=FALSE), "", VLOOKUP(Table1[[#This Row],[Column1]],'Name of budgets'!$A$7:$BU$50, E$7+3)) ->  | F19: =IF(OR($A$5="None", $F$9=FALSE), "", VLOOKUP(Table1[[#This Row],[Column1]],'Name of budgets'!$A$7:$BU$50, F$7+3)) ->  | J19: --Lime
A20: 11 | B20: =IF(OR($A$1="None", $B$9=FALSE), "", VLOOKUP(Table1[[#This Row],[Column1]],'Name of budgets'!$A$7:$BU$50, B$7+3)) -> 4.95 | C20: =IF(OR($A$2="None", $C$9=FALSE), "", VLOOKUP(Table1[[#This Row],[Column1]],'Name of budgets'!$A$7:$BU$50, C$7+3)) ->  | D20: =IF(OR($A$3="None", $D$9=FALSE), "", VLOOKUP(Table1[[#This Row],[Column1]],'Name of budgets'!$A$7:$BU$50, D$7+3)) ->  | E20: =IF(OR($A$4="None", $E$9=FALSE), "", VLOOKUP(Table1[[#This Row],[Column1]],'Name of budgets'!$A$7:$BU$50, E$7+3)) ->  | F20: =IF(OR($A$5="None", $F$9=FALSE), "", VLOOKUP(Table1[[#This Row],[Column1]],'Name of budgets'!$A$7:$BU$50, F$7+3)) ->  | J20: Herbicides
A21: 12 | B21: =IF(OR($A$1="None", $B$9=FALSE), "", VLOOKUP(Table1[[#This Row],[Column1]],'Name of budgets'!$A$7:$BU$50, B$7+3)) -> 21.1875 | C21: =IF(OR($A$2="None", $C$9=FALSE), "", VLOOKUP(Table1[[#This Row],[Column1]],'Name of budgets'!$A$7:$BU$50, C$7+3)) ->  | D21: =IF(OR($A$3="None", $D$9=FALSE), "", VLOOKUP(Table1[[#This Row],[Column1]],'Name of budgets'!$A$7:$BU$50, D$7+3)) ->  | E21: =IF(OR($A$4="None", $E$9=FALSE), "", VLOOKUP(Table1[[#This Row],[Column1]],'Name of budgets'!$A$7:$BU$50, E$7+3)) ->  | F21: =IF(OR($A$5="None", $F$9=FALSE), "", VLOOKUP(Table1[[#This Row],[Column1]],'Name of budgets'!$A$7:$BU$50, F$7+3)) ->  | J21: Fungicides
A22: 13 | B22: =IF(OR($A$1="None", $B$9=FALSE), "", VLOOKUP(Table1[[#This Row],[Column1]],'Name of budgets'!$A$7:$BU$50, B$7+3)) -> 0 | C22: =IF(OR($A$2="None", $C$9=FALSE), "", VLOOKUP(Table1[[#This Row],[Column1]],'Name of budgets'!$A$7:$BU$50, C$7+3)) ->  | D22: =IF(OR($A$3="None", $D$9=FALSE), "", VLOOKUP(Table1[[#This Row],[Column1]],'Name of budgets'!$A$7:$BU$50, D$7+3)) ->  | E22: =IF(OR($A$4="None", $E$9=FALSE), "", VLOOKUP(Table1[[#This Row],[Column1]],'Name of budgets'!$A$7:$BU$50, E$7+3)) ->  | F22: =IF(OR($A$5="None", $F$9=FALSE), "", VLOOKUP(Table1[[#This Row],[Column1]],'Name of budgets'!$A$7:$BU$50, F$7+3)) ->  | J22: Insecticides
A23: 14 | B23: =IF(OR($A$1="None", $B$9=FALSE), "", VLOOKUP(Table1[[#This Row],[Column1]],'Name of budgets'!$A$7:$BU$50, B$7+3)) -> 0 | C23: =IF(OR($A$2="None", $C$9=FALSE), "", VLOOKUP(Table1[[#This Row],[Column1]],'Name of budgets'!$A$7:$BU$50, C$7+3)) ->  | D23: =IF(OR($A$3="None", $D$9=FALSE), "", VLOOKUP(Table1[[#This Row],[Column1]],'Name of budgets'!$A$7:$BU$50, D$7+3)) ->  | E23: =IF(OR($A$4="None", $E$9=FALSE), "", VLOOKUP(Table1[[#This Row],[Column1]],'Name of budgets'!$A$7:$BU$50, E$7+3)) ->  | F23: =IF(OR($A$5="None", $F$9=FALSE), "", VLOOKUP(Table1[[#This Row],[Column1]],'Name of budgets'!$A$7:$BU$50, F$7+3)) ->  | J23: Crop consulting
A24: 15 | B24: =IF(OR($A$1="None", $B$9=FALSE), "", VLOOKUP(Table1[[#This Row],[Column1]],'Name of budgets'!$A$7:$BU$50, B$7+3)) -> 9.912 | C24: =IF(OR($A$2="None", $C$9=FALSE), "", VLOOKUP(Table1[[#This Row],[Column1]],'Name of budgets'!$A$7:$BU$50, C$7+3)) ->  | D24: =IF(OR($A$3="None", $D$9=FALSE), "", VLOOKUP(Table1[[#This Row],[Column1]],'Name of budgets'!$A$7:$BU$50, D$7+3)) ->  | E24: =IF(OR($A$4="None", $E$9=FALSE), "", VLOOKUP(Table1[[#This Row],[Column1]],'Name of budgets'!$A$7:$BU$50, E$7+3)) ->  | F24: =IF(OR($A$5="None", $F$9=FALSE), "", VLOOKUP(Table1[[#This Row],[Column1]],'Name of budgets'!$A$7:$BU$50, F$7+3)) ->  | J24: Crop insurance
A25: 16 | B25: =IF(OR($A$1="None", $B$9=FALSE), "", VLOOKUP(Table1[[#This Row],[Column1]],'Name of budgets'!$A$7:$BU$50, B$7+3)) -> 6.5 | C25: =IF(OR($A$2="None", $C$9=FALSE), "", VLOOKUP(Table1[[#This Row],[Column1]],'Name of budgets'!$A$7:$BU$50, C$7+3)) ->  | D25: =IF(OR($A$3="None", $D$9=FALSE), "", VLOOKUP(Table1[[#This Row],[Column1]],'Name of budgets'!$A$7:$BU$50, D$7+3)) ->  | E25: =IF(OR($A$4="None", $E$9=FALSE), "", VLOOKUP(Table1[[#This Row],[Column1]],'Name of budgets'!$A$7:$BU$50, E$7+3)) ->  | F25: =IF(OR($A$5="None", $F$9=FALSE), "", VLOOKUP(Table1[[#This Row],[Column1]],'Name of budgets'!$A$7:$BU$50, F$7+3)) ->  | J25: Miscellaneous
A26: 17 | B26: =IF(OR($A$1="None", $B$9=FALSE), "", VLOOKUP(Table1[[#This Row],[Column1]],'Name of budgets'!$A$7:$BU$50, B$7+3)) -> 0 | C26: =IF(OR($A$2="None", $C$9=FALSE), "", VLOOKUP(Table1[[#This Row],[Column1]],'Name of budgets'!$A$7:$BU$50, C$7+3)) ->  | D26: =IF(OR($A$3="None", $D$9=FALSE), "", VLOOKUP(Table1[[#This Row],[Column1]],'Name of budgets'!$A$7:$BU$50, D$7+3)) ->  | E26: =IF(OR($A$4="None", $E$9=FALSE), "", VLOOKUP(Table1[[#This Row],[Column1]],'Name of budgets'!$A$7:$BU$50, E$7+3)) ->  | F26: =IF(OR($A$5="None", $F$9=FALSE), "", VLOOKUP(Table1[[#This Row],[Column1]],'Name of budgets'!$A$7:$BU$50, F$7+3)) ->  | J26: Surfactant
A27: 18 | B27: =IF(OR($A$1="None", $B$9=FALSE), "", VLOOKUP(Table1[[#This Row],[Column1]],'Name of budgets'!$A$7:$BU$50, B$7+3)) -> 0 | C27: =IF(OR($A$2="None", $C$9=FALSE), "", VLOOKUP(Table1[[#This Row],[Column1]],'Name of budgets'!$A$7:$BU$50, C$7+3)) ->  | D27: =IF(OR($A$3="None", $D$9=FALSE), "", VLOOKUP(Table1[[#This Row],[Column1]],'Name of budgets'!$A$7:$BU$50, D$7+3)) ->  | E27: =IF(OR($A$4="None", $E$9=FALSE), "", VLOOKUP(Table1[[#This Row],[Column1]],'Name of budgets'!$A$7:$BU$50, E$7+3)) ->  | F27: =IF(OR($A$5="None", $F$9=FALSE), "", VLOOKUP(Table1[[#This Row],[Column1]],'Name of budgets'!$A$7:$BU$50, F$7+3)) ->  | J27: Other inputs
A28: 19 | B28: =IF(OR($A$1="None", $B$9=FALSE), "", VLOOKUP(Table1[[#This Row],[Column1]],'Name of budgets'!$A$7:$BU$50, B$7+3)) -> 0 | C28: =IF(OR($A$2="None", $C$9=FALSE), "", VLOOKUP(Table1[[#This Row],[Column1]],'Name of budgets'!$A$7:$BU$50, C$7+3)) ->  | D28: =IF(OR($A$3="None", $D$9=FALSE), "", VLOOKUP(Table1[[#This Row],[Column1]],'Name of budgets'!$A$7:$BU$50, D$7+3)) ->  | E28: =IF(OR($A$4="None", $E$9=FALSE), "", VLOOKUP(Table1[[#This Row],[Column1]],'Name of budgets'!$A$7:$BU$50, E$7+3)) ->  | F28: =IF(OR($A$5="None", $F$9=FALSE), "", VLOOKUP(Table1[[#This Row],[Column1]],'Name of budgets'!$A$7:$BU$50, F$7+3)) ->  | J28: MACHINERY
A29: 20 | B29: =IF(OR($A$1="None", $B$9=FALSE), "", VLOOKUP(Table1[[#This Row],[Column1]],'Name of budgets'!$A$7:$BU$50, B$7+3)) -> 2.676079018 | C29: =IF(OR($A$2="None", $C$9=FALSE), "", VLOOKUP(Table1[[#This Row],[Column1]],'Name of budgets'!$A$7:$BU$50, C$7+3)) ->  | D29: =IF(OR($A$3="None", $D$9=FALSE), "", VLOOKUP(Table1[[#This Row],[Column1]],'Name of budgets'!$A$7:$BU$50, D$7+3)) ->  | E29: =IF(OR($A$4="None", $E$9=FALSE), "", VLOOKUP(Table1[[#This Row],[Column1]],'Name of budgets'!$A$7:$BU$50, E$7+3)) ->  | F29: =IF(OR($A$5="None", $F$9=FALSE), "", VLOOKUP(Table1[[#This Row],[Column1]],'Name of budgets'!$A$7:$BU$50, F$7+3)) ->  | J29: --fertilizer application
A30: 21 | B30: =IF(OR($A$1="None", $B$9=FALSE), "", VLOOKUP(Table1[[#This Row],[Column1]],'Name of budgets'!$A$7:$BU$50, B$7+3)) -> 9.779783282 | C30: =IF(OR($A$2="None", $C$9=FALSE), "", VLOOKUP(Table1[[#This Row],[Column1]],'Name of budgets'!$A$7:$BU$50, C$7+3)) ->  | D30: =IF(OR($A$3="None", $D$9=FALSE), "", VLOOKUP(Table1[[#This Row],[Column1]],'Name of budgets'!$A$7:$BU$50, D$7+3)) ->  | E30: =IF(OR($A$4="None", $E$9=FALSE), "", VLOOKUP(Table1[[#This Row],[Column1]],'Name of budgets'!$A$7:$BU$50, E$7+3)) ->  | F30: =IF(OR($A$5="None", $F$9=FALSE), "", VLOOKUP(Table1[[#This Row],[Column1]],'Name of budgets'!$A$7:$BU$50, F$7+3)) ->  | J30: --harvesting
A31: 22 | B31: =IF(OR($A$1="None", $B$9=FALSE), "", VLOOKUP(Table1[[#This Row],[Column1]],'Name of budgets'!$A$7:$BU$50, B$7+3)) -> 5.559038134 | C31: =IF(OR($A$2="None", $C$9=FALSE), "", VLOOKUP(Table1[[#This Row],[Column1]],'Name of budgets'!$A$7:$BU$50, C$7+3)) ->  | D31: =IF(OR($A$3="None", $D$9=FALSE), "", VLOOKUP(Table1[[#This Row],[Column1]],'Name of budgets'!$A$7:$BU$50, D$7+3)) ->  | E31: =IF(OR($A$4="None", $E$9=FALSE), "", VLOOKUP(Table1[[#This Row],[Column1]],'Name of budgets'!$A$7:$BU$50, E$7+3)) ->  | F31: =IF(OR($A$5="None", $F$9=FALSE), "", VLOOKUP(Table1[[#This Row],[Column1]],'Name of budgets'!$A$7:$BU$50, F$7+3)) ->  | J31: --hauling
A32: 23 | B32: =IF(OR($A$1="None", $B$9=FALSE), "", VLOOKUP(Table1[[#This Row],[Column1]],'Name of budgets'!$A$7:$BU$50, B$7+3)) -> 0 | C32: =IF(OR($A$2="None", $C$9=FALSE), "", VLOOKUP(Table1[[#This Row],[Column1]],'Name of budgets'!$A$7:$BU$50, C$7+3)) ->  | D32: =IF(OR($A$3="None", $D$9=FALSE), "", VLOOKUP(Table1[[#This Row],[Column1]],'Name of budgets'!$A$7:$BU$50, D$7+3)) ->  | E32: =IF(OR($A$4="None", $E$9=FALSE), "", VLOOKUP(Table1[[#This Row],[Column1]],'Name of budgets'!$A$7:$BU$50, E$7+3)) ->  | F32: =IF(OR($A$5="None", $F$9=FALSE), "", VLOOKUP(Table1[[#This Row],[Column1]],'Name of budgets'!$A$7:$BU$50, F$7+3)) ->  | J32: --miscellaneous
A33: 24 | B33: =IF(OR($A$1="None", $B$9=FALSE), "", VLOOKUP(Table1[[#This Row],[Column1]],'Name of budgets'!$A$7:$BU$50, B$7+3)) -> 7.647875223 | C33: =IF(OR($A$2="None", $C$9=FALSE), "", VLOOKUP(Table1[[#This Row],[Column1]],'Name of budgets'!$A$7:$BU$50, C$7+3)) ->  | D33: =IF(OR($A$3="None", $D$9=FALSE), "", VLOOKUP(Table1[[#This Row],[Column1]],'Name of budgets'!$A$7:$BU$50, D$7+3)) ->  | E33: =IF(OR($A$4="None", $E$9=FALSE), "", VLOOKUP(Table1[[#This Row],[Column1]],'Name of budgets'!$A$7:$BU$50, E$7+3)) ->  | F33: =IF(OR($A$5="None", $F$9=FALSE), "", VLOOKUP(Table1[[#This Row],[Column1]],'Name of budgets'!$A$7:$BU$50, F$7+3)) ->  | J33: --planting
A34: 25 | B34: =IF(OR($A$1="None", $B$9=FALSE), "", VLOOKUP(Table1[[#This Row],[Column1]],'Name of budgets'!$A$7:$BU$50, B$7+3)) -> 3.353747692 | C34: =IF(OR($A$2="None", $C$9=FALSE), "", VLOOKUP(Table1[[#This Row],[Column1]],'Name of budgets'!$A$7:$BU$50, C$7+3)) ->  | D34: =IF(OR($A$3="None", $D$9=FALSE), "", VLOOKUP(Table1[[#This Row],[Column1]],'Name of budgets'!$A$7:$BU$50, D$7+3)) ->  | E34: =IF(OR($A$4="None", $E$9=FALSE), "", VLOOKUP(Table1[[#This Row],[Column1]],'Name of budgets'!$A$7:$BU$50, E$7+3)) ->  | F34: =IF(OR($A$5="None", $F$9=FALSE), "", VLOOKUP(Table1[[#This Row],[Column1]],'Name of budgets'!$A$7:$BU$50, F$7+3)) ->  | J34: --spraying
A35: 26 | B35: =IF(OR($A$1="None", $B$9=FALSE), "", VLOOKUP(Table1[[#This Row],[Column1]],'Name of budgets'!$A$7:$BU$50, B$7+3)) -> 0 | C35: =IF(OR($A$2="None", $C$9=FALSE), "", VLOOKUP(Table1[[#This Row],[Column1]],'Name of budgets'!$A$7:$BU$50, C$7+3)) ->  | D35: =IF(OR($A$3="None", $D$9=FALSE), "", VLOOKUP(Table1[[#This Row],[Column1]],'Name of budgets'!$A$7:$BU$50, D$7+3)) ->  | E35: =IF(OR($A$4="None", $E$9=FALSE), "", VLOOKUP(Table1[[#This Row],[Column1]],'Name of budgets'!$A$7:$BU$50, E$7+3)) ->  | F35: =IF(OR($A$5="None", $F$9=FALSE), "", VLOOKUP(Table1[[#This Row],[Column1]],'Name of budgets'!$A$7:$BU$50, F$7+3)) ->  | J35: --tillage
A36: 27 | B36: =IF(OR($A$1="None", $B$9=FALSE), "", VLOOKUP(Table1[[#This Row],[Column1]],'Name of budgets'!$A$7:$BU$50, B$7+3)) -> 0 | C36: =IF(OR($A$2="None", $C$9=FALSE), "", VLOOKUP(Table1[[#This Row],[Column1]],'Name of budgets'!$A$7:$BU$50, C$7+3)) ->  | D36: =IF(OR($A$3="None", $D$9=FALSE), "", VLOOKUP(Table1[[#This Row],[Column1]],'Name of budgets'!$A$7:$BU$50, D$7+3)) ->  | E36: =IF(OR($A$4="None", $E$9=FALSE), "", VLOOKUP(Table1[[#This Row],[Column1]],'Name of budgets'!$A$7:$BU$50, E$7+3)) ->  | F36: =IF(OR($A$5="None", $F$9=FALSE), "", VLOOKUP(Table1[[#This Row],[Column1]],'Name of budgets'!$A$7:$BU$50, F$7+3)) ->  | J36: --other
A37: 28 | B37: =IF(OR($A$1="None", $B$9=FALSE), "", VLOOKUP(Table1[[#This Row],[Column1]],'Name of budgets'!$A$7:$BU$50, B$7+3)) -> 0 | C37: =IF(OR($A$2="None", $C$9=FALSE), "", VLOOKUP(Table1[[#This Row],[Column1]],'Name of budgets'!$A$7:$BU$50, C$7+3)) ->  | D37: =IF(OR($A$3="None", $D$9=FALSE), "", VLOOKUP(Table1[[#This Row],[Column1]],'Name of budgets'!$A$7:$BU$50, D$7+3)) ->  | E37: =IF(OR($A$4="None", $E$9=FALSE), "", VLOOKUP(Table1[[#This Row],[Column1]],'Name of budgets'!$A$7:$BU$50, E$7+3)) ->  | F37: =IF(OR($A$5="None", $F$9=FALSE), "", VLOOKUP(Table1[[#This Row],[Column1]],'Name of budgets'!$A$7:$BU$50, F$7+3)) ->  | J37: --custom operations
A38: 29 | B38: =IF(OR($A$1="None", $B$9=FALSE), "", VLOOKUP(Table1[[#This Row],[Column1]],'Name of budgets'!$A$7:$BU$50, B$7+3)) -> 0 | C38: =IF(OR($A$2="None", $C$9=FALSE), "", VLOOKUP(Table1[[#This Row],[Column1]],'Name of budgets'!$A$7:$BU$50, C$7+3)) ->  | D38: =IF(OR($A$3="None", $D$9=FALSE), "", VLOOKUP(Table1[[#This Row],[Column1]],'Name of budgets'!$A$7:$BU$50, D$7+3)) ->  | E38: =IF(OR($A$4="None", $E$9=FALSE), "", VLOOKUP(Table1[[#This Row],[Column1]],'Name of budgets'!$A$7:$BU$50, E$7+3)) ->  | F38: =IF(OR($A$5="None", $F$9=FALSE), "", VLOOKUP(Table1[[#This Row],[Column1]],'Name of budgets'!$A$7:$BU$50, F$7+3)) ->  | J38: Irrigation
A39: 30 | B39: =IF(OR($A$1="None", $B$9=FALSE), "", VLOOKUP(Table1[[#This Row],[Column1]],'Name of budgets'!$A$7:$BU$50, B$7+3)) -> 0 | C39: =IF(OR($A$2="None", $C$9=FALSE), "", VLOOKUP(Table1[[#This Row],[Column1]],'Name of budgets'!$A$7:$BU$50, C$7+3)) ->  | D39: =IF(OR($A$3="None", $D$9=FALSE), "", VLOOKUP(Table1[[#This Row],[Column1]],'Name of budgets'!$A$7:$BU$50, D$7+3)) ->  | E39: =IF(OR($A$4="None", $E$9=FALSE), "", VLOOKUP(Table1[[#This Row],[Column1]],'Name of budgets'!$A$7:$BU$50, E$7+3)) ->  | F39: =IF(OR($A$5="None", $F$9=FALSE), "", VLOOKUP(Table1[[#This Row],[Column1]],'Name of budgets'!$A$7:$BU$50, F$7+3)) ->  | J39: Interest on direct expenses
A40: 31 | B40: =IF(OR($A$1="None", $B$9=FALSE), "", VLOOKUP(Table1[[#This Row],[Column1]],'Name of budgets'!$A$7:$BU$50, B$7+3)) -> 0 | C40: =IF(OR($A$2="None", $C$9=FALSE), "", VLOOKUP(Table1[[#This Row],[Column1]],'Name of budgets'!$A$7:$BU$50, C$7+3)) ->  | D40: =IF(OR($A$3="None", $D$9=FALSE), "", VLOOKUP(Table1[[#This Row],[Column1]],'Name of budgets'!$A$7:$BU$50, D$7+3)) ->  | E40: =IF(OR($A$4="None", $E$9=FALSE), "", VLOOKUP(Table1[[#This Row],[Column1]],'Name of budgets'!$A$7:$BU$50, E$7+3)) ->  | F40: =IF(OR($A$5="None", $F$9=FALSE), "", VLOOKUP(Table1[[#This Row],[Column1]],'Name of budgets'!$A$7:$BU$50, F$7+3)) ->  | J40: <Total Direct Expenses>
A41: 32 | B41: =IF(OR($A$1="None", $B$9=FALSE), "", VLOOKUP(Table1[[#This Row],[Column1]],'Name of budgets'!$A$7:$BU$50, B$7+3)) -> 0 | C41: =IF(OR($A$2="None", $C$9=FALSE), "", VLOOKUP(Table1[[#This Row],[Column1]],'Name of budgets'!$A$7:$BU$50, C$7+3)) ->  | D41: =IF(OR($A$3="None", $D$9=FALSE), "", VLOOKUP(Table1[[#This Row],[Column1]],'Name of budgets'!$A$7:$BU$50, D$7+3)) ->  | E41: =IF(OR($A$4="None", $E$9=FALSE), "", VLOOKUP(Table1[[#This Row],[Column1]],'Name of budgets'!$A$7:$BU$50, E$7+3)) ->  | F41: =IF(OR($A$5="None", $F$9=FALSE), "", VLOOKUP(Table1[[#This Row],[Column1]],'Name of budgets'!$A$7:$BU$50, F$7+3)) -> 
A42: 33 | B42: =IF(OR($A$1="None", $B$9=FALSE), "", VLOOKUP(Table1[[#This Row],[Column1]],'Name of budgets'!$A$7:$BU$50, B$7+3)) -> 0 | C42: =IF(OR($A$2="None", $C$9=FALSE), "", VLOOKUP(Table1[[#This Row],[Column1]],'Name of budgets'!$A$7:$BU$50, C$7+3)) ->  | D42: =IF(OR($A$3="None", $D$9=FALSE), "", VLOOKUP(Table1[[#This Row],[Column1]],'Name of budgets'!$A$7:$BU$50, D$7+3)) ->  | E42: =IF(OR($A$4="None", $E$9=FALSE), "", VLOOKUP(Table1[[#This Row],[Column1]],'Name of budgets'!$A$7:$BU$50, E$7+3)) ->  | F42: =IF(OR($A$5="None", $F$9=FALSE), "", VLOOKUP(Table1[[#This Row],[Column1]],'Name of budgets'!$A$7:$BU$50, F$7+3)) ->  | I42: Fixed expenses
A43: 34 | B43: =IF(OR($A$1="None", $B$9=FALSE), "", VLOOKUP(Table1[[#This Row],[Column1]],'Name of budgets'!$A$7:$BU$50, B$7+3)) -> 0 | C43: =IF(OR($A$2="None", $C$9=FALSE), "", VLOOKUP(Table1[[#This Row],[Column1]],'Name of budgets'!$A$7:$BU$50, C$7+3)) ->  | D43: =IF(OR($A$3="None", $D$9=FALSE), "", VLOOKUP(Table1[[#This Row],[Column1]],'Name of budgets'!$A$7:$BU$50, D$7+3)) ->  | E43: =IF(OR($A$4="None", $E$9=FALSE), "", VLOOKUP(Table1[[#This Row],[Column1]],'Name of budgets'!$A$7:$BU$50, E$7+3)) ->  | F43: =IF(OR($A$5="None", $F$9=FALSE), "", VLOOKUP(Table1[[#This Row],[Column1]],'Name of budgets'!$A$7:$BU$50, F$7+3)) ->  | J43: MACHINERY
A44: 35 | B44: =IF(OR($A$1="None", $B$9=FALSE), "", VLOOKUP(Table1[[#This Row],[Column1]],'Name of budgets'!$A$7:$BU$50, B$7+3)) -> 2.46576207 | C44: =IF(OR($A$2="None", $C$9=FALSE), "", VLOOKUP(Table1[[#This Row],[Column1]],'Name of budgets'!$A$7:$BU$50, C$7+3)) ->  | D44: =IF(OR($A$3="None", $D$9=FALSE), "", VLOOKUP(Table1[[#This Row],[Column1]],'Name of budgets'!$A$7:$BU$50, D$7+3)) ->  | E44: =IF(OR($A$4="None", $E$9=FALSE), "", VLOOKUP(Table1[[#This Row],[Column1]],'Name of budgets'!$A$7:$BU$50, E$7+3)) ->  | F44: =IF(OR($A$5="None", $F$9=FALSE), "", VLOOKUP(Table1[[#This Row],[Column1]],'Name of budgets'!$A$7:$BU$50, F$7+3)) ->  | J44: --fertilizer application
A45: 36 | B45: =IF(OR($A$1="None", $B$9=FALSE), "", VLOOKUP(Table1[[#This Row],[Column1]],'Name of budgets'!$A$7:$BU$50, B$7+3)) -> 18.94833468 | C45: =IF(OR($A$2="None", $C$9=FALSE), "", VLOOKUP(Table1[[#This Row],[Column1]],'Name of budgets'!$A$7:$BU$50, C$7+3)) ->  | D45: =IF(OR($A$3="None", $D$9=FALSE), "", VLOOKUP(Table1[[#This Row],[Column1]],'Name of budgets'!$A$7:$BU$50, D$7+3)) ->  | E45: =IF(OR($A$4="None", $E$9=FALSE), "", VLOOKUP(Table1[[#This Row],[Column1]],'Name of budgets'!$A$7:$BU$50, E$7+3)) ->  | F45: =IF(OR($A$5="None", $F$9=FALSE), "", VLOOKUP(Table1[[#This Row],[Column1]],'Name of budgets'!$A$7:$BU$50, F$7+3)) ->  | J45: --harvesting
A46: 37 | B46: =IF(OR($A$1="None", $B$9=FALSE), "", VLOOKUP(Table1[[#This Row],[Column1]],'Name of budgets'!$A$7:$BU$50, B$7+3)) -> 6.369716955 | C46: =IF(OR($A$2="None", $C$9=FALSE), "", VLOOKUP(Table1[[#This Row],[Column1]],'Name of budgets'!$A$7:$BU$50, C$7+3)) ->  | D46: =IF(OR($A$3="None", $D$9=FALSE), "", VLOOKUP(Table1[[#This Row],[Column1]],'Name of budgets'!$A$7:$BU$50, D$7+3)) ->  | E46: =IF(OR($A$4="None", $E$9=FALSE), "", VLOOKUP(Table1[[#This Row],[Column1]],'Name of budgets'!$A$7:$BU$50, E$7+3)) ->  | F46: =IF(OR($A$5="None", $F$9=FALSE), "", VLOOKUP(Table1[[#This Row],[Column1]],'Name of budgets'!$A$7:$BU$50, F$7+3)) ->  | J46: --hauling
A47: 38 | B47: =IF(OR($A$1="None", $B$9=FALSE), "", VLOOKUP(Table1[[#This Row],[Column1]],'Name of budgets'!$A$7:$BU$50, B$7+3)) -> 0 | C47: =IF(OR($A$2="None", $C$9=FALSE), "", VLOOKUP(Table1[[#This Row],[Column1]],'Name of budgets'!$A$7:$BU$50, C$7+3)) ->  | D47: =IF(OR($A$3="None", $D$9=FALSE), "", VLOOKUP(Table1[[#This Row],[Column1]],'Name of budgets'!$A$7:$BU$50, D$7+3)) ->  | E47: =IF(OR($A$4="None", $E$9=FALSE), "", VLOOKUP(Table1[[#This Row],[Column1]],'Name of budgets'!$A$7:$BU$50, E$7+3)) ->  | F47: =IF(OR($A$5="None", $F$9=FALSE), "", VLOOKUP(Table1[[#This Row],[Column1]],'Name of budgets'!$A$7:$BU$50, F$7+3)) ->  | J47: --miscellaneous
A48: 39 | B48: =IF(OR($A$1="None", $B$9=FALSE), "", VLOOKUP(Table1[[#This Row],[Column1]],'Name of budgets'!$A$7:$BU$50, B$7+3)) -> 8.652221877 | C48: =IF(OR($A$2="None", $C$9=FALSE), "", VLOOKUP(Table1[[#This Row],[Column1]],'Name of budgets'!$A$7:$BU$50, C$7+3)) ->  | D48: =IF(OR($A$3="None", $D$9=FALSE), "", VLOOKUP(Table1[[#This Row],[Column1]],'Name of budgets'!$A$7:$BU$50, D$7+3)) ->  | E48: =IF(OR($A$4="None", $E$9=FALSE), "", VLOOKUP(Table1[[#This Row],[Column1]],'Name of budgets'!$A$7:$BU$50, E$7+3)) ->  | F48: =IF(OR($A$5="None", $F$9=FALSE), "", VLOOKUP(Table1[[#This Row],[Column1]],'Name of budgets'!$A$7:$BU$50, F$7+3)) ->  | J48: --planting
A49: 40 | B49: =IF(OR($A$1="None", $B$9=FALSE), "", VLOOKUP(Table1[[#This Row],[Column1]],'Name of budgets'!$A$7:$BU$50, B$7+3)) -> 3.561396096 | C49: =IF(OR($A$2="None", $C$9=FALSE), "", VLOOKUP(Table1[[#This Row],[Column1]],'Name of budgets'!$A$7:$BU$50, C$7+3)) ->  | D49: =IF(OR($A$3="None", $D$9=FALSE), "", VLOOKUP(Table1[[#This Row],[Column1]],'Name of budgets'!$A$7:$BU$50, D$7+3)) ->  | E49: =IF(OR($A$4="None", $E$9=FALSE), "", VLOOKUP(Table1[[#This Row],[Column1]],'Name of budgets'!$A$7:$BU$50, E$7+3)) ->  | F49: =IF(OR($A$5="None", $F$9=FALSE), "", VLOOKUP(Table1[[#This Row],[Column1]],'Name of budgets'!$A$7:$BU$50, F$7+3)) ->  | J49: --spraying
A50: 41 | B50: =IF(OR($A$1="None", $B$9=FALSE), "", VLOOKUP(Table1[[#This Row],[Column1]],'Name of budgets'!$A$7:$BU$50, B$7+3)) -> 0 | C50: =IF(OR($A$2="None", $C$9=FALSE), "", VLOOKUP(Table1[[#This Row],[Column1]],'Name of budgets'!$A$7:$BU$50, C$7+3)) ->  | D50: =IF(OR($A$3="None", $D$9=FALSE), "", VLOOKUP(Table1[[#This Row],[Column1]],'Name of budgets'!$A$7:$BU$50, D$7+3)) ->  | E50: =IF(OR($A$4="None", $E$9=FALSE), "", VLOOKUP(Table1[[#This Row],[Column1]],'Name of budgets'!$A$7:$BU$50, E$7+3)) ->  | F50: =IF(OR($A$5="None", $F$9=FALSE), "", VLOOKUP(Table1[[#This Row],[Column1]],'Name of budgets'!$A$7:$BU$50, F$7+3)) ->  | J50: --tillage
A51: 42 | B51: =IF(OR($A$1="None", $B$9=FALSE), "", VLOOKUP(Table1[[#This Row],[Column1]],'Name of budgets'!$A$7:$BU$50, B$7+3)) -> 0 | C51: =IF(OR($A$2="None", $C$9=FALSE), "", VLOOKUP(Table1[[#This Row],[Column1]],'Name of budgets'!$A$7:$BU$50, C$7+3)) ->  | D51: =IF(OR($A$3="None", $D$9=FALSE), "", VLOOKUP(Table1[[#This Row],[Column1]],'Name of budgets'!$A$7:$BU$50, D$7+3)) ->  | E51: =IF(OR($A$4="None", $E$9=FALSE), "", VLOOKUP(Table1[[#This Row],[Column1]],'Name of budgets'!$A$7:$BU$50, E$7+3)) ->  | F51: =IF(OR($A$5="None", $F$9=FALSE), "", VLOOKUP(Table1[[#This Row],[Column1]],'Name of budgets'!$A$7:$BU$50, F$7+3)) ->  | J51: --other
A52: 43 | B52: =IF(OR($A$1="None", $B$9=FALSE), "", VLOOKUP(Table1[[#This Row],[Column1]],'Name of budgets'!$A$7:$BU$50, B$7+3)) -> 0 | C52: =IF(OR($A$2="None", $C$9=FALSE), "", VLOOKUP(Table1[[#This Row],[Column1]],'Name of budgets'!$A$7:$BU$50, C$7+3)) ->  | D52: =IF(OR($A$3="None", $D$9=FALSE), "", VLOOKUP(Table1[[#This Row],[Column1]],'Name of budgets'!$A$7:$BU$50, D$7+3)) ->  | E52: =IF(OR($A$4="None", $E$9=FALSE), "", VLOOKUP(Table1[[#This Row],[Column1]],'Name of budgets'!$A$7:$BU$50, E$7+3)) ->  | F52: =IF(OR($A$5="None", $F$9=FALSE), "", VLOOKUP(Table1[[#This Row],[Column1]],'Name of budgets'!$A$7:$BU$50, F$7+3)) ->  | J52: Irrigation
A53: 44 | B53: =IF(OR($A$1="None", $B$9=FALSE), "", VLOOKUP(Table1[[#This Row],[Column1]],'Name of budgets'!$A$7:$BU$50, B$7+3)) -> 67 | C53: =IF(OR($A$2="None", $C$9=FALSE), "", VLOOKUP(Table1[[#This Row],[Column1]],'Name of budgets'!$A$7:$BU$50, C$7+3)) ->  | D53: =IF(OR($A$3="None", $D$9=FALSE), "", VLOOKUP(Table1[[#This Row],[Column1]],'Name of budgets'!$A$7:$BU$50, D$7+3)) ->  | E53: =IF(OR($A$4="None", $E$9=FALSE), "", VLOOKUP(Table1[[#This Row],[Column1]],'Name of budgets'!$A$7:$BU$50, E$7+3)) ->  | F53: =IF(OR($A$5="None", $F$9=FALSE), "", VLOOKUP(Table1[[#This Row],[Column1]],'Name of budgets'!$A$7:$BU$50, F$7+3)) ->  | J53: Cash rent
A56: Direct Expenses | B56: =SUM(B17:B38) -> 141.3885233 | C56: =SUM(C17:C38) -> 0 | D56: =SUM(D17:D38) -> 0 | E56: =SUM(E17:E38) -> 0 | F56: =SUM(F17:F38) -> 0
A57: interest rate | B57: =Budgets!W3 -> 0.06 | C57: =B57 -> 0.06 | D57: =C57 -> 0.06 | E57: =D57 -> 0.06 | F57: =E57 -> 0.06
A59: Interest expense | B59: =B56*B57/2 -> 4.2416557 | C59: =C56*C57/2 -> 0 | D59: =D56*D57/2 -> 0 | E59: =E56*E57/2 -> 0 | F59: =F56*F57/2 -> 0

Sheet Output
A1: Cumulative distribution data,
A2: Tenant - cash | C2: Tenant - share | E2: Tenant - Price flex | G2: Tenant - Yld flex | I2: LL - cash | K2: LL - share | M2: LL - Price flex | O2: LL - Yield flex
A3: -122.4976422 | B3: 0.004975124378 | C3: -84.05421615 | D3: 0.004975124378 | E3: -122.4976422 | F3: 0.004975124378 | G3: -107.9733095 | H3: 0.004975124378 | I3: 50 | J3: 0.004975124378 | K3: 11.55657392 | L3: 0.004975124378 | M3: 50 | N3: 0.004975124378 | O3: 30.93027737 | P3: 0.004975124378 | AD3: Notes about CDF distirbutions:
A4: -116.8648436 | B4: 0.009950248756 | C4: -80.22391308 | D4: 0.009950248756 | E4: -116.8648436 | F4: 0.009950248756 | G4: -101.8304105 | H4: 0.009950248756 | I4: 50 | J4: 0.009950248756 | K4: 13.35906948 | L4: 0.009950248756 | M4: 50 | N4: 0.009950248756 | O4: 32.26951639 | P4: 0.009950248756 | AD4: Distributions completely to the right of another distribution are always preferred
A5: -107.5752163 | B5: 0.01990049751 | C5: -73.90696649 | D5: 0.01990049751 | E5: -107.5752163 | F5: 0.01990049751 | G5: -91.0122193 | H5: 0.01990049751 | I5: 50 | J5: 0.01990049751 | K5: 16.33175023 | L5: 0.01990049751 | M5: 50 | N5: 0.01990049751 | O5: 33.04780793 | P5: 0.01990049751 | AD5: Distributions that cross do not have a clear cut favorite. It depends upon the risk preferences of the individual
A6: -100.7031549 | B6: 0.02985074627 | C6: -69.23396473 | D6: 0.02985074627 | E6: -100.7031549 | F6: 0.02985074627 | G6: -86.23271873 | H6: 0.02985074627 | I6: 50 | J6: 0.02985074627 | K6: 18.53080988 | L6: 0.02985074627 | M6: 50 | N6: 0.02985074627 | O6: 34.21985866 | P6: 0.02985074627 | AD6: The more vertical a distribution, the less risk it has.
A7: -90.15928684 | B7: 0.03980099502 | C7: -62.06413448 | D7: 0.03980099502 | E7: -90.15928684 | F7: 0.03980099502 | G7: -76.31676257 | H7: 0.03980099502 | I7: 50 | J7: 0.03980099502 | K7: 21.90484765 | L7: 0.03980099502 | M7: 50 | N7: 0.03980099502 | O7: 34.83940322 | P7: 0.03980099502
A8: -82.82074426 | B8: 0.04975124378 | C8: -57.07392553 | D8: 0.04975124378 | E8: -82.82074426 | F8: 0.04975124378 | G8: -74.44380905 | H8: 0.04975124378 | I8: 50 | J8: 0.04975124378 | K8: 24.25318127 | L8: 0.04975124378 | M8: 50 | N8: 0.04975124378 | O8: 35.47566725 | P8: 0.04975124378
A9: -80.00623589 | B9: 0.05970149254 | C9: -55.16005984 | D9: 0.05970149254 | E9: -80.00623589 | F9: 0.05970149254 | G9: -72.21817199 | H9: 0.05970149254 | I9: 50 | J9: 0.05970149254 | K9: 25.15382395 | L9: 0.05970149254 | M9: 50 | N9: 0.05970149254 | O9: 35.8306905 | P9: 0.05970149254
A10: -79.54277686 | B10: 0.06965174129 | C10: -54.8449077 | D10: 0.06965174129 | E10: -79.54277686 | F10: 0.06965174129 | G10: -70.89898928 | H10: 0.06965174129 | I10: 50 | J10: 0.06965174129 | K10: 25.30213084 | L10: 0.06965174129 | M10: 50 | N10: 0.06965174129 | O10: 36.4138549 | P10: 0.06965174129
A11: -77.18103207 | B11: 0.07960199005 | C11: -53.23892124 | D11: 0.07960199005 | E11: -77.18103207 | F11: 0.07960199005 | G11: -67.30371025 | H11: 0.07960199005 | I11: 50 | J11: 0.07960199005 | K11: 26.05788917 | L11: 0.07960199005 | M11: 50 | N11: 0.07960199005 | O11: 36.85801863 | P11: 0.07960199005 | AF11: Net Return to Tenant
A12: -75.16925685 | B12: 0.08955223881 | C12: -51.87091409 | D12: 0.08955223881 | E12: -75.16925685 | F12: 0.08955223881 | G12: -64.94130983 | H12: 0.08955223881 | I12: 50 | J12: 0.08955223881 | K12: 26.70165724 | L12: 0.08955223881 | M12: 50 | N12: 0.08955223881 | O12: 37.29747436 | P12: 0.08955223881 | AF12: P=20% | AG12: P=40% | AH12: P=50% | AI12: P=60% | AJ12: P=80%
A13: -73.93939776 | B13: 0.09950248756 | C13: -51.03460991 | D13: 0.09950248756 | E13: -73.93939776 | F13: 0.09950248756 | G13: -63.52754501 | H13: 0.09950248756 | I13: 50 | J13: 0.09950248756 | K13: 27.09521215 | L13: 0.09950248756 | M13: 50 | N13: 0.09950248756 | O13: 37.63153179 | P13: 0.09950248756 | AE13: Cash | AF13: =A23 -> -54.60855522 | AG13: =A43 -> -18.29423304 | AH13: =A53 -> -5.635898834 | AI13: =A63 -> 3.466804004 | AJ13: =A83 -> 31.12718434
A14: -70.81201625 | B14: 0.1094527363 | C14: -48.90799049 | D14: 0.1094527363 | E14: -70.81201625 | F14: 0.1094527363 | G14: -61.58311174 | H14: 0.1094527363 | I14: 50 | J14: 0.1094527363 | K14: 28.09597423 | L14: 0.1094527363 | M14: 50 | N14: 0.1094527363 | O14: 38.10130711 | P14: 0.1094527363 | AE14: Share | AF14: =C23 -> -37.88963698 | AG14: =C43 -> -13.1958979 | AH14: =C53 -> -4.588230641 | AI14: =C63 -> 1.601607289 | AJ14: =C83 -> 20.41066592
A15: -67.98027109 | B15: 0.1194029851 | C15: -46.98240378 | D15: 0.1194029851 | E15: -67.98027109 | F15: 0.1194029851 | G15: -59.87152044 | H15: 0.1194029851 | I15: 50 | J15: 0.1194029851 | K15: 29.00213268 | L15: 0.1194029851 | M15: 50 | N15: 0.1194029851 | O15: 38.31917057 | P15: 0.1194029851 | AE15: Price Flex | AF15: =E23 -> -54.60855522 | AG15: =E43 -> -18.29423304 | AH15: =E53 -> -5.635898834 | AI15: =E63 -> 3.466804004 | AJ15: =E83 -> 30.77272572
A16: -66.7086254 | B16: 0.1293532338 | C16: -46.11768471 | D16: 0.1293532338 | E16: -66.7086254 | F16: 0.1293532338 | G16: -58.57380697 | H16: 0.1293532338 | I16: 50 | J16: 0.1293532338 | K16: 29.40905931 | L16: 0.1293532338 | M16: 50 | N16: 0.1293532338 | O16: 38.74295904 | P16: 0.1293532338 | AE16: Yield Flex | AF16: =G23 -> -48.01828995 | AG16: =G43 -> -15.5636764 | AH16: =G53 -> -1.349893624 | AI16: =G63 -> 5.238545342 | AJ16: =G83 -> 29.64420997
A17: -66.10651841 | B17: 0.1393034826 | C17: -45.70825195 | D17: 0.1393034826 | E17: -66.10651841 | F17: 0.1393034826 | G17: -57.25121464 | H17: 0.1393034826 | I17: 50 | J17: 0.1393034826 | K17: 29.60173354 | L17: 0.1393034826 | M17: 50 | N17: 0.1393034826 | O17: 39.12805327 | P17: 0.1393034826
A18: -63.21749287 | B18: 0.1492537313 | C18: -43.74371459 | D18: 0.1492537313 | E18: -63.21749287 | F18: 0.1492537313 | G18: -56.13439356 | H18: 0.1492537313 | I18: 50 | J18: 0.1492537313 | K18: 30.52622171 | L18: 0.1492537313 | M18: 50 | N18: 0.1492537313 | O18: 39.38127651 | P18: 0.1492537313
A19: -61.08951663 | B19: 0.1592039801 | C19: -42.29669074 | D19: 0.1592039801 | E19: -61.08951663 | F19: 0.1592039801 | G19: -52.99832304 | H19: 0.1592039801 | I19: 50 | J19: 0.1592039801 | K19: 31.20717411 | L19: 0.1592039801 | M19: 50 | N19: 0.1592039801 | O19: 39.66593479 | P19: 0.1592039801
A20: -59.49004523 | B20: 0.1691542289 | C20: -41.20905019 | D20: 0.1691542289 | E20: -59.49004523 | F20: 0.1691542289 | G20: -52.83868634 | H20: 0.1691542289 | I20: 50 | J20: 0.1691542289 | K20: 31.71900496 | L20: 0.1691542289 | M20: 50 | N20: 0.1691542289 | O20: 40.04385066 | P20: 0.1691542289
A21: -58.46775642 | B21: 0.1791044776 | C21: -40.5138938 | D21: 0.1791044776 | E21: -58.46775642 | F21: 0.1791044776 | G21: -50.01989976 | H21: 0.1791044776 | I21: 50 | J21: 0.1791044776 | K21: 32.04613738 | L21: 0.1791044776 | M21: 50 | N21: 0.1791044776 | O21: 40.30906445 | P21: 0.1791044776
A22: -56.9192663 | B22: 0.1890547264 | C22: -39.46092052 | D22: 0.1890547264 | E22: -56.9192663 | F22: 0.1890547264 | G22: -48.41124426 | H22: 0.1890547264 | I22: 50 | J22: 0.1890547264 | K22: 32.54165422 | L22: 0.1890547264 | M22: 50 | N22: 0.1890547264 | O22: 40.56402577 | P22: 0.1890547264
A23: -54.60855522 | B23: 0.1990049751 | C23: -37.88963698 | D23: 0.1990049751 | E23: -54.60855522 | F23: 0.1990049751 | G23: -48.01828995 | H23: 0.1990049751 | I23: 50 | J23: 0.1990049751 | K23: 33.28108176 | L23: 0.1990049751 | M23: 50 | N23: 0.1990049751 | O23: 40.93909582 | P23: 0.1990049751
A24: -53.90158055 | B24: 0.2089552239 | C24: -37.4088942 | D24: 0.2089552239 | E24: -53.90158055 | F24: 0.2089552239 | G24: -46.64441348 | H24: 0.2089552239 | I24: 50 | J24: 0.2089552239 | K24: 33.50731366 | L24: 0.2089552239 | M24: 50 | N24: 0.2089552239 | O24: 41.1026447 | P24: 0.2089552239
A25: -51.90845059 | B25: 0.2189054726 | C25: -36.05356584 | D25: 0.2189054726 | E25: -51.90845059 | F25: 0.2189054726 | G25: -45.66222533 | H25: 0.2189054726 | I25: 50 | J25: 0.2189054726 | K25: 34.14511524 | L25: 0.2189054726 | M25: 50 | N25: 0.2189054726 | O25: 41.41830257 | P25: 0.2189054726
A26: -51.37590931 | B26: 0.2288557214 | C26: -35.69143777 | D26: 0.2288557214 | E26: -51.37590931 | F26: 0.2288557214 | G26: -44.64844312 | H26: 0.2288557214 | I26: 50 | J26: 0.2288557214 | K26: 34.31552845 | L26: 0.2288557214 | M26: 50 | N26: 0.2288557214 | O26: 41.65508543 | P26: 0.2288557214
A27: -48.98720226 | B27: 0.2388059701 | C27: -34.06711697 | D27: 0.2388059701 | E27: -49.3217603 | F27: 0.2388059701 | G27: -43.26281584 | H27: 0.2388059701 | I27: 50 | J27: 0.2388059701 | K27: 35.07991471 | L27: 0.2388059701 | M27: 50 | N27: 0.2388059701 | O27: 41.95239927 | P27: 0.2388059701
A28: -48.30381401 | B28: 0.2487562189 | C28: -33.60241296 | D28: 0.2487562189 | E28: -48.30381401 | F28: 0.2487562189 | G28: -37.67768819 | H28: 0.2487562189 | I28: 50 | J28: 0.2487562189 | K28: 35.29859895 | L28: 0.2487562189 | M28: 50 | N28: 0.2487562189 | O28: 42.21330566 | P28: 0.2487562189
A29: -44.72441918 | B29: 0.2587064677 | C29: -31.16842448 | D29: 0.2587064677 | E29: -44.72441918 | F29: 0.2587064677 | G29: -36.40512112 | H29: 0.2587064677 | I29: 50 | J29: 0.2587064677 | K29: 36.4440053 | L29: 0.2587064677 | M29: 50 | N29: 0.2587064677 | O29: 42.43499896 | P29: 0.2587064677
A30: -42.79306387 | B30: 0.2686567164 | C30: -29.85510286 | D30: 0.2686567164 | E30: -42.79306387 | F30: 0.2686567164 | G30: -33.17727946 | H30: 0.2686567164 | I30: 50 | J30: 0.2686567164 | K30: 37.062039 | L30: 0.2686567164 | M30: 50 | N30: 0.2686567164 | O30: 42.68005585 | P30: 0.2686567164
A31: -41.9508539 | B31: 0.2786069652 | C31: -29.28240009 | D31: 0.2786069652 | E31: -41.9508539 | F31: 0.2786069652 | G31: -32.6962692 | H31: 0.2786069652 | I31: 50 | J31: 0.2786069652 | K31: 37.33154618 | L31: 0.2786069652 | M31: 50 | N31: 0.2786069652 | O31: 42.90168389 | P31: 0.2786069652
A32: -38.99994567 | B32: 0.2885572139 | C32: -27.27578249 | D32: 0.2885572139 | E32: -38.99994567 | F32: 0.2885572139 | G32: -30.3760284 | H32: 0.2885572139 | I32: 50 | J32: 0.2885572139 | K32: 38.27583682 | L32: 0.2885572139 | M32: 50 | N32: 0.2885572139 | O32: 43.17128736 | P32: 0.2885572139
A33: -37.15060856 | B33: 0.2985074627 | C33: -26.01823325 | D33: 0.2985074627 | E33: -37.15060856 | F33: 0.2985074627 | G33: -29.21341909 | H33: 0.2985074627 | I33: 50 | J33: 0.2985074627 | K33: 38.8676247 | L33: 0.2985074627 | M33: 50 | N33: 0.2985074627 | O33: 43.3518258 | P33: 0.2985074627
A34: -30.71369358 | B34: 0.3084577114 | C34: -21.64113107 | D34: 0.3084577114 | E34: -30.71369358 | F34: 0.3084577114 | G34: -27.58274023 | H34: 0.3084577114 | I34: 50 | J34: 0.3084577114 | K34: 40.92743749 | L34: 0.3084577114 | M34: 50 | N34: 0.3084577114 | O34: 43.62294959 | P34: 0.3084577114
A35: -29.95894979 | B35: 0.3184079602 | C35: -21.12790529 | D35: 0.3184079602 | E35: -29.99187674 | F35: 0.3184079602 | G35: -26.32545204 | H35: 0.3184079602 | I35: 50 | J35: 0.3184079602 | K35: 41.1689555 | L35: 0.3184079602 | M35: 50 | N35: 0.3184079602 | O35: 43.85149983 | P35: 0.3184079602
A36: -27.57746508 | B36: 0.328358209 | C36: -19.50849569 | D36: 0.328358209 | E36: -27.57746508 | F36: 0.328358209 | G36: -22.4063956 | H36: 0.328358209 | I36: 50 | J36: 0.328358209 | K36: 41.93103061 | L36: 0.328358209 | M36: 50 | N36: 0.328358209 | O36: 44.03558151 | P36: 0.328358209 | AF36: Net Return to Landlord
A37: -26.85561216 | B37: 0.3383084577 | C37: -19.01763571 | D37: 0.3383084577 | E37: -26.85561216 | F37: 0.3383084577 | G37: -22.20518241 | H37: 0.3383084577 | I37: 50 | J37: 0.3383084577 | K37: 42.16202354 | L37: 0.3383084577 | M37: 50 | N37: 0.3383084577 | O37: 44.22244403 | P37: 0.3383084577 | AF37: P=20% | AG37: P=40% | AH37: P=50% | AI37: P=60% | AJ37: P=80%
A38: -26.01298328 | B38: 0.3482587065 | C38: -18.44464807 | D38: 0.3482587065 | E38: -26.01298328 | F38: 0.3482587065 | G38: -20.41464268 | H38: 0.3482587065 | I38: 50 | J38: 0.3482587065 | K38: 42.43166478 | L38: 0.3482587065 | M38: 50 | N38: 0.3482587065 | O38: 44.38787418 | P38: 0.3482587065 | AE38: Cash | AF38: =I23 -> 50 | AG38: =I43 -> 50 | AH38: =I53 -> 50 | AI38: =I63 -> 50 | AJ38: =I83 -> 50
A39: -25.4528588 | B39: 0.3582089552 | C39: -18.06376342 | D39: 0.3582089552 | E39: -25.4528588 | F39: 0.3582089552 | G39: -19.90597905 | H39: 0.3582089552 | I39: 50 | J39: 0.3582089552 | K39: 42.61090462 | L39: 0.3582089552 | M39: 50 | N39: 0.3582089552 | O39: 44.62858358 | P39: 0.3582089552 | AE39: Share | AF39: =K23 -> 33.28108176 | AG39: =K43 -> 44.90166486 | AH39: =K53 -> 48.95233181 | AI39: =K63 -> 51.86519672 | AJ39: =K83 -> 60.71651842
A40: -24.1306136 | B40: 0.368159204 | C40: -17.16463668 | D40: 0.368159204 | E40: -24.1306136 | F40: 0.368159204 | G40: -17.43128586 | H40: 0.368159204 | I40: 50 | J40: 0.368159204 | K40: 43.03402308 | L40: 0.368159204 | M40: 50 | N40: 0.368159204 | O40: 44.89440584 | P40: 0.368159204 | AE40: Price Flex | AF40: =M23 -> 50 | AG40: =M43 -> 50 | AH40: =M53 -> 50 | AI40: =M63 -> 50 | AJ40: =M83 -> 50
A41: -19.95354507 | B41: 0.3781094527 | C41: -14.32423008 | D41: 0.3781094527 | E41: -20.09147146 | F41: 0.3781094527 | G41: -17.34090499 | H41: 0.3781094527 | I41: 50 | J41: 0.3781094527 | K41: 44.37068501 | L41: 0.3781094527 | M41: 50 | N41: 0.3781094527 | O41: 45.09495548 | P41: 0.3781094527 | AE41: Yield Flex | AF41: =O23 -> 40.93909582 | AG41: =O43 -> 45.41868546 | AH41: =O53 -> 47.26662087 | AI41: =O63 -> 48.96221132 | AJ41: =O83 -> 52.24961477
A42: -19.13329695 | B42: 0.3880597015 | C42: -13.76646136 | D42: 0.3880597015 | E42: -19.13329695 | F42: 0.3880597015 | G42: -16.94833767 | H42: 0.3880597015 | I42: 50 | J42: 0.3880597015 | K42: 44.63316441 | L42: 0.3880597015 | M42: 50 | N42: 0.3880597015 | O42: 45.26233223 | P42: 0.3880597015
A43: -18.29423304 | B43: 0.3980099502 | C43: -13.1958979 | D43: 0.3980099502 | E43: -18.29423304 | F43: 0.3980099502 | G43: -15.5636764 | H43: 0.3980099502 | I43: 50 | J43: 0.3980099502 | K43: 44.90166486 | L43: 0.3980099502 | M43: 50 | N43: 0.3980099502 | O43: 45.41868546 | P43: 0.3980099502
A44: -16.50493459 | B44: 0.407960199 | C44: -11.97917496 | D44: 0.407960199 | E44: -16.50493459 | F44: 0.407960199 | G44: -15.0015573 | H44: 0.407960199 | I44: 50 | J44: 0.407960199 | K44: 45.47424036 | L44: 0.407960199 | M44: 50 | N44: 0.407960199 | O44: 45.62094089 | P44: 0.407960199
A45: -16.12482877 | B45: 0.4179104478 | C45: -11.72070299 | D45: 0.4179104478 | E45: -16.12482877 | F45: 0.4179104478 | G45: -13.27779437 | H45: 0.4179104478 | I45: 50 | J45: 0.4179104478 | K45: 45.59587423 | L45: 0.4179104478 | M45: 50 | N45: 0.4179104478 | O45: 45.87304078 | P45: 0.4179104478
A46: -13.61173632 | B46: 0.4278606965 | C46: -10.01180013 | D46: 0.4278606965 | E46: -13.80156702 | F46: 0.4278606965 | G46: -10.25788896 | H46: 0.4278606965 | I46: 50 | J46: 0.4278606965 | K46: 46.40006381 | L46: 0.4278606965 | M46: 50 | N46: 0.4278606965 | O46: 46.02667091 | P46: 0.4278606965
A47: -11.75512208 | B47: 0.4378109453 | C47: -8.74930245 | D47: 0.4378109453 | E47: -11.75512208 | F47: 0.4378109453 | G47: -9.667697724 | H47: 0.4378109453 | I47: 50 | J47: 0.4378109453 | K47: 46.99418037 | L47: 0.4378109453 | M47: 50 | N47: 0.4378109453 | O47: 46.16965729 | P47: 0.4378109453
A48: -10.97200792 | B48: 0.447761194 | C48: -8.216784817 | D48: 0.447761194 | E48: -10.97200792 | F48: 0.447761194 | G48: -8.407637391 | H48: 0.447761194 | I48: 50 | J48: 0.447761194 | K48: 47.2447769 | L48: 0.447761194 | M48: 50 | N48: 0.447761194 | O48: 46.42747644 | P48: 0.447761194
A49: -9.574930949 | B49: 0.4577114428 | C49: -7.266772479 | D49: 0.4577114428 | E49: -10.25958794 | F49: 0.4577114428 | G49: -7.61975017 | H49: 0.4577114428 | I49: 50 | J49: 0.4577114428 | K49: 47.69184153 | L49: 0.4577114428 | M49: 50 | N49: 0.4577114428 | O49: 46.57535485 | P49: 0.4577114428
A50: -8.753828817 | B50: 0.4676616915 | C50: -6.708423029 | D50: 0.4676616915 | E50: -8.799351281 | F50: 0.4676616915 | G50: -5.21615851 | H50: 0.4676616915 | I50: 50 | J50: 0.4676616915 | K50: 47.95459421 | L50: 0.4676616915 | M50: 50 | N50: 0.4676616915 | O50: 46.74372491 | P50: 0.4676616915
A51: -6.435902385 | B51: 0.4776119403 | C51: -5.132233056 | D51: 0.4776119403 | E51: -6.435902385 | F51: 0.4776119403 | G51: -4.411851669 | H51: 0.4776119403 | I51: 50 | J51: 0.4776119403 | K51: 48.69633067 | L51: 0.4776119403 | M51: 50 | N51: 0.4776119403 | O51: 46.95636336 | P51: 0.4776119403
A52: -5.822058289 | B52: 0.4875621891 | C52: -4.71481907 | D52: 0.4875621891 | E52: -5.822058289 | F52: 0.4875621891 | G52: -1.962422225 | H52: 0.4875621891 | I52: 50 | J52: 0.4875621891 | K52: 48.89276078 | L52: 0.4875621891 | M52: 50 | N52: 0.4875621891 | O52: 47.1347685 | P52: 0.4875621891
A53: -5.635898834 | B53: 0.4975124378 | C53: -4.588230641 | D53: 0.4975124378 | E53: -5.635898834 | F53: 0.4975124378 | G53: -1.349893624 | H53: 0.4975124378 | I53: 50 | J53: 0.4975124378 | K53: 48.95233181 | L53: 0.4975124378 | M53: 50 | N53: 0.4975124378 | O53: 47.26662087 | P53: 0.4975124378
A54: -4.335621428 | B54: 0.5074626866 | C54: -3.704042005 | D54: 0.5074626866 | E54: -4.335621428 | F54: 0.5074626866 | G54: -0.7630978658 | H54: 0.5074626866 | I54: 50 | J54: 0.5074626866 | K54: 49.36842058 | L54: 0.5074626866 | M54: 50 | N54: 0.5074626866 | O54: 47.48249999 | P54: 0.5074626866
A55: -3.422491101 | B55: 0.5174129353 | C55: -3.083113383 | D55: 0.5174129353 | E55: -3.482896856 | F55: 0.5174129353 | G55: -0.7164641304 | H55: 0.5174129353 | I55: 50 | J55: 0.5174129353 | K55: 49.66062228 | L55: 0.5174129353 | M55: 50 | N55: 0.5174129353 | O55: 47.65668412 | P55: 0.5174129353
A56: -3.137764015 | B56: 0.5273631841 | C56: -2.889498964 | D56: 0.5273631841 | E56: -3.312071693 | F56: 0.5273631841 | G56: 0.4149662828 | H56: 0.5273631841 | I56: 50 | J56: 0.5273631841 | K56: 49.75173495 | L56: 0.5273631841 | M56: 50 | N56: 0.5273631841 | O56: 47.79889041 | P56: 0.5273631841
A57: -2.809081443 | B57: 0.5373134328 | C57: -2.665994815 | D57: 0.5373134328 | E57: -3.097383254 | F57: 0.5373134328 | G57: 1.202320525 | H57: 0.5373134328 | I57: 50 | J57: 0.5373134328 | K57: 49.85691337 | L57: 0.5373134328 | M57: 50 | N57: 0.5373134328 | O57: 47.92430873 | P57: 0.5373134328
A58: -2.595399946 | B58: 0.5472636816 | C58: -2.520691398 | D58: 0.5472636816 | E58: -2.809081443 | F58: 0.5472636816 | G58: 1.621379928 | H58: 0.5472636816 | I58: 50 | J58: 0.5472636816 | K58: 49.92529145 | L58: 0.5472636816 | M58: 50 | N58: 0.5472636816 | O58: 48.11144917 | P58: 0.5472636816
A59: -1.699500955 | B59: 0.5572139303 | C59: -1.911480084 | D59: 0.5572139303 | E59: -2.595399946 | F59: 0.5572139303 | G59: 2.188107206 | H59: 0.5572139303 | I59: 50 | J59: 0.5572139303 | K59: 50.21197913 | L59: 0.5572139303 | M59: 50 | N59: 0.5572139303 | O59: 48.27578201 | P59: 0.5572139303
A60: -1.225711576 | B60: 0.5671641791 | C60: -1.589303306 | D60: 0.5671641791 | E60: -1.699500955 | F60: 0.5671641791 | G60: 3.12124366 | H60: 0.5671641791 | I60: 50 | J60: 0.5671641791 | K60: 50.36359173 | L60: 0.5671641791 | M60: 50 | N60: 0.5671641791 | O60: 48.46330845 | P60: 0.5671641791
A61: -0.2988679609 | B61: 0.5771144279 | C61: -0.9590496474 | D61: 0.5771144279 | E61: -0.2988679609 | F61: 0.5771144279 | G61: 4.704947618 | H61: 0.5771144279 | I61: 50 | J61: 0.5771144279 | K61: 50.66018169 | L61: 0.5771144279 | M61: 50 | N61: 0.5771144279 | O61: 48.57570189 | P61: 0.5771144279
A62: 1.277001547 | B62: 0.5870646766 | C62: 0.1125416181 | D62: 0.5870646766 | E62: 1.277001547 | F62: 0.5870646766 | G62: 4.838071347 | H62: 0.5870646766 | I62: 50 | J62: 0.5870646766 | K62: 51.16445993 | L62: 0.5870646766 | M62: 50 | N62: 0.5870646766 | O62: 48.77327939 | P62: 0.5870646766
A63: 3.466804004 | B63: 0.5970149254 | C63: 1.601607289 | D63: 0.5970149254 | E63: 3.466804004 | F63: 0.5970149254 | G63: 5.238545342 | H63: 0.5970149254 | I63: 50 | J63: 0.5970149254 | K63: 51.86519672 | L63: 0.5970149254 | M63: 50 | N63: 0.5970149254 | O63: 48.96221132 | P63: 0.5970149254
A64: 3.96632595 | B64: 0.6069651741 | C64: 1.941282212 | D64: 0.6069651741 | E64: 3.96632595 | F64: 0.6069651741 | G64: 6.833684278 | H64: 0.6069651741 | I64: 50 | J64: 0.6069651741 | K64: 52.02504374 | L64: 0.6069651741 | M64: 50 | N64: 0.6069651741 | O64: 49.12251544 | P64: 0.6069651741
A65: 5.222253244 | B65: 0.6169154229 | C65: 2.795312772 | D65: 0.6169154229 | E65: 5.222253244 | F65: 0.6169154229 | G65: 7.739998254 | H65: 0.6169154229 | I65: 50 | J65: 0.6169154229 | K65: 52.42694047 | L65: 0.6169154229 | M65: 50 | N65: 0.6169154229 | O65: 49.25041596 | P65: 0.6169154229
A66: 9.015780464 | B66: 0.6268656716 | C66: 5.374911282 | D66: 0.6268656716 | E66: 9.015780464 | F66: 0.6268656716 | G66: 8.145566354 | H66: 0.6268656716 | I66: 50 | J66: 0.6268656716 | K66: 53.64086918 | L66: 0.6268656716 | M66: 50 | N66: 0.6268656716 | O66: 49.41403628 | P66: 0.6268656716
A67: 10.24338139 | B67: 0.6368159204 | C67: 6.209679908 | D67: 0.6368159204 | E67: 10.24338139 | F67: 0.6368159204 | G67: 11.04398154 | H67: 0.6368159204 | I67: 50 | J67: 0.6368159204 | K67: 54.03370148 | L67: 0.6368159204 | M67: 50 | N67: 0.6368159204 | O67: 49.56365708 | P67: 0.6368159204
A68: 11.42141324 | B68: 0.6467661692 | C68: 7.010741569 | D68: 0.6467661692 | E68: 11.00486319 | F68: 0.6467661692 | G68: 11.8618759 | H68: 0.6467661692 | I68: 50 | J68: 0.6467661692 | K68: 54.41067167 | L68: 0.6467661692 | M68: 50 | N68: 0.6467661692 | O68: 49.69215365 | P68: 0.6467661692 | AE68: Notes about Land valuation:
A69: 11.88365147 | B69: 0.6567164179 | C69: 7.325063565 | D69: 0.6567164179 | E69: 11.88365147 | F69: 0.6567164179 | G69: 13.33905197 | H69: 0.6567164179 | I69: 50 | J69: 0.6567164179 | K69: 54.5585879 | L69: 0.6567164179 | M69: 50 | N69: 0.6567164179 | O69: 49.86694254 | P69: 0.6567164179 | AE69: The land value is estimated from the formula Price = A / i where A is the annual net return and (i) is the interest rate
A70: 13.58712217 | B70: 0.6666666667 | C70: 8.48342364 | D70: 0.6666666667 | E70: 13.58712217 | F70: 0.6666666667 | G70: 15.47829691 | H70: 0.6666666667 | I70: 50 | J70: 0.6666666667 | K70: 55.10369853 | L70: 0.6666666667 | M70: 50 | N70: 0.6666666667 | O70: 50.00182612 | P70: 0.6666666667
A71: 14.32915548 | B71: 0.6766169154 | C71: 8.988006292 | D71: 0.6766169154 | E71: 14.32915548 | F71: 0.6766169154 | G71: 16.67247136 | H71: 0.6766169154 | I71: 50 | J71: 0.6766169154 | K71: 55.34114919 | L71: 0.6766169154 | M71: 50 | N71: 0.6766169154 | O71: 50.15867584 | P71: 0.6766169154 | AE71: The blue line labeled 75% likely: This shows the possible land values that a farmer could pay at different interest rates
A72: 15.56985544 | B72: 0.6865671642 | C72: 9.831682265 | D72: 0.6865671642 | E72: 14.95206068 | F72: 0.6865671642 | G72: 16.93298441 | H72: 0.6865671642 | I72: 50 | J72: 0.6865671642 | K72: 55.73817317 | L72: 0.6865671642 | M72: 50 | N72: 0.6865671642 | O72: 50.28490845 | P72: 0.6865671642 | AE72: and earn enough profits so that the land has a positive net present value 75% of the time. That also means that
A73: 18.76815352 | B73: 0.6965174129 | C73: 12.00652496 | D73: 0.6965174129 | E73: 17.62886415 | F73: 0.6965174129 | G73: 18.10660621 | H73: 0.6965174129 | I73: 50 | J73: 0.6965174129 | K73: 56.76162856 | L73: 0.6965174129 | M73: 50 | N73: 0.6965174129 | O73: 50.4472745 | P73: 0.6965174129 | AE73: 25% of the time, the land will be a bad investment
A74: 18.92966519 | B74: 0.7064676617 | C74: 12.11635289 | D74: 0.7064676617 | E74: 18.76815352 | F74: 0.7064676617 | G74: 20.16345593 | H74: 0.7064676617 | I74: 50 | J74: 0.7064676617 | K74: 56.81331229 | L74: 0.7064676617 | M74: 50 | N74: 0.7064676617 | O74: 50.66437426 | P74: 0.7064676617
A75: 22.08861685 | B75: 0.7164179104 | C75: 14.26444002 | D75: 0.7164179104 | E75: 22.08861685 | F75: 0.7164179104 | G75: 20.93969056 | H75: 0.7164179104 | I75: 50 | J75: 0.7164179104 | K75: 57.82417683 | L75: 0.7164179104 | M75: 50 | N75: 0.7164179104 | O75: 50.80784679 | P75: 0.7164179104 | AE75: The gray line labeled 25% likely: This shows the possible land values that a farmer could pay at different interest rates
A76: 23.8112272 | B76: 0.7263681592 | C76: 15.43581506 | D76: 0.7263681592 | E76: 23.33829369 | F76: 0.7263681592 | G76: 22.30485453 | H76: 0.7263681592 | I76: 50 | J76: 0.7263681592 | K76: 58.37541214 | L76: 0.7263681592 | M76: 50 | N76: 0.7263681592 | O76: 50.96945405 | P76: 0.7263681592 | AE76: and ean enough profits so that the land had a positive net return 25% of the time. That also means that 75% of the time
A77: 24.57603267 | B77: 0.736318408 | C77: 15.95588278 | D77: 0.736318408 | E77: 24.20137003 | F77: 0.736318408 | G77: 22.7362434 | H77: 0.736318408 | I77: 50 | J77: 0.736318408 | K77: 58.62014989 | L77: 0.736318408 | M77: 50 | N77: 0.736318408 | O77: 51.16209246 | P77: 0.736318408 | AE77: the land will have a negative net present value and not be a good investment.
A78: 24.75110389 | B78: 0.7462686567 | C78: 16.07493121 | D78: 0.7462686567 | E78: 24.75110389 | F78: 0.7462686567 | G78: 24.31534663 | H78: 0.7462686567 | I78: 50 | J78: 0.7462686567 | K78: 58.67617268 | L78: 0.7462686567 | M78: 50 | N78: 0.7462686567 | O78: 51.31446841 | P78: 0.7462686567
A79: 25.91120806 | B79: 0.7562189055 | C79: 16.86380204 | D79: 0.7562189055 | E79: 25.91120806 | F79: 0.7562189055 | G79: 25.8557937 | H79: 0.7562189055 | I79: 50 | J79: 0.7562189055 | K79: 59.04740601 | L79: 0.7562189055 | M79: 50 | N79: 0.7562189055 | O79: 51.45951175 | P79: 0.7562189055
A80: 28.01361411 | B80: 0.7661691542 | C80: 18.29343816 | D80: 0.7661691542 | E80: 28.01361411 | F80: 0.7661691542 | G80: 27.37246203 | H80: 0.7661691542 | I80: 50 | J80: 0.7661691542 | K80: 59.72017595 | L80: 0.7661691542 | M80: 50 | N80: 0.7661691542 | O80: 51.66340612 | P80: 0.7661691542
A81: 29.93863959 | B81: 0.776119403 | C81: 19.60245549 | D81: 0.776119403 | E81: 28.79271523 | F81: 0.776119403 | G81: 28.88133179 | H81: 0.776119403 | I81: 50 | J81: 0.776119403 | K81: 60.3361841 | L81: 0.776119403 | M81: 50 | N81: 0.776119403 | O81: 51.83370896 | P81: 0.776119403
A82: 30.59421439 | B82: 0.7860696517 | C82: 20.04824635 | D82: 0.7860696517 | E82: 30.52314853 | F82: 0.7860696517 | G82: 29.09821454 | H82: 0.7860696517 | I82: 50 | J82: 0.7860696517 | K82: 60.54596804 | L82: 0.7860696517 | M82: 50 | N82: 0.7860696517 | O82: 52.05758058 | P82: 0.7860696517
A83: 31.12718434 | B83: 0.7960199005 | C83: 20.41066592 | D83: 0.7960199005 | E83: 30.77272572 | F83: 0.7960199005 | G83: 29.64420997 | H83: 0.7960199005 | I83: 50 | J83: 0.7960199005 | K83: 60.71651842 | L83: 0.7960199005 | M83: 50 | N83: 0.7960199005 | O83: 52.24961477 | P83: 0.7960199005
A84: 31.40197683 | B84: 0.8059701493 | C84: 20.59752481 | D84: 0.8059701493 | E84: 31.40197683 | F84: 0.8059701493 | G84: 31.820935 | H84: 0.8059701493 | I84: 50 | J84: 0.8059701493 | K84: 60.80445202 | L84: 0.8059701493 | M84: 50 | N84: 0.8059701493 | O84: 52.43802838 | P84: 0.8059701493
A85: 32.9933117 | B85: 0.815920398 | C85: 21.67963252 | D85: 0.815920398 | E85: 32.97802426 | F85: 0.815920398 | G85: 33.32419467 | H85: 0.815920398 | I85: 50 | J85: 0.815920398 | K85: 61.31367918 | L85: 0.815920398 | M85: 50 | N85: 0.815920398 | O85: 52.57703879 | P85: 0.815920398
A86: 34.78370642 | B86: 0.8258706468 | C86: 22.89710093 | D86: 0.8258706468 | E86: 34.78370642 | F86: 0.8258706468 | G86: 34.16807225 | H86: 0.8258706468 | I86: 50 | J86: 0.8258706468 | K86: 61.88660549 | L86: 0.8258706468 | M86: 50 | N86: 0.8258706468 | O86: 52.85543458 | P86: 0.8258706468
A87: 36.90045278 | B87: 0.8358208955 | C87: 24.33648845 | D87: 0.8358208955 | E87: 35.78156051 | F87: 0.8358208955 | G87: 35.61330301 | H87: 0.8358208955 | I87: 50 | J87: 0.8358208955 | K87: 62.56396432 | L87: 0.8358208955 | M87: 50.05775339 | N87: 0.8358208955 | O87: 53.03414604 | P87: 0.8358208955
A88: 37.61350585 | B88: 0.8457711443 | C88: 24.82136455 | D88: 0.8457711443 | E88: 36.90045278 | F88: 0.8457711443 | G88: 36.65840526 | H88: 0.8457711443 | I88: 50 | J88: 0.8457711443 | K88: 62.79214131 | L88: 0.8457711443 | M88: 50.16904541 | N88: 0.8457711443 | O88: 53.22643201 | P88: 0.8457711443
A89: 38.65758978 | B89: 0.855721393 | C89: 25.53134161 | D89: 0.855721393 | E89: 38.34603992 | F89: 0.855721393 | G89: 39.34912116 | H89: 0.855721393 | I89: 50 | J89: 0.855721393 | K89: 63.12624816 | L89: 0.855721393 | M89: 50.33455804 | N89: 0.855721393 | O89: 53.45521253 | P89: 0.855721393
A90: 41.9510181 | B90: 0.8656716418 | C90: 27.77087287 | D90: 0.8656716418 | E90: 39.8818928 | F90: 0.8656716418 | G90: 39.68919713 | H90: 0.8656716418 | I90: 50 | J90: 0.8656716418 | K90: 64.18014523 | L90: 0.8656716418 | M90: 50.47362565 | N90: 0.8656716418 | O90: 53.7364273 | P90: 0.8656716418
A91: 43.73861058 | B91: 0.8756218905 | C91: 28.98643576 | D91: 0.8756218905 | E91: 43.65560659 | F91: 0.8756218905 | G91: 43.34133577 | H91: 0.8756218905 | I91: 50 | J91: 0.8756218905 | K91: 64.75217482 | L91: 0.8756218905 | M91: 50.64573961 | N91: 0.8756218905 | O91: 53.88006959 | P91: 0.8756218905
A92: 45.47240737 | B92: 0.8855721393 | C92: 30.16541758 | D92: 0.8855721393 | E92: 44.36517973 | F92: 0.8855721393 | G92: 43.87166803 | H92: 0.8855721393 | I92: 50 | J92: 0.8855721393 | K92: 65.30698979 | L92: 0.8855721393 | M92: 50.79303041 | N92: 0.8855721393 | O92: 54.17426855 | P92: 0.8855721393
A93: 47.28601908 | B93: 0.8955223881 | C93: 31.39867354 | D93: 0.8955223881 | E93: 46.86558775 | F93: 0.8955223881 | G93: 45.47058125 | H93: 0.8955223881 | I93: 50 | J93: 0.8955223881 | K93: 65.88734554 | L93: 0.8955223881 | M93: 50.95647848 | N93: 0.8955223881 | O93: 54.52165232 | P93: 0.8955223881
A94: 47.53857072 | B94: 0.9054726368 | C94: 31.57040866 | D94: 0.9054726368 | E94: 47.51560433 | F94: 0.9054726368 | G94: 47.18537554 | H94: 0.9054726368 | I94: 50 | J94: 0.9054726368 | K94: 65.96816207 | L94: 0.9054726368 | M94: 51.13883381 | N94: 0.9054726368 | O94: 54.78028353 | P94: 0.9054726368
A95: 55.28655039 | B95: 0.9154228856 | C95: 36.83903483 | D95: 0.9154228856 | E95: 55.28655039 | F95: 0.9154228856 | G95: 50.2632182 | H95: 0.9154228856 | I95: 50 | J95: 0.9154228856 | K95: 68.44751556 | L95: 0.9154228856 | M95: 51.30080103 | N95: 0.9154228856 | O95: 55.02333219 | P95: 0.9154228856
A96: 61.10584899 | B96: 0.9253731343 | C96: 40.79615788 | D96: 0.9253731343 | E96: 60.14937052 | F96: 0.9253731343 | G96: 57.49182553 | H96: 0.9253731343 | I96: 50 | J96: 0.9253731343 | K96: 70.30969111 | L96: 0.9253731343 | M96: 51.50575913 | N96: 0.9253731343 | O96: 55.30698159 | P96: 0.9253731343
A97: 62.67811698 | B97: 0.9353233831 | C97: 41.86530011 | D97: 0.9353233831 | E97: 62.67811698 | F97: 0.9353233831 | G97: 58.09672204 | H97: 0.9353233831 | I97: 50 | J97: 0.9353233831 | K97: 70.81281687 | L97: 0.9353233831 | M97: 51.73066491 | N97: 0.9353233831 | O97: 55.74093543 | P97: 0.9353233831
A98: 64.98899664 | B98: 0.9452736318 | C98: 43.43669828 | D98: 0.9452736318 | E98: 64.18926481 | F98: 0.9452736318 | G98: 58.1670081 | H98: 0.9452736318 | I98: 50 | J98: 0.9452736318 | K98: 71.55229836 | L98: 0.9452736318 | M98: 52.0107973 | N98: 0.9452736318 | O98: 56.11023795 | P98: 0.9452736318
A99: 68.91598811 | B99: 0.9552238806 | C99: 46.10705248 | D99: 0.9552238806 | E99: 68.78462893 | F99: 0.9552238806 | G99: 63.68951477 | H99: 0.9552238806 | I99: 50 | J99: 0.9552238806 | K99: 72.80893563 | L99: 0.9552238806 | M99: 52.26172737 | N99: 0.9552238806 | O99: 56.48155897 | P99: 0.9552238806
A100: 72.78510505 | B100: 0.9651741294 | C100: 48.738052 | D100: 0.9651741294 | E100: 72.78510505 | F100: 0.9651741294 | G100: 66.15431174 | H100: 0.9651741294 | I100: 50 | J100: 0.9651741294 | K100: 74.04705305 | L100: 0.9651741294 | M100: 52.51772297 | N100: 0.9651741294 | O100: 56.93820364 | P100: 0.9651741294
A101: 78.90444602 | B101: 0.9751243781 | C101: 52.89920386 | D101: 0.9751243781 | E101: 77.20424015 | F101: 0.9751243781 | G101: 73.59746443 | H101: 0.9751243781 | I101: 50 | J101: 0.9751243781 | K101: 76.00524216 | L101: 0.9751243781 | M101: 52.95443124 | N101: 0.9751243781 | O101: 57.47924703 | P101: 0.9751243781
A102: 104.3686941 | B102: 0.9950248756 | C102: 70.21489257 | D102: 0.9950248756 | E102: 101.4142629 | F102: 0.9950248756 | G102: 96.00010388 | H102: 0.9950248756 | I102: 50 | J102: 0.9950248756 | K102: 84.15380155 | L102: 0.9950248756 | M102: 54.33870298 | N102: 0.9950248756 | O102: 59.01854275 | P102: 0.9950248756
A103: -1078.891118 | B103: 49.26865672 | C103: -809.2279038 | D103: 49.26865672 | E103: -1099.58086 | F103: 49.26865672 | G103: -732.1919009 | H103: 49.26865672 | I103: 5000 | J103: 49.26865672 | K103: 4730.336786 | L103: 49.26865672 | M103: 5023.189672 | N103: 49.26865672 | O103: 4647.890972 | P103: 49.26865672
C106: cash rent | D106: ='Calc for flex leases'!H14 -> 50
C107: Property taxes | D107: 0
A109: Land valuation part
B110: interest rate | C110: 75% likely | D110: 50% likely | E110: 25% likely
B111: 0.01 | C111: =($A$28+$D$106-$D$107)/B111 -> 169.6185991 | D111: =($A$53+$D$106-$D$107)/$B111 -> 4436.410117 | E111: =($A$78+$D$106-$D$107)/$B111 -> 7475.110389
B112: 0.02 | C112: =($A$28+$D$106-$D$107)/B112 -> 84.80929957 | D112: =($A$53+$D$106-$D$107)/$B112 -> 2218.205058 | E112: =($A$78+$D$106-$D$107)/$B112 -> 3737.555194
B113: 0.03 | C113: 56.53953305 | D113: 1478.803372 | E113: 2491.703463
B114: 0.04 | C114: 42.40464979 | D114: 1109.102529 | E114: 1868.777597
B115: 0.05 | C115: 33.92371983 | D115: 887.2820233 | E115: 1495.022078
B116: 0.06 | C116: 28.26976652 | D116: 739.4016861 | E116: 1245.851731
B117: 0.07 | C117: 24.23122845 | D117: 633.7728738 | E117: 1067.872913
B118: 0.08 | C118: 21.20232489 | D118: 554.5512646 | E118: 934.3887986
B119: 0.09 | C119: 18.84651102 | D119: 492.9344574 | E119: 830.567821
B120: 0.1 | C120: 16.96185991 | D120: =($A$53+$D$106-$D$107)/$B120 -> 443.6410117 | E120: 747.5110389

Sheet Sheet7 (hidden)

Sheet Output variables (hidden)
W25: Cumulative distribution data,
W26: Tenant - cash | Y26: Tenant - share | AA26: Tenant - Price flex | AC26: Tenant - Yld flex | AE26: LL - cash | AG26: LL - share | AI26: LL - Price flex | AK26: LL - Yield flex
W27: -122.4976422 | X27: 0.004975124378 | Y27: -84.05421615 | Z27: 0.004975124378 | AA27: -122.4976422 | AB27: 0.004975124378 | AC27: -107.9733095 | AD27: 0.004975124378 | AE27: 50 | AF27: 0.004975124378 | AG27: 11.55657392 | AH27: 0.004975124378 | AI27: 50 | AJ27: 0.004975124378 | AK27: 30.93027737 | AL27: 0.004975124378
W28: -116.8648436 | X28: 0.009950248756 | Y28: -80.22391308 | Z28: 0.009950248756 | AA28: -116.8648436 | AB28: 0.009950248756 | AC28: -101.8304105 | AD28: 0.009950248756 | AE28: 50 | AF28: 0.009950248756 | AG28: 13.35906948 | AH28: 0.009950248756 | AI28: 50 | AJ28: 0.009950248756 | AK28: 32.26951639 | AL28: 0.009950248756
W29: -107.5752163 | X29: 0.01990049751 | Y29: -73.90696649 | Z29: 0.01990049751 | AA29: -107.5752163 | AB29: 0.01990049751 | AC29: -91.0122193 | AD29: 0.01990049751 | AE29: 50 | AF29: 0.01990049751 | AG29: 16.33175023 | AH29: 0.01990049751 | AI29: 50 | AJ29: 0.01990049751 | AK29: 33.04780793 | AL29: 0.01990049751
W30: -100.7031549 | X30: 0.02985074627 | Y30: -69.23396473 | Z30: 0.02985074627 | AA30: -100.7031549 | AB30: 0.02985074627 | AC30: -86.23271873 | AD30: 0.02985074627 | AE30: 50 | AF30: 0.02985074627 | AG30: 18.53080988 | AH30: 0.02985074627 | AI30: 50 | AJ30: 0.02985074627 | AK30: 34.21985866 | AL30: 0.02985074627
W31: -90.15928684 | X31: 0.03980099502 | Y31: -62.06413448 | Z31: 0.03980099502 | AA31: -90.15928684 | AB31: 0.03980099502 | AC31: -76.31676257 | AD31: 0.03980099502 | AE31: 50 | AF31: 0.03980099502 | AG31: 21.90484765 | AH31: 0.03980099502 | AI31: 50 | AJ31: 0.03980099502 | AK31: 34.83940322 | AL31: 0.03980099502
W32: -82.82074426 | X32: 0.04975124378 | Y32: -57.07392553 | Z32: 0.04975124378 | AA32: -82.82074426 | AB32: 0.04975124378 | AC32: -74.44380905 | AD32: 0.04975124378 | AE32: 50 | AF32: 0.04975124378 | AG32: 24.25318127 | AH32: 0.04975124378 | AI32: 50 | AJ32: 0.04975124378 | AK32: 35.47566725 | AL32: 0.04975124378
W33: -80.00623589 | X33: 0.05970149254 | Y33: -55.16005984 | Z33: 0.05970149254 | AA33: -80.00623589 | AB33: 0.05970149254 | AC33: -72.21817199 | AD33: 0.05970149254 | AE33: 50 | AF33: 0.05970149254 | AG33: 25.15382395 | AH33: 0.05970149254 | AI33: 50 | AJ33: 0.05970149254 | AK33: 35.8306905 | AL33: 0.05970149254
W34: -79.54277686 | X34: 0.06965174129 | Y34: -54.8449077 | Z34: 0.06965174129 | AA34: -79.54277686 | AB34: 0.06965174129 | AC34: -70.89898928 | AD34: 0.06965174129 | AE34: 50 | AF34: 0.06965174129 | AG34: 25.30213084 | AH34: 0.06965174129 | AI34: 50 | AJ34: 0.06965174129 | AK34: 36.4138549 | AL34: 0.06965174129
W35: -77.18103207 | X35: 0.07960199005 | Y35: -53.23892124 | Z35: 0.07960199005 | AA35: -77.18103207 | AB35: 0.07960199005 | AC35: -67.30371025 | AD35: 0.07960199005 | AE35: 50 | AF35: 0.07960199005 | AG35: 26.05788917 | AH35: 0.07960199005 | AI35: 50 | AJ35: 0.07960199005 | AK35: 36.85801863 | AL35: 0.07960199005
W36: -75.16925685 | X36: 0.08955223881 | Y36: -51.87091409 | Z36: 0.08955223881 | AA36: -75.16925685 | AB36: 0.08955223881 | AC36: -64.94130983 | AD36: 0.08955223881 | AE36: 50 | AF36: 0.08955223881 | AG36: 26.70165724 | AH36: 0.08955223881 | AI36: 50 | AJ36: 0.08955223881 | AK36: 37.29747436 | AL36: 0.08955223881
W37: -73.93939776 | X37: 0.09950248756 | Y37: -51.03460991 | Z37: 0.09950248756 | AA37: -73.93939776 | AB37: 0.09950248756 | AC37: -63.52754501 | AD37: 0.09950248756 | AE37: 50 | AF37: 0.09950248756 | AG37: 27.09521215 | AH37: 0.09950248756 | AI37: 50 | AJ37: 0.09950248756 | AK37: 37.63153179 | AL37: 0.09950248756
W38: -70.81201625 | X38: 0.1094527363 | Y38: -48.90799049 | Z38: 0.1094527363 | AA38: -70.81201625 | AB38: 0.1094527363 | AC38: -61.58311174 | AD38: 0.1094527363 | AE38: 50 | AF38: 0.1094527363 | AG38: 28.09597423 | AH38: 0.1094527363 | AI38: 50 | AJ38: 0.1094527363 | AK38: 38.10130711 | AL38: 0.1094527363
W39: -67.98027109 | X39: 0.1194029851 | Y39: -46.98240378 | Z39: 0.1194029851 | AA39: -67.98027109 | AB39: 0.1194029851 | AC39: -59.87152044 | AD39: 0.1194029851 | AE39: 50 | AF39: 0.1194029851 | AG39: 29.00213268 | AH39: 0.1194029851 | AI39: 50 | AJ39: 0.1194029851 | AK39: 38.31917057 | AL39: 0.1194029851
W40: -66.7086254 | X40: 0.1293532338 | Y40: -46.11768471 | Z40: 0.1293532338 | AA40: -66.7086254 | AB40: 0.1293532338 | AC40: -58.57380697 | AD40: 0.1293532338 | AE40: 50 | AF40: 0.1293532338 | AG40: 29.40905931 | AH40: 0.1293532338 | AI40: 50 | AJ40: 0.1293532338 | AK40: 38.74295904 | AL40: 0.1293532338
W41: -66.10651841 | X41: 0.1393034826 | Y41: -45.70825195 | Z41: 0.1393034826 | AA41: -66.10651841 | AB41: 0.1393034826 | AC41: -57.25121464 | AD41: 0.1393034826 | AE41: 50 | AF41: 0.1393034826 | AG41: 29.60173354 | AH41: 0.1393034826 | AI41: 50 | AJ41: 0.1393034826 | AK41: 39.12805327 | AL41: 0.1393034826
W42: -63.21749287 | X42: 0.1492537313 | Y42: -43.74371459 | Z42: 0.1492537313 | AA42: -63.21749287 | AB42: 0.1492537313 | AC42: -56.13439356 | AD42: 0.1492537313 | AE42: 50 | AF42: 0.1492537313 | AG42: 30.52622171 | AH42: 0.1492537313 | AI42: 50 | AJ42: 0.1492537313 | AK42: 39.38127651 | AL42: 0.1492537313
W43: -61.08951663 | X43: 0.1592039801 | Y43: -42.29669074 | Z43: 0.1592039801 | AA43: -61.08951663 | AB43: 0.1592039801 | AC43: -52.99832304 | AD43: 0.1592039801 | AE43: 50 | AF43: 0.1592039801 | AG43: 31.20717411 | AH43: 0.1592039801 | AI43: 50 | AJ43: 0.1592039801 | AK43: 39.66593479 | AL43: 0.1592039801
W44: -59.49004523 | X44: 0.1691542289 | Y44: -41.20905019 | Z44: 0.1691542289 | AA44: -59.49004523 | AB44: 0.1691542289 | AC44: -52.83868634 | AD44: 0.1691542289 | AE44: 50 | AF44: 0.1691542289 | AG44: 31.71900496 | AH44: 0.1691542289 | AI44: 50 | AJ44: 0.1691542289 | AK44: 40.04385066 | AL44: 0.1691542289
W45: -58.46775642 | X45: 0.1791044776 | Y45: -40.5138938 | Z45: 0.1791044776 | AA45: -58.46775642 | AB45: 0.1791044776 | AC45: -50.01989976 | AD45: 0.1791044776 | AE45: 50 | AF45: 0.1791044776 | AG45: 32.04613738 | AH45: 0.1791044776 | AI45: 50 | AJ45: 0.1791044776 | AK45: 40.30906445 | AL45: 0.1791044776
W46: -56.9192663 | X46: 0.1890547264 | Y46: -39.46092052 | Z46: 0.1890547264 | AA46: -56.9192663 | AB46: 0.1890547264 | AC46: -48.41124426 | AD46: 0.1890547264 | AE46: 50 | AF46: 0.1890547264 | AG46: 32.54165422 | AH46: 0.1890547264 | AI46: 50 | AJ46: 0.1890547264 | AK46: 40.56402577 | AL46: 0.1890547264
W47: -54.60855522 | X47: 0.1990049751 | Y47: -37.88963698 | Z47: 0.1990049751 | AA47: -54.60855522 | AB47: 0.1990049751 | AC47: -48.01828995 | AD47: 0.1990049751 | AE47: 50 | AF47: 0.1990049751 | AG47: 33.28108176 | AH47: 0.1990049751 | AI47: 50 | AJ47: 0.1990049751 | AK47: 40.93909582 | AL47: 0.1990049751
W48: -53.90158055 | X48: 0.2089552239 | Y48: -37.4088942 | Z48: 0.2089552239 | AA48: -53.90158055 | AB48: 0.2089552239 | AC48: -46.64441348 | AD48: 0.2089552239 | AE48: 50 | AF48: 0.2089552239 | AG48: 33.50731366 | AH48: 0.2089552239 | AI48: 50 | AJ48: 0.2089552239 | AK48: 41.1026447 | AL48: 0.2089552239
W49: -51.90845059 | X49: 0.2189054726 | Y49: -36.05356584 | Z49: 0.2189054726 | AA49: -51.90845059 | AB49: 0.2189054726 | AC49: -45.66222533 | AD49: 0.2189054726 | AE49: 50 | AF49: 0.2189054726 | AG49: 34.14511524 | AH49: 0.2189054726 | AI49: 50 | AJ49: 0.2189054726 | AK49: 41.41830257 | AL49: 0.2189054726
W50: -51.37590931 | X50: 0.2288557214 | Y50: -35.69143777 | Z50: 0.2288557214 | AA50: -51.37590931 | AB50: 0.2288557214 | AC50: -44.64844312 | AD50: 0.2288557214 | AE50: 50 | AF50: 0.2288557214 | AG50: 34.31552845 | AH50: 0.2288557214 | AI50: 50 | AJ50: 0.2288557214 | AK50: 41.65508543 | AL50: 0.2288557214
W51: -48.98720226 | X51: 0.2388059701 | Y51: -34.06711697 | Z51: 0.2388059701 | AA51: -49.3217603 | AB51: 0.2388059701 | AC51: -43.26281584 | AD51: 0.2388059701 | AE51: 50 | AF51: 0.2388059701 | AG51: 35.07991471 | AH51: 0.2388059701 | AI51: 50 | AJ51: 0.2388059701 | AK51: 41.95239927 | AL51: 0.2388059701
W52: -48.30381401 | X52: 0.2487562189 | Y52: -33.60241296 | Z52: 0.2487562189 | AA52: -48.30381401 | AB52: 0.2487562189 | AC52: -37.67768819 | AD52: 0.2487562189 | AE52: 50 | AF52: 0.2487562189 | AG52: 35.29859895 | AH52: 0.2487562189 | AI52: 50 | AJ52: 0.2487562189 | AK52: 42.21330566 | AL52: 0.2487562189
W53: -44.72441918 | X53: 0.2587064677 | Y53: -31.16842448 | Z53: 0.2587064677 | AA53: -44.72441918 | AB53: 0.2587064677 | AC53: -36.40512112 | AD53: 0.2587064677 | AE53: 50 | AF53: 0.2587064677 | AG53: 36.4440053 | AH53: 0.2587064677 | AI53: 50 | AJ53: 0.2587064677 | AK53: 42.43499896 | AL53: 0.2587064677
W54: -42.79306387 | X54: 0.2686567164 | Y54: -29.85510286 | Z54: 0.2686567164 | AA54: -42.79306387 | AB54: 0.2686567164 | AC54: -33.17727946 | AD54: 0.2686567164 | AE54: 50 | AF54: 0.2686567164 | AG54: 37.062039 | AH54: 0.2686567164 | AI54: 50 | AJ54: 0.2686567164 | AK54: 42.68005585 | AL54: 0.2686567164
W55: -41.9508539 | X55: 0.2786069652 | Y55: -29.28240009 | Z55: 0.2786069652 | AA55: -41.9508539 | AB55: 0.2786069652 | AC55: -32.6962692 | AD55: 0.2786069652 | AE55: 50 | AF55: 0.2786069652 | AG55: 37.33154618 | AH55: 0.2786069652 | AI55: 50 | AJ55: 0.2786069652 | AK55: 42.90168389 | AL55: 0.2786069652
W56: -38.99994567 | X56: 0.2885572139 | Y56: -27.27578249 | Z56: 0.2885572139 | AA56: -38.99994567 | AB56: 0.2885572139 | AC56: -30.3760284 | AD56: 0.2885572139 | AE56: 50 | AF56: 0.2885572139 | AG56: 38.27583682 | AH56: 0.2885572139 | AI56: 50 | AJ56: 0.2885572139 | AK56: 43.17128736 | AL56: 0.2885572139
W57: -37.15060856 | X57: 0.2985074627 | Y57: -26.01823325 | Z57: 0.2985074627 | AA57: -37.15060856 | AB57: 0.2985074627 | AC57: -29.21341909 | AD57: 0.2985074627 | AE57: 50 | AF57: 0.2985074627 | AG57: 38.8676247 | AH57: 0.2985074627 | AI57: 50 | AJ57: 0.2985074627 | AK57: 43.3518258 | AL57: 0.2985074627
W58: -30.71369358 | X58: 0.3084577114 | Y58: -21.64113107 | Z58: 0.3084577114 | AA58: -30.71369358 | AB58: 0.3084577114 | AC58: -27.58274023 | AD58: 0.3084577114 | AE58: 50 | AF58: 0.3084577114 | AG58: 40.92743749 | AH58: 0.3084577114 | AI58: 50 | AJ58: 0.3084577114 | AK58: 43.62294959 | AL58: 0.3084577114
W59: -29.95894979 | X59: 0.3184079602 | Y59: -21.12790529 | Z59: 0.3184079602 | AA59: -29.99187674 | AB59: 0.3184079602 | AC59: -26.32545204 | AD59: 0.3184079602 | AE59: 50 | AF59: 0.3184079602 | AG59: 41.1689555 | AH59: 0.3184079602 | AI59: 50 | AJ59: 0.3184079602 | AK59: 43.85149983 | AL59: 0.3184079602
W60: -27.57746508 | X60: 0.328358209 | Y60: -19.50849569 | Z60: 0.328358209 | AA60: -27.57746508 | AB60: 0.328358209 | AC60: -22.4063956 | AD60: 0.328358209 | AE60: 50 | AF60: 0.328358209 | AG60: 41.93103061 | AH60: 0.328358209 | AI60: 50 | AJ60: 0.328358209 | AK60: 44.03558151 | AL60: 0.328358209
W61: -26.85561216 | X61: 0.3383084577 | Y61: -19.01763571 | Z61: 0.3383084577 | AA61: -26.85561216 | AB61: 0.3383084577 | AC61: -22.20518241 | AD61: 0.3383084577 | AE61: 50 | AF61: 0.3383084577 | AG61: 42.16202354 | AH61: 0.3383084577 | AI61: 50 | AJ61: 0.3383084577 | AK61: 44.22244403 | AL61: 0.3383084577
W62: -26.01298328 | X62: 0.3482587065 | Y62: -18.44464807 | Z62: 0.3482587065 | AA62: -26.01298328 | AB62: 0.3482587065 | AC62: -20.41464268 | AD62: 0.3482587065 | AE62: 50 | AF62: 0.3482587065 | AG62: 42.43166478 | AH62: 0.3482587065 | AI62: 50 | AJ62: 0.3482587065 | AK62: 44.38787418 | AL62: 0.3482587065
W63: -25.4528588 | X63: 0.3582089552 | Y63: -18.06376342 | Z63: 0.3582089552 | AA63: -25.4528588 | AB63: 0.3582089552 | AC63: -19.90597905 | AD63: 0.3582089552 | AE63: 50 | AF63: 0.3582089552 | AG63: 42.61090462 | AH63: 0.3582089552 | AI63: 50 | AJ63: 0.3582089552 | AK63: 44.62858358 | AL63: 0.3582089552
W64: -24.1306136 | X64: 0.368159204 | Y64: -17.16463668 | Z64: 0.368159204 | AA64: -24.1306136 | AB64: 0.368159204 | AC64: -17.43128586 | AD64: 0.368159204 | AE64: 50 | AF64: 0.368159204 | AG64: 43.03402308 | AH64: 0.368159204 | AI64: 50 | AJ64: 0.368159204 | AK64: 44.89440584 | AL64: 0.368159204
W65: -19.95354507 | X65: 0.3781094527 | Y65: -14.32423008 | Z65: 0.3781094527 | AA65: -20.09147146 | AB65: 0.3781094527 | AC65: -17.34090499 | AD65: 0.3781094527 | AE65: 50 | AF65: 0.3781094527 | AG65: 44.37068501 | AH65: 0.3781094527 | AI65: 50 | AJ65: 0.3781094527 | AK65: 45.09495548 | AL65: 0.3781094527
W66: -19.13329695 | X66: 0.3880597015 | Y66: -13.76646136 | Z66: 0.3880597015 | AA66: -19.13329695 | AB66: 0.3880597015 | AC66: -16.94833767 | AD66: 0.3880597015 | AE66: 50 | AF66: 0.3880597015 | AG66: 44.63316441 | AH66: 0.3880597015 | AI66: 50 | AJ66: 0.3880597015 | AK66: 45.26233223 | AL66: 0.3880597015
W67: -18.29423304 | X67: 0.3980099502 | Y67: -13.1958979 | Z67: 0.3980099502 | AA67: -18.29423304 | AB67: 0.3980099502 | AC67: -15.5636764 | AD67: 0.3980099502 | AE67: 50 | AF67: 0.3980099502 | AG67: 44.90166486 | AH67: 0.3980099502 | AI67: 50 | AJ67: 0.3980099502 | AK67: 45.41868546 | AL67: 0.3980099502
W68: -16.50493459 | X68: 0.407960199 | Y68: -11.97917496 | Z68: 0.407960199 | AA68: -16.50493459 | AB68: 0.407960199 | AC68: -15.0015573 | AD68: 0.407960199 | AE68: 50 | AF68: 0.407960199 | AG68: 45.47424036 | AH68: 0.407960199 | AI68: 50 | AJ68: 0.407960199 | AK68: 45.62094089 | AL68: 0.407960199
W69: -16.12482877 | X69: 0.4179104478 | Y69: -11.72070299 | Z69: 0.4179104478 | AA69: -16.12482877 | AB69: 0.4179104478 | AC69: -13.27779437 | AD69: 0.4179104478 | AE69: 50 | AF69: 0.4179104478 | AG69: 45.59587423 | AH69: 0.4179104478 | AI69: 50 | AJ69: 0.4179104478 | AK69: 45.87304078 | AL69: 0.4179104478
W70: -13.61173632 | X70: 0.4278606965 | Y70: -10.01180013 | Z70: 0.4278606965 | AA70: -13.80156702 | AB70: 0.4278606965 | AC70: -10.25788896 | AD70: 0.4278606965 | AE70: 50 | AF70: 0.4278606965 | AG70: 46.40006381 | AH70: 0.4278606965 | AI70: 50 | AJ70: 0.4278606965 | AK70: 46.02667091 | AL70: 0.4278606965
W71: -11.75512208 | X71: 0.4378109453 | Y71: -8.74930245 | Z71: 0.4378109453 | AA71: -11.75512208 | AB71: 0.4378109453 | AC71: -9.667697724 | AD71: 0.4378109453 | AE71: 50 | AF71: 0.4378109453 | AG71: 46.99418037 | AH71: 0.4378109453 | AI71: 50 | AJ71: 0.4378109453 | AK71: 46.16965729 | AL71: 0.4378109453
W72: -10.97200792 | X72: 0.447761194 | Y72: -8.216784817 | Z72: 0.447761194 | AA72: -10.97200792 | AB72: 0.447761194 | AC72: -8.407637391 | AD72: 0.447761194 | AE72: 50 | AF72: 0.447761194 | AG72: 47.2447769 | AH72: 0.447761194 | AI72: 50 | AJ72: 0.447761194 | AK72: 46.42747644 | AL72: 0.447761194
W73: -9.574930949 | X73: 0.4577114428 | Y73: -7.266772479 | Z73: 0.4577114428 | AA73: -10.25958794 | AB73: 0.4577114428 | AC73: -7.61975017 | AD73: 0.4577114428 | AE73: 50 | AF73: 0.4577114428 | AG73: 47.69184153 | AH73: 0.4577114428 | AI73: 50 | AJ73: 0.4577114428 | AK73: 46.57535485 | AL73: 0.4577114428
W74: -8.753828817 | X74: 0.4676616915 | Y74: -6.708423029 | Z74: 0.4676616915 | AA74: -8.799351281 | AB74: 0.4676616915 | AC74: -5.21615851 | AD74: 0.4676616915 | AE74: 50 | AF74: 0.4676616915 | AG74: 47.95459421 | AH74: 0.4676616915 | AI74: 50 | AJ74: 0.4676616915 | AK74: 46.74372491 | AL74: 0.4676616915
W75: -6.435902385 | X75: 0.4776119403 | Y75: -5.132233056 | Z75: 0.4776119403 | AA75: -6.435902385 | AB75: 0.4776119403 | AC75: -4.411851669 | AD75: 0.4776119403 | AE75: 50 | AF75: 0.4776119403 | AG75: 48.69633067 | AH75: 0.4776119403 | AI75: 50 | AJ75: 0.4776119403 | AK75: 46.95636336 | AL75: 0.4776119403
W76: -5.822058289 | X76: 0.4875621891 | Y76: -4.71481907 | Z76: 0.4875621891 | AA76: -5.822058289 | AB76: 0.4875621891 | AC76: -1.962422225 | AD76: 0.4875621891 | AE76: 50 | AF76: 0.4875621891 | AG76: 48.89276078 | AH76: 0.4875621891 | AI76: 50 | AJ76: 0.4875621891 | AK76: 47.1347685 | AL76: 0.4875621891
W77: -5.635898834 | X77: 0.4975124378 | Y77: -4.588230641 | Z77: 0.4975124378 | AA77: -5.635898834 | AB77: 0.4975124378 | AC77: -1.349893624 | AD77: 0.4975124378 | AE77: 50 | AF77: 0.4975124378 | AG77: 48.95233181 | AH77: 0.4975124378 | AI77: 50 | AJ77: 0.4975124378 | AK77: 47.26662087 | AL77: 0.4975124378
W78: -4.335621428 | X78: 0.5074626866 | Y78: -3.704042005 | Z78: 0.5074626866 | AA78: -4.335621428 | AB78: 0.5074626866 | AC78: -0.7630978658 | AD78: 0.5074626866 | AE78: 50 | AF78: 0.5074626866 | AG78: 49.36842058 | AH78: 0.5074626866 | AI78: 50 | AJ78: 0.5074626866 | AK78: 47.48249999 | AL78: 0.5074626866
W79: -3.422491101 | X79: 0.5174129353 | Y79: -3.083113383 | Z79: 0.5174129353 | AA79: -3.482896856 | AB79: 0.5174129353 | AC79: -0.7164641304 | AD79: 0.5174129353 | AE79: 50 | AF79: 0.5174129353 | AG79: 49.66062228 | AH79: 0.5174129353 | AI79: 50 | AJ79: 0.5174129353 | AK79: 47.65668412 | AL79: 0.5174129353
W80: -3.137764015 | X80: 0.5273631841 | Y80: -2.889498964 | Z80: 0.5273631841 | AA80: -3.312071693 | AB80: 0.5273631841 | AC80: 0.4149662828 | AD80: 0.5273631841 | AE80: 50 | AF80: 0.5273631841 | AG80: 49.75173495 | AH80: 0.5273631841 | AI80: 50 | AJ80: 0.5273631841 | AK80: 47.79889041 | AL80: 0.5273631841
W81: -2.809081443 | X81: 0.5373134328 | Y81: -2.665994815 | Z81: 0.5373134328 | AA81: -3.097383254 | AB81: 0.5373134328 | AC81: 1.202320525 | AD81: 0.5373134328 | AE81: 50 | AF81: 0.5373134328 | AG81: 49.85691337 | AH81: 0.5373134328 | AI81: 50 | AJ81: 0.5373134328 | AK81: 47.92430873 | AL81: 0.5373134328
W82: -2.595399946 | X82: 0.5472636816 | Y82: -2.520691398 | Z82: 0.5472636816 | AA82: -2.809081443 | AB82: 0.5472636816 | AC82: 1.621379928 | AD82: 0.5472636816 | AE82: 50 | AF82: 0.5472636816 | AG82: 49.92529145 | AH82: 0.5472636816 | AI82: 50 | AJ82: 0.5472636816 | AK82: 48.11144917 | AL82: 0.5472636816
W83: -1.699500955 | X83: 0.5572139303 | Y83: -1.911480084 | Z83: 0.5572139303 | AA83: -2.595399946 | AB83: 0.5572139303 | AC83: 2.188107206 | AD83: 0.5572139303 | AE83: 50 | AF83: 0.5572139303 | AG83: 50.21197913 | AH83: 0.5572139303 | AI83: 50 | AJ83: 0.5572139303 | AK83: 48.27578201 | AL83: 0.5572139303
W84: -1.225711576 | X84: 0.5671641791 | Y84: -1.589303306 | Z84: 0.5671641791 | AA84: -1.699500955 | AB84: 0.5671641791 | AC84: 3.12124366 | AD84: 0.5671641791 | AE84: 50 | AF84: 0.5671641791 | AG84: 50.36359173 | AH84: 0.5671641791 | AI84: 50 | AJ84: 0.5671641791 | AK84: 48.46330845 | AL84: 0.5671641791
W85: -0.2988679609 | X85: 0.5771144279 | Y85: -0.9590496474 | Z85: 0.5771144279 | AA85: -0.2988679609 | AB85: 0.5771144279 | AC85: 4.704947618 | AD85: 0.5771144279 | AE85: 50 | AF85: 0.5771144279 | AG85: 50.66018169 | AH85: 0.5771144279 | AI85: 50 | AJ85: 0.5771144279 | AK85: 48.57570189 | AL85: 0.5771144279
W86: 1.277001547 | X86: 0.5870646766 | Y86: 0.1125416181 | Z86: 0.5870646766 | AA86: 1.277001547 | AB86: 0.5870646766 | AC86: 4.838071347 | AD86: 0.5870646766 | AE86: 50 | AF86: 0.5870646766 | AG86: 51.16445993 | AH86: 0.5870646766 | AI86: 50 | AJ86: 0.5870646766 | AK86: 48.77327939 | AL86: 0.5870646766
W87: 3.466804004 | X87: 0.5970149254 | Y87: 1.601607289 | Z87: 0.5970149254 | AA87: 3.466804004 | AB87: 0.5970149254 | AC87: 5.238545342 | AD87: 0.5970149254 | AE87: 50 | AF87: 0.5970149254 | AG87: 51.86519672 | AH87: 0.5970149254 | AI87: 50 | AJ87: 0.5970149254 | AK87: 48.96221132 | AL87: 0.5970149254
W88: 3.96632595 | X88: 0.6069651741 | Y88: 1.941282212 | Z88: 0.6069651741 | AA88: 3.96632595 | AB88: 0.6069651741 | AC88: 6.833684278 | AD88: 0.6069651741 | AE88: 50 | AF88: 0.6069651741 | AG88: 52.02504374 | AH88: 0.6069651741 | AI88: 50 | AJ88: 0.6069651741 | AK88: 49.12251544 | AL88: 0.6069651741
W89: 5.222253244 | X89: 0.6169154229 | Y89: 2.795312772 | Z89: 0.6169154229 | AA89: 5.222253244 | AB89: 0.6169154229 | AC89: 7.739998254 | AD89: 0.6169154229 | AE89: 50 | AF89: 0.6169154229 | AG89: 52.42694047 | AH89: 0.6169154229 | AI89: 50 | AJ89: 0.6169154229 | AK89: 49.25041596 | AL89: 0.6169154229
W90: 9.015780464 | X90: 0.6268656716 | Y90: 5.374911282 | Z90: 0.6268656716 | AA90: 9.015780464 | AB90: 0.6268656716 | AC90: 8.145566354 | AD90: 0.6268656716 | AE90: 50 | AF90: 0.6268656716 | AG90: 53.64086918 | AH90: 0.6268656716 | AI90: 50 | AJ90: 0.6268656716 | AK90: 49.41403628 | AL90: 0.6268656716
W91: 10.24338139 | X91: 0.6368159204 | Y91: 6.209679908 | Z91: 0.6368159204 | AA91: 10.24338139 | AB91: 0.6368159204 | AC91: 11.04398154 | AD91: 0.6368159204 | AE91: 50 | AF91: 0.6368159204 | AG91: 54.03370148 | AH91: 0.6368159204 | AI91: 50 | AJ91: 0.6368159204 | AK91: 49.56365708 | AL91: 0.6368159204
W92: 11.42141324 | X92: 0.6467661692 | Y92: 7.010741569 | Z92: 0.6467661692 | AA92: 11.00486319 | AB92: 0.6467661692 | AC92: 11.8618759 | AD92: 0.6467661692 | AE92: 50 | AF92: 0.6467661692 | AG92: 54.41067167 | AH92: 0.6467661692 | AI92: 50 | AJ92: 0.6467661692 | AK92: 49.69215365 | AL92: 0.6467661692
W93: 11.88365147 | X93: 0.6567164179 | Y93: 7.325063565 | Z93: 0.6567164179 | AA93: 11.88365147 | AB93: 0.6567164179 | AC93: 13.33905197 | AD93: 0.6567164179 | AE93: 50 | AF93: 0.6567164179 | AG93: 54.5585879 | AH93: 0.6567164179 | AI93: 50 | AJ93: 0.6567164179 | AK93: 49.86694254 | AL93: 0.6567164179
W94: 13.58712217 | X94: 0.6666666667 | Y94: 8.48342364 | Z94: 0.6666666667 | AA94: 13.58712217 | AB94: 0.6666666667 | AC94: 15.47829691 | AD94: 0.6666666667 | AE94: 50 | AF94: 0.6666666667 | AG94: 55.10369853 | AH94: 0.6666666667 | AI94: 50 | AJ94: 0.6666666667 | AK94: 50.00182612 | AL94: 0.6666666667
W95: 14.32915548 | X95: 0.6766169154 | Y95: 8.988006292 | Z95: 0.6766169154 | AA95: 14.32915548 | AB95: 0.6766169154 | AC95: 16.67247136 | AD95: 0.6766169154 | AE95: 50 | AF95: 0.6766169154 | AG95: 55.34114919 | AH95: 0.6766169154 | AI95: 50 | AJ95: 0.6766169154 | AK95: 50.15867584 | AL95: 0.6766169154
W96: 15.56985544 | X96: 0.6865671642 | Y96: 9.831682265 | Z96: 0.6865671642 | AA96: 14.95206068 | AB96: 0.6865671642 | AC96: 16.93298441 | AD96: 0.6865671642 | AE96: 50 | AF96: 0.6865671642 | AG96: 55.73817317 | AH96: 0.6865671642 | AI96: 50 | AJ96: 0.6865671642 | AK96: 50.28490845 | AL96: 0.6865671642
W97: 18.76815352 | X97: 0.6965174129 | Y97: 12.00652496 | Z97: 0.6965174129 | AA97: 17.62886415 | AB97: 0.6965174129 | AC97: 18.10660621 | AD97: 0.6965174129 | AE97: 50 | AF97: 0.6965174129 | AG97: 56.76162856 | AH97: 0.6965174129 | AI97: 50 | AJ97: 0.6965174129 | AK97: 50.4472745 | AL97: 0.6965174129
W98: 18.92966519 | X98: 0.7064676617 | Y98: 12.11635289 | Z98: 0.7064676617 | AA98: 18.76815352 | AB98: 0.7064676617 | AC98: 20.16345593 | AD98: 0.7064676617 | AE98: 50 | AF98: 0.7064676617 | AG98: 56.81331229 | AH98: 0.7064676617 | AI98: 50 | AJ98: 0.7064676617 | AK98: 50.66437426 | AL98: 0.7064676617
W99: 22.08861685 | X99: 0.7164179104 | Y99: 14.26444002 | Z99: 0.7164179104 | AA99: 22.08861685 | AB99: 0.7164179104 | AC99: 20.93969056 | AD99: 0.7164179104 | AE99: 50 | AF99: 0.7164179104 | AG99: 57.82417683 | AH99: 0.7164179104 | AI99: 50 | AJ99: 0.7164179104 | AK99: 50.80784679 | AL99: 0.7164179104
W100: 23.8112272 | X100: 0.7263681592 | Y100: 15.43581506 | Z100: 0.7263681592 | AA100: 23.33829369 | AB100: 0.7263681592 | AC100: 22.30485453 | AD100: 0.7263681592 | AE100: 50 | AF100: 0.7263681592 | AG100: 58.37541214 | AH100: 0.7263681592 | AI100: 50 | AJ100: 0.7263681592 | AK100: 50.96945405 | AL100: 0.7263681592
W101: 24.57603267 | X101: 0.736318408 | Y101: 15.95588278 | Z101: 0.736318408 | AA101: 24.20137003 | AB101: 0.736318408 | AC101: 22.7362434 | AD101: 0.736318408 | AE101: 50 | AF101: 0.736318408 | AG101: 58.62014989 | AH101: 0.736318408 | AI101: 50 | AJ101: 0.736318408 | AK101: 51.16209246 | AL101: 0.736318408
W102: 24.75110389 | X102: 0.7462686567 | Y102: 16.07493121 | Z102: 0.7462686567 | AA102: 24.75110389 | AB102: 0.7462686567 | AC102: 24.31534663 | AD102: 0.7462686567 | AE102: 50 | AF102: 0.7462686567 | AG102: 58.67617268 | AH102: 0.7462686567 | AI102: 50 | AJ102: 0.7462686567 | AK102: 51.31446841 | AL102: 0.7462686567
W103: 25.91120806 | X103: 0.7562189055 | Y103: 16.86380204 | Z103: 0.7562189055 | AA103: 25.91120806 | AB103: 0.7562189055 | AC103: 25.8557937 | AD103: 0.7562189055 | AE103: 50 | AF103: 0.7562189055 | AG103: 59.04740601 | AH103: 0.7562189055 | AI103: 50 | AJ103: 0.7562189055 | AK103: 51.45951175 | AL103: 0.7562189055
W104: 28.01361411 | X104: 0.7661691542 | Y104: 18.29343816 | Z104: 0.7661691542 | AA104: 28.01361411 | AB104: 0.7661691542 | AC104: 27.37246203 | AD104: 0.7661691542 | AE104: 50 | AF104: 0.7661691542 | AG104: 59.72017595 | AH104: 0.7661691542 | AI104: 50 | AJ104: 0.7661691542 | AK104: 51.66340612 | AL104: 0.7661691542
W105: 29.93863959 | X105: 0.776119403 | Y105: 19.60245549 | Z105: 0.776119403 | AA105: 28.79271523 | AB105: 0.776119403 | AC105: 28.88133179 | AD105: 0.776119403 | AE105: 50 | AF105: 0.776119403 | AG105: 60.3361841 | AH105: 0.776119403 | AI105: 50 | AJ105: 0.776119403 | AK105: 51.83370896 | AL105: 0.776119403
W106: 30.59421439 | X106: 0.7860696517 | Y106: 20.04824635 | Z106: 0.7860696517 | AA106: 30.52314853 | AB106: 0.7860696517 | AC106: 29.09821454 | AD106: 0.7860696517 | AE106: 50 | AF106: 0.7860696517 | AG106: 60.54596804 | AH106: 0.7860696517 | AI106: 50 | AJ106: 0.7860696517 | AK106: 52.05758058 | AL106: 0.7860696517
W107: 31.12718434 | X107: 0.7960199005 | Y107: 20.41066592 | Z107: 0.7960199005 | AA107: 30.77272572 | AB107: 0.7960199005 | AC107: 29.64420997 | AD107: 0.7960199005 | AE107: 50 | AF107: 0.7960199005 | AG107: 60.71651842 | AH107: 0.7960199005 | AI107: 50 | AJ107: 0.7960199005 | AK107: 52.24961477 | AL107: 0.7960199005
W108: 31.40197683 | X108: 0.8059701493 | Y108: 20.59752481 | Z108: 0.8059701493 | AA108: 31.40197683 | AB108: 0.8059701493 | AC108: 31.820935 | AD108: 0.8059701493 | AE108: 50 | AF108: 0.8059701493 | AG108: 60.80445202 | AH108: 0.8059701493 | AI108: 50 | AJ108: 0.8059701493 | AK108: 52.43802838 | AL108: 0.8059701493
W109: 32.9933117 | X109: 0.815920398 | Y109: 21.67963252 | Z109: 0.815920398 | AA109: 32.97802426 | AB109: 0.815920398 | AC109: 33.32419467 | AD109: 0.815920398 | AE109: 50 | AF109: 0.815920398 | AG109: 61.31367918 | AH109: 0.815920398 | AI109: 50 | AJ109: 0.815920398 | AK109: 52.57703879 | AL109: 0.815920398
W110: 34.78370642 | X110: 0.8258706468 | Y110: 22.89710093 | Z110: 0.8258706468 | AA110: 34.78370642 | AB110: 0.8258706468 | AC110: 34.16807225 | AD110: 0.8258706468 | AE110: 50 | AF110: 0.8258706468 | AG110: 61.88660549 | AH110: 0.8258706468 | AI110: 50 | AJ110: 0.8258706468 | AK110: 52.85543458 | AL110: 0.8258706468
W111: 36.90045278 | X111: 0.8358208955 | Y111: 24.33648845 | Z111: 0.8358208955 | AA111: 35.78156051 | AB111: 0.8358208955 | AC111: 35.61330301 | AD111: 0.8358208955 | AE111: 50 | AF111: 0.8358208955 | AG111: 62.56396432 | AH111: 0.8358208955 | AI111: 50.05775339 | AJ111: 0.8358208955 | AK111: 53.03414604 | AL111: 0.8358208955
W112: 37.61350585 | X112: 0.8457711443 | Y112: 24.82136455 | Z112: 0.8457711443 | AA112: 36.90045278 | AB112: 0.8457711443 | AC112: 36.65840526 | AD112: 0.8457711443 | AE112: 50 | AF112: 0.8457711443 | AG112: 62.79214131 | AH112: 0.8457711443 | AI112: 50.16904541 | AJ112: 0.8457711443 | AK112: 53.22643201 | AL112: 0.8457711443
W113: 38.65758978 | X113: 0.855721393 | Y113: 25.53134161 | Z113: 0.855721393 | AA113: 38.34603992 | AB113: 0.855721393 | AC113: 39.34912116 | AD113: 0.855721393 | AE113: 50 | AF113: 0.855721393 | AG113: 63.12624816 | AH113: 0.855721393 | AI113: 50.33455804 | AJ113: 0.855721393 | AK113: 53.45521253 | AL113: 0.855721393
W114: 41.9510181 | X114: 0.8656716418 | Y114: 27.77087287 | Z114: 0.8656716418 | AA114: 39.8818928 | AB114: 0.8656716418 | AC114: 39.68919713 | AD114: 0.8656716418 | AE114: 50 | AF114: 0.8656716418 | AG114: 64.18014523 | AH114: 0.8656716418 | AI114: 50.47362565 | AJ114: 0.8656716418 | AK114: 53.7364273 | AL114: 0.8656716418
W115: 43.73861058 | X115: 0.8756218905 | Y115: 28.98643576 | Z115: 0.8756218905 | AA115: 43.65560659 | AB115: 0.8756218905 | AC115: 43.34133577 | AD115: 0.8756218905 | AE115: 50 | AF115: 0.8756218905 | AG115: 64.75217482 | AH115: 0.8756218905 | AI115: 50.64573961 | AJ115: 0.8756218905 | AK115: 53.88006959 | AL115: 0.8756218905
W116: 45.47240737 | X116: 0.8855721393 | Y116: 30.16541758 | Z116: 0.8855721393 | AA116: 44.36517973 | AB116: 0.8855721393 | AC116: 43.87166803 | AD116: 0.8855721393 | AE116: 50 | AF116: 0.8855721393 | AG116: 65.30698979 | AH116: 0.8855721393 | AI116: 50.79303041 | AJ116: 0.8855721393 | AK116: 54.17426855 | AL116: 0.8855721393
W117: 47.28601908 | X117: 0.8955223881 | Y117: 31.39867354 | Z117: 0.8955223881 | AA117: 46.86558775 | AB117: 0.8955223881 | AC117: 45.47058125 | AD117: 0.8955223881 | AE117: 50 | AF117: 0.8955223881 | AG117: 65.88734554 | AH117: 0.8955223881 | AI117: 50.95647848 | AJ117: 0.8955223881 | AK117: 54.52165232 | AL117: 0.8955223881
W118: 47.53857072 | X118: 0.9054726368 | Y118: 31.57040866 | Z118: 0.9054726368 | AA118: 47.51560433 | AB118: 0.9054726368 | AC118: 47.18537554 | AD118: 0.9054726368 | AE118: 50 | AF118: 0.9054726368 | AG118: 65.96816207 | AH118: 0.9054726368 | AI118: 51.13883381 | AJ118: 0.9054726368 | AK118: 54.78028353 | AL118: 0.9054726368
W119: 55.28655039 | X119: 0.9154228856 | Y119: 36.83903483 | Z119: 0.9154228856 | AA119: 55.28655039 | AB119: 0.9154228856 | AC119: 50.2632182 | AD119: 0.9154228856 | AE119: 50 | AF119: 0.9154228856 | AG119: 68.44751556 | AH119: 0.9154228856 | AI119: 51.30080103 | AJ119: 0.9154228856 | AK119: 55.02333219 | AL119: 0.9154228856
W120: 61.10584899 | X120: 0.9253731343 | Y120: 40.79615788 | Z120: 0.9253731343 | AA120: 60.14937052 | AB120: 0.9253731343 | AC120: 57.49182553 | AD120: 0.9253731343 | AE120: 50 | AF120: 0.9253731343 | AG120: 70.30969111 | AH120: 0.9253731343 | AI120: 51.50575913 | AJ120: 0.9253731343 | AK120: 55.30698159 | AL120: 0.9253731343
W121: 62.67811698 | X121: 0.9353233831 | Y121: 41.86530011 | Z121: 0.9353233831 | AA121: 62.67811698 | AB121: 0.9353233831 | AC121: 58.09672204 | AD121: 0.9353233831 | AE121: 50 | AF121: 0.9353233831 | AG121: 70.81281687 | AH121: 0.9353233831 | AI121: 51.73066491 | AJ121: 0.9353233831 | AK121: 55.74093543 | AL121: 0.9353233831
W122: 64.98899664 | X122: 0.9452736318 | Y122: 43.43669828 | Z122: 0.9452736318 | AA122: 64.18926481 | AB122: 0.9452736318 | AC122: 58.1670081 | AD122: 0.9452736318 | AE122: 50 | AF122: 0.9452736318 | AG122: 71.55229836 | AH122: 0.9452736318 | AI122: 52.0107973 | AJ122: 0.9452736318 | AK122: 56.11023795 | AL122: 0.9452736318
W123: 68.91598811 | X123: 0.9552238806 | Y123: 46.10705248 | Z123: 0.9552238806 | AA123: 68.78462893 | AB123: 0.9552238806 | AC123: 63.68951477 | AD123: 0.9552238806 | AE123: 50 | AF123: 0.9552238806 | AG123: 72.80893563 | AH123: 0.9552238806 | AI123: 52.26172737 | AJ123: 0.9552238806 | AK123: 56.48155897 | AL123: 0.9552238806
W124: 72.78510505 | X124: 0.9651741294 | Y124: 48.738052 | Z124: 0.9651741294 | AA124: 72.78510505 | AB124: 0.9651741294 | AC124: 66.15431174 | AD124: 0.9651741294 | AE124: 50 | AF124: 0.9651741294 | AG124: 74.04705305 | AH124: 0.9651741294 | AI124: 52.51772297 | AJ124: 0.9651741294 | AK124: 56.93820364 | AL124: 0.9651741294
W125: 78.90444602 | X125: 0.9751243781 | Y125: 52.89920386 | Z125: 0.9751243781 | AA125: 77.20424015 | AB125: 0.9751243781 | AC125: 73.59746443 | AD125: 0.9751243781 | AE125: 50 | AF125: 0.9751243781 | AG125: 76.00524216 | AH125: 0.9751243781 | AI125: 52.95443124 | AJ125: 0.9751243781 | AK125: 57.47924703 | AL125: 0.9751243781
W126: 104.3686941 | X126: 0.9950248756 | Y126: 70.21489257 | Z126: 0.9950248756 | AA126: 101.4142629 | AB126: 0.9950248756 | AC126: 96.00010388 | AD126: 0.9950248756 | AE126: 50 | AF126: 0.9950248756 | AG126: 84.15380155 | AH126: 0.9950248756 | AI126: 54.33870298 | AJ126: 0.9950248756 | AK126: 59.01854275 | AL126: 0.9950248756
W127: =SUM($W$27:$W$126) -> -1078.891118 | X127: =SUM($X$27:$X$126) -> 49.26865672 | Y127: =SUM($Y$27:$Y$126) -> -809.2279038 | Z127: =SUM($Z$27:$Z$126) -> 49.26865672 | AA127: =SUM($AA$27:$AA$126) -> -1099.58086 | AB127: =SUM($AB$27:$AB$126) -> 49.26865672 | AC127: =SUM($AC$27:$AC$126) -> -732.1919009 | AD127: =SUM($AD$27:$AD$126) -> 49.26865672 | AE127: =SUM($AE$27:$AE$126) -> 5000 | AF127: =SUM($AF$27:$AF$126) -> 49.26865672 | AG127: =SUM($AG$27:$AG$126) -> 4730.336786 | AH127: =SUM($AH$27:$AH$126) -> 49.26865672 | AI127: =SUM($AI$27:$AI$126) -> 5023.189672 | AJ127: =SUM($AJ$27:$AJ$126) -> 49.26865672 | AK127: =SUM($AK$27:$AK$126) -> 4647.890972 | AL127: =SUM($AL$27:$AL$126) -> 49.26865672

Sheet Input variables (hidden)
W25: Cumulative distribution data, Crop Price and Yield Simulation - Flexible leases
W26: Yield -- Wheat - North Central KS_Rotation | Y26: Price -- Wheat - North Central KS_Rotation
W27: 30.93027737 | X27: 0.004975124378 | Y27: 3.188945474 | Z27: 0.004975124378
W28: 32.26951639 | X28: 0.009950248756 | Y28: 3.247611913 | Z28: 0.009950248756
W29: 33.04780793 | X29: 0.01990049751 | Y29: 3.347248509 | Z29: 0.01990049751
W30: 34.21985866 | X30: 0.02985074627 | Y30: 3.462975854 | Z30: 0.02985074627
W31: 34.83940322 | X31: 0.03980099502 | Y31: 3.51962429 | Z31: 0.03980099502
W32: 35.47566725 | X32: 0.04975124378 | Y32: 3.608863579 | Z32: 0.04975124378
W33: 35.8306905 | X33: 0.05970149254 | Y33: 3.656490183 | Z33: 0.05970149254
W34: 36.4138549 | X34: 0.06965174129 | Y34: 3.708765497 | Z34: 0.06965174129
W35: 36.85801863 | X35: 0.07960199005 | Y35: 3.774156886 | Z35: 0.07960199005
W36: 37.29747436 | X36: 0.08955223881 | Y36: 3.81861622 | Z36: 0.08955223881
W37: 37.63153179 | X37: 0.09950248756 | Y37: 3.863961335 | Z37: 0.09950248756
W38: 38.10130711 | X38: 0.1094527363 | Y38: 3.888884269 | Z38: 0.1094527363
W39: 38.31917057 | X39: 0.1194029851 | Y39: 3.943495446 | Z39: 0.1194029851
W40: 38.74295904 | X40: 0.1293532338 | Y40: 3.985695013 | Z40: 0.1293532338
W41: 39.12805327 | X41: 0.1393034826 | Y41: 4.012522234 | Z41: 0.1393034826
W42: 39.38127651 | X42: 0.1492537313 | Y42: 4.055736308 | Z42: 0.1492537313
W43: 39.66593479 | X43: 0.1592039801 | Y43: 4.083971898 | Z43: 0.1592039801
W44: 40.04385066 | X44: 0.1691542289 | Y44: 4.125443693 | Z44: 0.1691542289
W45: 40.30906445 | X45: 0.1791044776 | Y45: 4.158013631 | Z45: 0.1791044776
W46: 40.56402577 | X46: 0.1890547264 | Y46: 4.178575335 | Z46: 0.1890547264
W47: 40.93909582 | X47: 0.1990049751 | Y47: 4.224111591 | Z47: 0.1990049751
W48: 41.1026447 | X48: 0.2089552239 | Y48: 4.242973637 | Z48: 0.2089552239
W49: 41.41830257 | X49: 0.2189054726 | Y49: 4.280309225 | Z49: 0.2189054726
W50: 41.65508543 | X50: 0.2288557214 | Y50: 4.312217205 | Z50: 0.2288557214
W51: 41.95239927 | X51: 0.2388059701 | Y51: 4.33652412 | Z51: 0.2388059701
W52: 42.21330566 | X52: 0.2487562189 | Y52: 4.360489293 | Z52: 0.2487562189
W53: 42.43499896 | X53: 0.2587064677 | Y53: 4.39395087 | Z53: 0.2587064677
W54: 42.68005585 | X54: 0.2686567164 | Y54: 4.422316986 | Z54: 0.2686567164
W55: 42.90168389 | X55: 0.2786069652 | Y55: 4.445369539 | Z55: 0.2786069652
W56: 43.17128736 | X56: 0.2885572139 | Y56: 4.466957822 | Z56: 0.2885572139
W57: 43.3518258 | X57: 0.2985074627 | Y57: 4.490874419 | Z57: 0.2985074627
W58: 43.62294959 | X58: 0.3084577114 | Y58: 4.523862128 | Z58: 0.3084577114
W59: 43.85149983 | X59: 0.3184079602 | Y59: 4.541411184 | Z59: 0.3184079602
W60: 44.03558151 | X60: 0.328358209 | Y60: 4.571647808 | Z60: 0.328358209
W61: 44.22244403 | X61: 0.3383084577 | Y61: 4.589318385 | Z61: 0.3383084577
W62: 44.38787418 | X62: 0.3482587065 | Y62: 4.612666375 | Z62: 0.3482587065
W63: 44.62858358 | X63: 0.3582089552 | Y63: 4.632720895 | Z63: 0.3582089552
W64: 44.89440584 | X64: 0.368159204 | Y64: 4.658462846 | Z64: 0.368159204
W65: 45.09495548 | X65: 0.3781094527 | Y65: 4.687417138 | Z65: 0.3781094527
W66: 45.26233223 | X66: 0.3880597015 | Y66: 4.709526912 | Z66: 0.3880597015
W67: 45.41868546 | X67: 0.3980099502 | Y67: 4.723673354 | Z67: 0.3980099502
W68: 45.62094089 | X68: 0.407960199 | Y68: 4.751558488 | Z68: 0.407960199
W69: 45.87304078 | X69: 0.4179104478 | Y69: 4.773997075 | Z69: 0.4179104478
W70: 46.02667091 | X70: 0.4278606965 | Y70: 4.786134583 | Z70: 0.4278606965
W71: 46.16965729 | X71: 0.4378109453 | Y71: 4.810811846 | Z71: 0.4378109453
W72: 46.42747644 | X72: 0.447761194 | Y72: 4.829048586 | Z72: 0.447761194
W73: 46.57535485 | X73: 0.4577114428 | Y73: 4.85585769 | Z73: 0.4577114428
W74: 46.74372491 | X74: 0.4676616915 | Y74: 4.871348755 | Z74: 0.4676616915
W75: 46.95636336 | X75: 0.4776119403 | Y75: 4.889596653 | Z75: 0.4776119403
W76: 47.1347685 | X76: 0.4875621891 | Y76: 4.916466413 | Z76: 0.4875621891
W77: 47.26662087 | X77: 0.4975124378 | Y77: 4.929621848 | Z77: 0.4975124378
W78: 47.48249999 | X78: 0.5074626866 | Y78: 4.947877709 | Z78: 0.5074626866
W79: 47.65668412 | X79: 0.5174129353 | Y79: 4.968829927 | Z79: 0.5174129353
W80: 47.79889041 | X80: 0.5273631841 | Y80: 4.987695497 | Z80: 0.5273631841
W81: 47.92430873 | X81: 0.5373134328 | Y81: 5.007132505 | Z81: 0.5373134328
W82: 48.11144917 | X82: 0.5472636816 | Y82: 5.030757301 | Z82: 0.5472636816
W83: 48.27578201 | X83: 0.5572139303 | Y83: 5.045207834 | Z83: 0.5572139303
W84: 48.46330845 | X84: 0.5671641791 | Y84: 5.060917865 | Z84: 0.5671641791
W85: 48.57570189 | X85: 0.5771144279 | Y85: 5.081195773 | Z85: 0.5771144279
W86: 48.77327939 | X86: 0.5870646766 | Y86: 5.103428283 | Z86: 0.5870646766
W87: 48.96221132 | X87: 0.5970149254 | Y87: 5.118801511 | Z87: 0.5970149254
W88: 49.12251544 | X88: 0.6069651741 | Y88: 5.133805748 | Z88: 0.6069651741
W89: 49.25041596 | X89: 0.6169154229 | Y89: 5.150639868 | Z89: 0.6169154229
W90: 49.41403628 | X90: 0.6268656716 | Y90: 5.170569548 | Z90: 0.6268656716
W91: 49.56365708 | X91: 0.6368159204 | Y91: 5.188189471 | Z91: 0.6368159204
W92: 49.69215365 | X92: 0.6467661692 | Y92: 5.199680755 | Z92: 0.6467661692
W93: 49.86694254 | X93: 0.6567164179 | Y93: 5.223525374 | Z93: 0.6567164179
W94: 50.00182612 | X94: 0.6666666667 | Y94: 5.233733621 | Z94: 0.6666666667
W95: 50.15867584 | X95: 0.6766169154 | Y95: 5.254836433 | Z95: 0.6766169154
W96: 50.28490845 | X96: 0.6865671642 | Y96: 5.268801107 | Z96: 0.6865671642
W97: 50.4472745 | X97: 0.6965174129 | Y97: 5.287105479 | Z97: 0.6965174129
W98: 50.66437426 | X98: 0.7064676617 | Y98: 5.304086528 | Z98: 0.7064676617
W99: 50.80784679 | X99: 0.7164179104 | Y99: 5.318635235 | Z99: 0.7164179104
W100: 50.96945405 | X100: 0.7263681592 | Y100: 5.33781499 | Z100: 0.7263681592
W101: 51.16209246 | X101: 0.736318408 | Y101: 5.354586284 | Z101: 0.736318408
W102: 51.31446841 | X102: 0.7462686567 | Y102: 5.365440521 | Z102: 0.7462686567
W103: 51.45951175 | X103: 0.7562189055 | Y103: 5.382064415 | Z103: 0.7562189055
W104: 51.66340612 | X104: 0.7661691542 | Y104: 5.395571298 | Z104: 0.7661691542
W105: 51.83370896 | X105: 0.776119403 | Y105: 5.411200042 | Z105: 0.776119403
W106: 52.05758058 | X106: 0.7860696517 | Y106: 5.428035349 | Z106: 0.7860696517
W107: 52.24961477 | X107: 0.7960199005 | Y107: 5.446024994 | Z107: 0.7960199005
W108: 52.43802838 | X108: 0.8059701493 | Y108: 5.45835401 | Z108: 0.8059701493
W109: 52.57703879 | X109: 0.815920398 | Y109: 5.474541098 | Z109: 0.815920398
W110: 52.85543458 | X110: 0.8258706468 | Y110: 5.491310835 | Z110: 0.8258706468
W111: 53.03414604 | X111: 0.8358208955 | Y111: 5.506352873 | Z111: 0.8358208955
W112: 53.22643201 | X112: 0.8457711443 | Y112: 5.518594995 | Z112: 0.8457711443
W113: 53.45521253 | X113: 0.855721393 | Y113: 5.536801384 | Z113: 0.855721393
W114: 53.7364273 | X114: 0.8656716418 | Y114: 5.552098822 | Z114: 0.8656716418
W115: 53.88006959 | X115: 0.8756218905 | Y115: 5.571031357 | Z115: 0.8756218905
W116: 54.17426855 | X116: 0.8855721393 | Y116: 5.587233346 | Z116: 0.8855721393
W117: 54.52165232 | X117: 0.8955223881 | Y117: 5.605212632 | Z117: 0.8955223881
W118: 54.78028353 | X118: 0.9054726368 | Y118: 5.625271719 | Z118: 0.9054726368
W119: 55.02333219 | X119: 0.9154228856 | Y119: 5.643088114 | Z119: 0.9154228856
W120: 55.30698159 | X120: 0.9253731343 | Y120: 5.665633504 | Z120: 0.9253731343
W121: 55.74093543 | X121: 0.9353233831 | Y121: 5.69037314 | Z121: 0.9353233831
W122: 56.11023795 | X122: 0.9452736318 | Y122: 5.721187704 | Z122: 0.9452736318
W123: 56.48155897 | X123: 0.9552238806 | Y123: 5.748790011 | Z123: 0.9552238806
W124: 56.93820364 | X124: 0.9651741294 | Y124: 5.776949527 | Z124: 0.9651741294
W125: 57.47924703 | X125: 0.9751243781 | Y125: 5.824987437 | Z125: 0.9751243781
W126: 59.01854275 | X126: 0.9950248756 | Y126: 5.977257328 | Z126: 0.9950248756
W127: =SUM($W$27:$W$126) -> 4647.890972 | X127: =SUM($X$27:$X$126) -> 49.26865672 | Y127: =SUM($Y$27:$Y$126) -> 481.4521023 | Z127: =SUM($Z$27:$Z$126) -> 49.26865672

Sheet Flex leases
A1: 1 | B1: 2 | C1: 3 | D1: 4 | E1: 5 | F1: 6 | G1: 7 | H1: 8 | I1: 9 | J1: 10 | K1: 11 | L1: 12 | M1: 13 | N1: 14 | O1: 15 | P1: 16 | Q1: 17 | R1: 18 | S1: 19 | T1: 20 | U1: 21 | V1: 22 | W1: 23 | X1: 24 | Y1: 25 | Z1: 26 | AA1: 27 | AB1: 28 | AC1: 29
C3: 1 | D3: 2 | E3: 3 | F3: 4 | G3: 5
B4: Yields | C4: ='Calc for flex leases'!B4 -> Wheat - North Central KS_Rotation | D4: ='Calc for flex leases'!C4 ->  | E4: ='Calc for flex leases'!D4 ->  | F4: ='Calc for flex leases'!E4 ->  | G4: ='Calc for flex leases'!F4 ->  | R4: Name | S4: Low | T4: middle | U4: High | W4: Simulated number
Q5: 1 | R5: =L28 -> Yield -- Wheat - North Central KS_Rotation | S5: =C9 -> 30 | T5: =C8 -> 50 | U5: =C7 -> 60 | W5: 100
Q6: 2 | R6: Price -- Wheat - North Central KS_Rotation | S6: =C17 -> 3 | T6: =C16 -> 5.5 | U6: =C15 -> 6 | W6: 3
B7: High yield | C7: 60 | Q7: 3 | R7: Yield -- | S7: =D9 -> 0 | T7: =D8 ->  | U7: =D7 -> 0
B8: Expected yield | C8: ='Calc for flex leases'!B9 -> 50 | D8: ='Calc for flex leases'!C9 ->  | E8: ='Calc for flex leases'!D9 ->  | F8: ='Calc for flex leases'!E9 ->  | G8: ='Calc for flex leases'!F9 ->  | Q8: 4 | R8: Price -- | S8: =D17 -> 0 | T8: =D16 ->  | U8: =D15 -> 0
B9: Low yield | C9: 30 | Q9: 5 | R9: Yield -- | S9: =E9 -> 0 | T9: =E8 ->  | U9: =E7 -> 0
Q10: 6 | R10: Price -- | S10: =E17 -> 0 | T10: =E16 ->  | U10: =E15 -> 0
Q11: 7 | R11: Yield -- | S11: =F9 -> 0 | T11: =F8 ->  | U11: =F7 -> 0
B12: Prices | C12: ='Calc for flex leases'!B4 -> Wheat - North Central KS_Rotation | D12: ='Calc for flex leases'!C4 ->  | E12: ='Calc for flex leases'!D4 ->  | F12: ='Calc for flex leases'!E4 ->  | G12: ='Calc for flex leases'!F4 ->  | Q12: 8 | R12: Price -- | S12: =F17 -> 0 | T12: =F16 ->  | U12: =F15 -> 0
Q13: 9 | R13: Yield -- | S13: =G9 -> 0 | T13: =G8 ->  | U13: =G7 -> 0
Q14: 10 | R14: Price -- | S14: =G17 -> 0 | T14: =G16 ->  | U14: =G15 -> 0
B15: High price | C15: 6
B16: Expected price | C16: ='Calc for flex leases'!B10 -> 5.5 | D16: ='Calc for flex leases'!C10 ->  | E16: ='Calc for flex leases'!D10 ->  | F16: ='Calc for flex leases'!E10 ->  | G16: ='Calc for flex leases'!F10 -> 
B17: Low price | C17: 3 | S17: Y
S18: y
S19: N
S20: n
B21: Number of iterations of simulation to run | E21: 200 | F21: This is currently hard coded at 200
B25: ="Yield -- " & 'Calc for flex leases'!B4 -> Yield -- Wheat - North Central KS_Rotation | C25: ="Price -- " & 'Calc for flex leases'!B4 -> Price -- Wheat - North Central KS_Rotation | D25: ="Yield -- " & 'Calc for flex leases'!C4 -> Yield -- | E25: ="Price -- " & 'Calc for flex leases'!C4 -> Price -- | F25: ="Yield -- " & 'Calc for flex leases'!D4 -> Yield -- | G25: ="Price -- " & 'Calc for flex leases'!D4 -> Price -- | H25: ="Yield -- " & 'Calc for flex leases'!E4 -> Yield -- | I25: ="Price -- " & 'Calc for flex leases'!E4 -> Price -- | J25: ="Yield -- " & 'Calc for flex leases'!F4 -> Yield -- | K25: ="Price -- " & 'Calc for flex leases'!F4 -> Price --
B28: 1 | C28: 0.2 | L28: ="Yield -- " & 'Calc for flex leases'!B4 -> Yield -- Wheat - North Central KS_Rotation
C29: 1 | L29: ="Price -- " & 'Calc for flex leases'!B4 -> Price -- Wheat - North Central KS_Rotation
D30: 1 | L30: ="Yield -- " & 'Calc for flex leases'!C4 -> Yield --
E31: 1 | L31: ="Price -- " & 'Calc for flex leases'!C4 -> Price --
F32: 1 | L32: ="Yield -- " & 'Calc for flex leases'!D4 -> Yield --
G33: 1 | L33: ="Price -- " & 'Calc for flex leases'!D4 -> Price --
H34: 1 | L34: ="Yield -- " & 'Calc for flex leases'!E4 -> Yield --
I35: 1 | L35: ="Price -- " & 'Calc for flex leases'!E4 -> Price --
J36: 1 | L36: ="Yield -- " & 'Calc for flex leases'!F4 -> Yield --
K37: 1 | L37: ="Price -- " & 'Calc for flex leases'!F4 -> Price --
D42: 1 | E42: 2 | F42: 3 | G42: 4 | H42: 5 | I42: 6 | J42: 7 | K42: 8
D43: Flex on price | G43: Flex on yield | I43: Flex on both
D44: Base rent multiplied by ratio of current year’s price to base price | E44: Rent equal to the value of a fixed amount of commodity | F44: Base rent with stated adjustments for prices outside a specified range | G44: Base rent multiplied by ratio of current year's yield to base yield | H44: Rent equal to the value of a fixed price of commodity | I44: Base rent multiplied by ratios of current year's price to base price and yield to base yield | J44: Stated percentage of the crop's value | K44: Minimum base rent plus a bonus
B46: Base rent | D46: 50 | F46: y | G46: 50 | I46: y | K46: y
B47: Flex crop? | D47: 0 | G47: 0
B48: allow for downward price adjustment? | D48: N | I48: y
B49: allow for downward yield adjustment? | G49: y | I49: y
B51: Base price | C51: =R6 -> Price -- Wheat - North Central KS_Rotation | D51: 5.5 | H51: y | I51: y
C52: =R8 -> Price --
C53: =R10 -> Price --
C54: =R12 -> Price --
C55: =R14 -> Price --
B57: Base yield | C57: =R5 -> Yield -- Wheat - North Central KS_Rotation | E57: y | G57: 50 | I57: y
C58: =R7 -> Yield --
C59: =R9 -> Yield --
C60: =R11 -> Yield --
C61: =R13 -> Yield --
B66: Upper price | C66: =C51 -> Price -- Wheat - North Central KS_Rotation | F66: y
C67: =C52 -> Price --
C68: =C53 -> Price --
C69: =C54 -> Price --
C70: =C55 -> Price --
B71: Lower price | C71: =C66 -> Price -- Wheat - North Central KS_Rotation | E71: y | F71: y | H71: need lower yield
C72: Price --
C73: Price --
C74: Price --
C75: Price --
B76: Price change | C76: Price -- Wheat - North Central KS_Rotation | F76: y
C77: Price --
C78: Price --
C79: Price --
C80: Price --
B81: Change to rent | C81: =$C$12 -> Wheat - North Central KS_Rotation | F81: y
C82: =$D$12 -> 
C83: =$E$12 -> 
C84: =$F$12 -> 
C85: =$G$12 -> 
C86: jj
A87: only need 1 | B87: Crop percentage | J87: y
B89: upper revenue | C89: =$C$12 -> Wheat - North Central KS_Rotation
C90: =$D$12 -> 
C91: =$E$12 -> 
C92: =$F$12 -> 
C93: =$G$12 -> 
B94: lower revenue | C94: =$C$12 -> Wheat - North Central KS_Rotation
C95: =$D$12 ->  | K95: y
C96: =$E$12 -> 
C97: =$F$12 -> 
C98: =$G$12 -> 
B99: Revenue chaange | C99: =$C$12 -> Wheat - North Central KS_Rotation
C100: =$D$12 -> 
C101: =$E$12 -> 
C102: =$F$12 -> 
C103: =$G$12 -> 
B104: Changes to rent | C104: =$C$12 -> Wheat - North Central KS_Rotation
C105: =$D$12 -> 
C106: =$E$12 -> 
C107: =$F$12 -> 
C108: =$G$12 -> 

Sheet Calc for flex leases (hidden)
A1: tillable ac code
A3: # | B3: 1 | C3: 2 | D3: 3 | E3: 4 | F3: 5 | H3: All crops
A4: Crop | B4: ='Data from budgets'!B10 -> Wheat - North Central KS_Rotation | C4: ='Data from budgets'!C10 ->  | D4: ='Data from budgets'!D10 ->  | E4: ='Data from budgets'!E10 ->  | F4: ='Data from budgets'!F10 ->  | H4: - - Cash | I4: - - Share | K4: # of things to simulate | M4: # of simulations
A5: Is the crop to be used? | B5: ='Data from budgets'!B8 -> 1 | C5: ='Data from budgets'!C8 -> 0 | D5: ='Data from budgets'!D8 -> 0 | E5: ='Data from budgets'!E8 -> 0 | F5: ='Data from budgets'!F8 -> 0 | H5: =SUM(B5:F5) -> 1 | I5: =H5 -> 1 | K5: =H5*2 -> 2 | M5: ='Flex leases'!E21 -> 200
A6: Actual tillable ac | H6: ='Calculations '!L67 -> 1 | I6: =H6 -> 1
A7: Acres | B7: ='Calculations '!F66 -> 1 | C7: ='Calculations '!G66 -> 0 | D7: ='Calculations '!H66 -> 0 | E7: ='Calculations '!I66 -> 0 | F7: ='Calculations '!J66 -> 0 | H7: =SUM(B7:F7) -> 1
A9: Yield | B9: ='Calculations '!F70 -> 50 | C9: ='Calculations '!G70 ->  | D9: ='Calculations '!H70 ->  | E9: ='Calculations '!I70 ->  | F9: ='Calculations '!J70 -> 
A10: Price | B10: ='Calculations '!F71 -> 5.5 | C10: ='Calculations '!G71 ->  | D10: ='Calculations '!H71 ->  | E10: ='Calculations '!I71 ->  | F10: ='Calculations '!J71 -> 
A12: Share % | I12: =Budgets!Z6 -> 0.68
A13: Cash rent | H13: =Budgets!C58 -> 50
A14: Cash rent per tillible ac | H14: ='Calculations '!N112 -> 50
A16: Other income to tenant | H16: ='Calculations '!N72 -> 0 | I16: ='Calculations '!P72 -> 0
A17: Other income to landlord | H17: 0 | I17: ='Calculations '!Q72 -> 0
A20: Expenses to tenant (less cash rent) | H20: ='Calculations '!N115-H14 -> 185.6276107 | I20: ='Calculations '!P115 -> 160.9825947 | J20: per tilliable acre
A21: Expenses to landlord | H21: ='Calculations '!O115 -> 0 | I21: ='Calculations '!Q115 -> 24.645016 | J21: per tilliable acre
A23: TENANT
A24: Simulation
A25: Yield | B25: ='Flex leases'!W5 -> 100 | C25: ='Flex leases'!W7 -> 0 | D25: ='Flex leases'!W9 -> 0 | E25: ='Flex leases'!W11 -> 0 | F25: ='Flex leases'!W13 -> 0 | H25: This is what is simulated (a number can be entered in the original speadsheet but it doesn't really do anything)
A26: Price | B26: ='Flex leases'!W6 -> 3 | C26: ='Flex leases'!W8 -> 0 | D26: ='Flex leases'!W10 -> 0 | E26: ='Flex leases'!W12 -> 0 | F26: ='Flex leases'!W14 -> 0 | H26: This is what is simulated (a number can be entered in the original speadsheet but it doesn't really do anything)
A27: Share yield - tenant | B27: =B25*$I$12 -> 68 | C27: =C25*$I$12 -> 0 | D27: =D25*$I$12 -> 0 | E27: =E25*$I$12 -> 0 | F27: =F25*$I$12 -> 0
A28: Share yield - landlord | B28: =B25*(1-$I$12) -> 32 | C28: =C25*(1-$I$12) -> 0 | D28: =D25*(1-$I$12) -> 0 | E28: =E25*(1-$I$12) -> 0 | F28: =F25*(1-$I$12) -> 0
H29: Base rent
A30: 1 - Base price | B30: ='Flex leases'!D51 -> 5.5 | C30: ='Flex leases'!D52 -> 0 | D30: ='Flex leases'!D53 -> 0 | E30: ='Flex leases'!D54 -> 0 | F30: ='Flex leases'!D55 -> 0 | H30: ='Flex leases'!D46 -> 50
A31: 1 - Lead crop | B31: =IF(OR('Flex leases'!$D$47=0, 'Flex leases'!$D$47=B3), 1, 0) -> 1 | C31: =IF(OR('Flex leases'!$D$47=0, 'Flex leases'!$D$47=C3), 1, 0) -> 1 | D31: =IF(OR('Flex leases'!$D$47=0, 'Flex leases'!$D$47=D3), 1, 0) -> 1 | E31: =IF(OR('Flex leases'!$D$47=0, 'Flex leases'!$D$47=E3), 1, 0) -> 1 | F31: =IF(OR('Flex leases'!$D$47=0, 'Flex leases'!$D$47=F3), 1, 0) -> 1 | J31: if no lead crop then all are 1's - otherwise the lead crop has a one in it.
A32: 1 - allow downward | B32: =IF(OR('Flex leases'!$D$48="n",'Flex leases'!$D$48="N"), 0, 1) -> 0 | C32: =B32 -> 0 | D32: =C32 -> 0 | E32: =D32 -> 0 | F32: =E32 -> 0 | H32: Crop acres in contract | J32: 1 if downward
A33: 1 - Min price for sim | B33: =IF(B32=0,B30,0) -> 5.5 | C33: =IF(C32=0,C30,0) -> 0 | D33: =IF(D32=0,D30,0) -> 0 | E33: =IF(E32=0,E30,0) -> 0 | F33: =IF(F32=0,F30,0) -> 0 | H33: =SUMPRODUCT(B31:F31,B7:F7) -> 1
A34: 1 - Simulated price | B34: =MAX(B33, B26) -> 5.5 | C34: =MAX(C33, C26) -> 0 | D34: =MAX(D33, D26) -> 0 | E34: =MAX(E33, E26) -> 0 | F34: =MAX(F33, F26) -> 0
A35: 1 - Price ratio | B35: =IFERROR(B34/B30, 0) -> 1 | C35: =IFERROR(C34/C30, 0) -> 0 | D35: =IFERROR(D34/D30, 0) -> 0 | E35: =IFERROR(E34/E30, 0) -> 0 | F35: =IFERROR(F34/F30, 0) -> 0 | H35: landlord rev per tillible
A36: 1 - Landlord revenue | B36: =B35*$H$30*B31*B7 -> 50 | C36: =C35*$H$30*C31*C7 -> 0 | D36: =D35*$H$30*D31*D7 -> 0 | E36: =E35*$H$30*E31*E7 -> 0 | F36: =F35*$H$30*F31*F7 -> 0 | H36: =SUM(B36:F36) *H7/H33 / H6 -> 50
A38: 4 - Base yield | B38: ='Flex leases'!G57 -> 50 | C38: ='Flex leases'!G58 -> 0 | D38: ='Flex leases'!G59 -> 0 | E38: ='Flex leases'!G60 -> 0 | F38: ='Flex leases'!G61 -> 0 | H38: Base rent
A39: 4 - Lead crop | B39: =IF(OR('Flex leases'!$G$47=0, 'Flex leases'!$G$47=B3), 1, 0) -> 1 | C39: =IF(OR('Flex leases'!$G$47=0, 'Flex leases'!$G$47=C3), 1, 0) -> 1 | D39: =IF(OR('Flex leases'!$G$47=0, 'Flex leases'!$G$47=D3), 1, 0) -> 1 | E39: =IF(OR('Flex leases'!$G$47=0, 'Flex leases'!$G$47=E3), 1, 0) -> 1 | F39: =IF(OR('Flex leases'!$G$47=0, 'Flex leases'!$G$47=F3), 1, 0) -> 1 | H39: ='Flex leases'!G46 -> 50 | J39: if no lead crop then all are 1's - otherwise the lead crop has a one in it.
A40: 4 - allow downward | B40: =IF(OR('Flex leases'!$G$49="n",'Flex leases'!$G$49="N"), 0, 1) -> 1 | C40: =IF(OR('Flex leases'!$G$49="n",'Flex leases'!$G$49="N"), 0, 1) -> 1 | D40: =IF(OR('Flex leases'!$G$49="n",'Flex leases'!$G$49="N"), 0, 1) -> 1 | E40: =IF(OR('Flex leases'!$G$49="n",'Flex leases'!$G$49="N"), 0, 1) -> 1 | F40: =IF(OR('Flex leases'!$G$49="n",'Flex leases'!$G$49="N"), 0, 1) -> 1 | J40: 1 if downward
A41: 1 - Min yield for sim | B41: =IF(B40=0,B38,0) -> 0 | C41: =IF(C40=0,C38,0) -> 0 | D41: =IF(D40=0,D38,0) -> 0 | E41: =IF(E40=0,E38,0) -> 0 | F41: =IF(F40=0,F38,0) -> 0 | H41: Crop ac in contract
A42: 1 - Simulated yield | B42: =MAX(B41, B25) -> 100 | C42: =MAX(C41, C25) -> 0 | D42: =MAX(D41, D25) -> 0 | E42: =MAX(E41, E25) -> 0 | F42: =MAX(F41, F25) -> 0 | H42: =SUMPRODUCT(B39:F39,B7:F7) -> 1
A43: 1 - Yield ratio | B43: =IFERROR(B42/B38, 0) -> 2 | C43: =IFERROR(C42/C38, 0) -> 0 | D43: =IFERROR(D42/D38, 0) -> 0 | E43: =IFERROR(E42/E38, 0) -> 0 | F43: =IFERROR(F42/F38, 0) -> 0 | H43: landlord rev per tillible acre
A44: 1 - Landlord revenue | B44: =B43*$H$39*B39*B7 -> 100 | C44: =C43*$H$39*C39*C7 -> 0 | D44: =D43*$H$39*D39*D7 -> 0 | E44: =E43*$H$39*E39*E7 -> 0 | F44: =F43*$H$39*F39*F7 -> 0 | H44: =SUM(B44:F44) *H7/H42 / H6 -> 100
A100: TENANT
A101: Cash lease | B101: =SUMPRODUCT(B25:F25,B26:F26, B7:F7) / H6 - H20 - H14 + H16 -> 64.37238927
A102: Share lease | B102: =SUMPRODUCT(B27:F27, B26:F26, B7:F7)/H6 - I20 + I16 -> 43.01740527
A103: 1 - flex lease (price) | B103: =$B$101 - B125 + $H$14 -> 64.37238927
A104: 4 - flex lease (yield) | B104: =$B$101 - B126 + $H$14 -> 14.37238927
A122: Landlord
A123: Cash lease | B123: =H14 - H21 -> 50
A124: Share lease | B124: =SUMPRODUCT(B28:F28, B26:F26, B7:F7) / I6 - I21 + I17 -> 71.354984
A125: 1 - flex lease (price) | B125: =H36 - H21 -> 50
A126: 4 - flex lease (yield) | B126: =H44-H21 -> 100

Sheet Name of budgets
D1: =D7 -> Alfalfa - Northwest KS_ | E1: =E7 -> Alfalfa - South Central and Southeast KS_ | F1: Alfalfa - South Central and Southeast KS_ | G1: Alfalfa - Western KS_Irrigated | H1: Canola - South Central KS_ | I1: Canola - South Central KS_irrigated | J1: Corn - North Central KS_ | K1: Corn - North Central KS_Irrigated | L1: Corn - Northeast KS_ | M1: Corn - Northwest KS_Irrigated | N1: Corn - Northwest KS_W-C-F rotation | O1: Corn - South Central KS_ | P1: Corn - Southeast KS_ | Q1: Corn - Southwest KS_Irrigated | R1: Corn - Southwest KS_W-C-F rotation | S1: Corn Silage - Northeast KS_ | T1: Cotton - Southeast KS_ | U1: Cotton - Southeast KS_Irrigated | V1: Cotton - Southwest KS_Irrigated | W1: Cotton - Southwest KS_W-CT-F rotation | X1: Forage Sorghum Hay - Western KS_W-H-F | Y1: Forage Sorghum Silage - South Central KS_ | Z1: Grain Sorghum - North Central KS_ | AA1: Grain Sorghum - Northeast KS_ | AB1: Grain Sorghum - Northwest KS_W-S-F rotation | AC1: Grain Sorghum - South Central KS_ | AD1: Grain Sorghum - Southeast KS_ | AE1: Grain Sorghum - Southwest KS_W-S-F rotation | AF1: Soybeans - North Central KS_ | AG1: Soybeans - Northeast KS_ | AH1: Soybeans - Northwest KS_W-SB_F rotation | AI1: Soybeans - South Central KS_ | AJ1: Soybeans - Southeast KS_ | AK1: Soybeans - Southeast KS_Double crop | AL1: Soybeans - Southwest KS_W-SB-F rotation | AM1: Sunflower (Confectionary) - Western KS_Irrigated | AN1: Sunflower (Confectionary) - Western KS_W-SF-F rotation | AO1: Sunflower (oil-type) - Central and Eastern_Double crop | AP1: Sunflower (oil-type) - Eastern KS_ | AQ1: Sunflower (oil-type) - Western KS_Irrigated | AR1: Sunflower (oil-type) - Western KS_W-SF-F rotation | AS1: Wheat - North Central KS_Continuous | AT1: Wheat - North Central KS_Rotation | AU1: Wheat - Northeast KS_Continuous | AV1: Wheat - Northeast KS_Rotation | AW1: Wheat - Northwest KS_W-F rotation | AX1: Wheat - Northwest KS_W-S_C-F rotation | AY1: Wheat - South Central KS_Continuous | AZ1: Wheat - South Central KS_Rotation | BA1: Wheat - Southeast KS_ | BB1: Wheat - Southwest KS_W-F rotation | BC1: Wheat - Southwest KS_W-S_C-F rotation | BD1: 0 | BE1: 0 | BF1: 0 | BG1: 0 | BH1: 0 | BI1: 0 | BJ1: 0 | BK1: 0 | BL1: 0 | BM1: 0 | BN1: 0 | BO1: 0 | BP1: 0 | BQ1: =BQ7 -> 0 | BR1: =BR7 -> 0 | BS1: =BS7 -> 0 | BT1: =BT7 -> 0 | BU1: =BU7 -> 0
A6: Column1 | B6: Column2 | C6: Column3 | D6: 1 | E6: 2 | F6: 3 | G6: 4 | H6: 5 | I6: 6 | J6: 7 | K6: 8 | L6: 9 | M6: 10 | N6: 11 | O6: 12 | P6: 13 | Q6: 14 | R6: 15 | S6: 16 | T6: 17 | U6: 18 | V6: 19 | W6: 20 | X6: 21 | Y6: 22 | Z6: 23 | AA6: 24 | AB6: 25 | AC6: 26 | AD6: 27 | AE6: 28 | AF6: 29 | AG6: 30 | AH6: 31 | AI6: 32 | AJ6: 33 | AK6: 34 | AL6: 35 | AM6: 36 | AN6: 37 | AO6: 38 | AP6: 39 | AQ6: 40 | AR6: 41 | AS6: 42 | AT6: 43 | AU6: 44 | AV6: 45 | AW6: 46 | AX6: 47 | AY6: 48 | AZ6: 49 | BA6: 50 | BB6: 51 | BC6: 52 | BD6: 53 | BE6: 54 | BF6: 55 | BG6: 56 | BH6: 57 | BI6: 58 | BJ6: 59 | BK6: 60 | BL6: 61 | BM6: 62 | BN6: 63 | BO6: 64 | BP6: 65 | BQ6: 66 | BR6: 67 | BS6: 68 | BT6: 69 | BU6: 70
A7: 1 | B7: CROP | D7: Alfalfa - Northwest KS_ | E7: Alfalfa - South Central and Southeast KS_ | F7: Alfalfa - South Central and Southeast KS_ | G7: Alfalfa - Western KS_Irrigated | H7: Canola - South Central KS_ | I7: Canola - South Central KS_irrigated | J7: Corn - North Central KS_ | K7: Corn - North Central KS_Irrigated | L7: Corn - Northeast KS_ | M7: Corn - Northwest KS_Irrigated | N7: Corn - Northwest KS_W-C-F rotation | O7: Corn - South Central KS_ | P7: Corn - Southeast KS_ | Q7: Corn - Southwest KS_Irrigated | R7: Corn - Southwest KS_W-C-F rotation | S7: Corn Silage - Northeast KS_ | T7: Cotton - Southeast KS_ | U7: Cotton - Southeast KS_Irrigated | V7: Cotton - Southwest KS_Irrigated | W7: Cotton - Southwest KS_W-CT-F rotation | X7: Forage Sorghum Hay - Western KS_W-H-F | Y7: Forage Sorghum Silage - South Central KS_ | Z7: Grain Sorghum - North Central KS_ | AA7: Grain Sorghum - Northeast KS_ | AB7: Grain Sorghum - Northwest KS_W-S-F rotation | AC7: Grain Sorghum - South Central KS_ | AD7: Grain Sorghum - Southeast KS_ | AE7: Grain Sorghum - Southwest KS_W-S-F rotation | AF7: Soybeans - North Central KS_ | AG7: Soybeans - Northeast KS_ | AH7: Soybeans - Northwest KS_W-SB_F rotation | AI7: Soybeans - South Central KS_ | AJ7: Soybeans - Southeast KS_ | AK7: Soybeans - Southeast KS_Double crop | AL7: Soybeans - Southwest KS_W-SB-F rotation | AM7: Sunflower (Confectionary) - Western KS_Irrigated | AN7: Sunflower (Confectionary) - Western KS_W-SF-F rotation | AO7: Sunflower (oil-type) - Central and Eastern_Double crop | AP7: Sunflower (oil-type) - Eastern KS_ | AQ7: Sunflower (oil-type) - Western KS_Irrigated | AR7: Sunflower (oil-type) - Western KS_W-SF-F rotation | AS7: Wheat - North Central KS_Continuous | AT7: Wheat - North Central KS_Rotation | AU7: Wheat - Northeast KS_Continuous | AV7: Wheat - Northeast KS_Rotation | AW7: Wheat - Northwest KS_W-F rotation | AX7: Wheat - Northwest KS_W-S_C-F rotation | AY7: Wheat - South Central KS_Continuous | AZ7: Wheat - South Central KS_Rotation | BA7: Wheat - Southeast KS_ | BB7: Wheat - Southwest KS_W-F rotation | BC7: Wheat - Southwest KS_W-S_C-F rotation | BV7: None
A8: 2 | B8: Yield | D8: 3.6 | E8: 3.6 | F8: 3.6 | G8: 5.7 | H8: 20 | I8: 28 | J8: 120 | K8: 240 | L8: 145 | M8: 240 | N8: 89 | O8: 110 | P8: 120 | Q8: 225 | R8: 82 | S8: 18 | T8: 950 | U8: 1500 | V8: 1500 | W8: 900 | X8: 2.75 | Y8: 10.9 | Z8: 120 | AA8: 135 | AB8: 85 | AC8: 115 | AD8: 90 | AE8: 81 | AF8: 41 | AG8: 45 | AH8: 25 | AI8: 31 | AJ8: 35 | AK8: 22 | AL8: 25 | AM8: 22 | AN8: 13.5 | AO8: 10 | AP8: 16 | AQ8: 24 | AR8: 16 | AS8: 53 | AT8: 50 | AU8: 50 | AV8: 52 | AW8: 47 | AX8: 45 | AY8: 48 | AZ8: 45 | BA8: 48 | BB8: 42 | BC8: 39
A9: 3 | B9: Price | D9: 130 | E9: 130 | F9: 130 | G9: 135 | H9: 8.25 | I9: 8.25 | J9: 3.65 | K9: 3.65 | L9: 3.75 | M9: 3.79 | N9: 3.79 | O9: 3.81 | P9: 3.95 | Q9: 3.66 | R9: 4.05 | S9: 31.88 | T9: 0.7123 | U9: 0.718 | V9: 0.718 | W9: 0.718 | X9: 71.48 | Y9: 25.91 | Z9: 3.84 | AA9: 4.13 | AB9: 3.86 | AC9: 3.88 | AD9: 3.88 | AE9: 3.9 | AF9: 9.34 | AG9: 9.71 | AH9: 9.12 | AI9: 9.44 | AJ9: 9.67 | AK9: 9.67 | AL9: 9.15 | AM9: 21.5 | AN9: 21.5 | AO9: 16.3 | AP9: 16.3 | AQ9: 18.04 | AR9: 18.04 | AS9: 5.5 | AT9: 5.5 | AU9: 5.57 | AV9: 5.57 | AW9: 5.35 | AX9: 5.35 | AY9: 5.54 | AZ9: 5.54 | BA9: 5.47 | BB9: 5.4 | BC9: 5.4
A10: 4 | B10: Other income
A11: 5 | C11: <Total Revenue>
A12: 6
A13: 7 | B13: Direct Expenses
A14: 8 | C14: Seeds | D14: 21.087 | E14: 21.087 | F14: 21.087 | G14: 21.087 | H14: 28.71 | I14: 20.097 | J14: 62.964 | K14: 111.969 | L14: 70.8345 | M14: 119.4336 | N14: 41.976 | O14: 55.0935 | P14: 62.964 | Q14: 119.4336 | R14: 41.976 | S14: 73.458 | T14: 72.072 | U14: 99.099 | V14: 99.099 | W14: 72.072 | X14: 23.6115 | Y14: 5.4351 | Z14: 11.373318 | AA14: 11.373318 | AB14: 7.3062 | AC14: 8.109882 | AD14: 8.109882 | AE14: 7.3062 | AF14: 35 | AG14: 35 | AH14: 30 | AI14: 32.5 | AJ14: 32.5 | AK14: 37.5 | AL14: 30 | AM14: 30.294 | AN14: 26.928 | AO14: 32.67 | AP14: 32.67 | AQ14: 34.8975 | AR14: 29.7 | AS14: 22.275 | AT14: 24.75 | AU14: 18.5625 | AV14: 24.75 | AW14: 16.0875 | AX14: 16.0875 | AY14: 14.85 | AZ14: 22.275 | BA14: 19.8 | BB14: 16.0875 | BC14: 16.0875
A15: 9 | C15: Fertilizer (less lime) | D15: 20.75 | E15: 49.98 | F15: 72.7575 | G15: 32.785 | H15: 38.085 | I15: 49.99 | J15: 49.465 | K15: 93.29 | L15: 72.96 | M15: 99.8625 | N15: 37.32 | O15: 45.7625 | P15: 61.365 | Q15: 93.955 | R15: 34.25 | S15: 40734.125 | T15: 43.375 | U15: 73.8375 | V15: 48.0125 | W15: 28.825 | X15: 32.275 | Y15: 44.24 | Z15: 50.225 | AA15: 70.59 | AB15: 36.25 | AC15: 45.495 | AD15: 46.9 | AE15: 34.5825 | AF15: 17.035 | AG15: 28.8225 | AH15: 7.2625 | AI15: 18265 | AJ15: 25.7475 | AK15: 13.75 | AL15: 7.47 | AM15: 26.265 | AN15: 21.2725 | AO15: 16.3525 | AP15: 25.4 | AQ15: 28.895 | AR15: 24.84 | AS15: 37.425 | AT15: 45.0725 | AU15: 42.3525 | AV15: 54.79 | AW15: 25.7625 | AX15: 31.5275 | AY15: 34.5875 | AZ15: 40.725 | BA15: 49.1775 | BB15: 22.925 | BC15: 27.18
A16: 10 | C16: --Lime
A17: 11 | C17: Herbicides | D17: 1.683 | E17: 1.683 | F17: 3.3165 | G17: 24.5 | H17: 18.265625 | I17: 21.515625 | J17: 74.43074219 | K17: 71.50546875 | L17: 73.86375 | M17: 61.01675 | N17: 64.96135156 | O17: 47.88140625 | P17: 47.66140625 | Q17: 61.01675 | R17: 73.23010156 | S17: 35.448125 | T17: 51.91875 | U17: 83 | V17: 110 | W17: 76.91875 | X17: 28.4 | Y17: 8.91 | Z17: 32.69 | AA17: 32.69 | AB17: 68.8764375 | AC17: 19.07578125 | AD17: 19.07578125 | AE17: 68.8764375 | AF17: 55.28984375 | AG17: 63.88359375 | AH17: 50.39375 | AI17: 35.55734375 | AJ17: 38.77734375 | AK17: 10.6975 | AL17: 50.39375 | AM17: 30.0964 | AN17: 48.1855625 | AO17: 13.6875 | AP17: 47.34375 | AQ17: 47.1425 | AR17: 48.1855625 | AS17: 4.95 | AT17: 4.95 | AU17: 4.95 | AV17: 4.95 | AW17: 18.4095 | AX17: 31.897 | AY17: 4.6491 | AZ17: 4.6491 | BA17: 4.6491 | BB17: 18.4095 | BC17: 31.897
A18: 12 | C18: Fungicides | L18: 21.1875 | M18: 6.2953125 | Q18: 6.2953125 | AS18: 21.1875 | AT18: 21.1875 | AU18: 21.1875 | AV18: 21.1875 | AW18: 3.852734375 | AX18: 3.852734375 | AY18: 6.096171875 | AZ18: 6.096171875 | BA18: 6.096171875 | BB18: 3.852734375 | BC18: 3.852734375
A19: 13 | C19: Insecticides
A20: 14 | C20: Crop consulting | G20: 6.5 | L20: 6.5 | M20: 6.5 | Q20: 6.5 | T20: 10 | U20: 10 | V20: 10 | W20: 10 | AM20: 6.5 | AQ20: 6.5
A21: 15 | C21: Crop insurance | G21: 21.38 | H21: 13.2366 | I21: 34.5 | J21: 16.133 | K21: 25.9335 | L21: 15.6376 | M21: 29.8356 | N21: 12.282 | O21: 8.8068 | P21: 15.9775 | Q21: 20.311 | R21: 8.36 | S21: 15.6376 | T21: 25 | U21: 43.1595 | V21: 38 | W21: 0 | Y21: 10.7015 | Z21: 13.3004 | AA21: 10.7092 | AB21: 17.9496 | AC21: 14.586 | AD21: 12.374 | AE21: 18.3266 | AF21: 13.8644 | AG21: 11.0187 | AH21: 10.6299 | AI21: 12.042 | AJ21: 12.0666 | AL21: 7.866 | AM21: 24.871 | AN21: 10.3455 | AP21: 12.16 | AQ21: 24.871 | AR21: 10.3455 | AS21: 9.912 | AT21: 9.912 | AU21: 8.31 | AV21: 8.31 | AW21: 13.808 | AX21: 13.808 | AY21: 10.004 | AZ21: 10.004 | BA21: 8.974 | BB21: 12.944 | BC21: 12.944
A22: 16 | C22: Miscellaneous | D22: 5.5 | E22: 5.5 | F22: 5.5 | G22: 10 | H22: 7.5 | I22: 7.5 | J22: 6.5 | K22: 10 | L22: 8.5 | M22: 10 | N22: 5.5 | O22: 6 | P22: 7 | Q22: 10 | R22: 5.5 | S22: 8.5 | T22: 42.5 | U22: 47.5 | V22: 47.5 | W22: 42.5 | X22: 5.5 | Y22: 6 | Z22: 6.5 | AA22: 8.5 | AB22: 5.5 | AC22: 6 | AD22: 7 | AE22: 5.5 | AF22: 6.5 | AG22: 8.5 | AH22: 5.5 | AI22: 6 | AJ22: 7 | AK22: 7 | AL22: 5.5 | AM22: 10 | AN22: 5.5 | AO22: 6 | AP22: 7.5 | AQ22: 10 | AR22: 5.5 | AS22: 6.5 | AT22: 6.5 | AU22: 8.5 | AV22: 8.5 | AW22: 5.5 | AX22: 5.5 | AY22: 6 | AZ22: 6 | BA22: 7 | BB22: 5.5 | BC22: 5.5
A23: 17 | C23: Surfactant
A24: 18 | C24: Other inputs | D24: 12.25 | E24: 12.25 | F24: 12.25 | G24: 8.90625 | H24: 5.9375 | I24: 11.875 | J24: 0 | K24: 0 | L24: 0 | M24: 8.248046875 | N24: 0 | O24: 0 | P24: 0 | Q24: 16.49609375 | R24: 0 | S24: 0 | T24: 1.8 | U24: 6 | V24: 3.5 | W24: 1.8 | X24: 0 | Y24: 0 | Z24: 0 | AA24: 0 | AB24: 0 | AC24: 0 | AD24: 0 | AE24: 0 | AF24: 0 | AG24: 0 | AH24: 0 | AI24: 0 | AJ24: 0 | AK24: 0 | AL24: 0 | AM24: 15.125 | AN24: 12.703125 | AO24: 8.90625 | AP24: 17.8125 | AQ24: 15.125 | AR24: 8.921875 | AS24: 0 | AT24: 0 | AU24: 0 | AV24: 0 | AW24: 0 | AX24: 0 | AY24: 0 | AZ24: 0 | BA24: 0 | BB24: 0 | BC24: 0
A25: 19 | C25: MACHINERY
A26: 20 | C26: --fertilizer application | D26: 2.676079018 | E26: 2.676079018 | F26: 2.676079018 | G26: 2.676079018 | I26: 5.352158036 | J26: 2.676079018 | K26: 2.676079018 | L26: 2.676079018 | N26: 2.676079018 | O26: 2.676079018 | R26: 2.676079018 | S26: 2.676079018 | T26: 2.676079018 | U26: 2.676079018 | V26: 2.676079018 | W26: 5.352158036 | X26: 2.676079018 | Y26: 2.676079018 | Z26: 2.676079018 | AA26: 2.676079018 | AB26: 2.676079018 | AD26: 2.676079018 | AE26: 2.676079018 | AF26: 2.676079018 | AI26: 2.676079018 | AJ26: 2.676079018 | AN26: 2.676079018 | AO26: 2.676079018 | AP26: 2.676079018 | AR26: 2.676079018 | AS26: 2.676079018 | AT26: 2.676079018 | AU26: 2.676079018 | AV26: 2.676079018 | AX26: 2.676079018 | AY26: 2.676079018 | AZ26: 2.676079018 | BA26: 5.352158036 | BC26: 2.676079018
A27: 21 | C27: --harvesting | H27: 9.779783282 | I27: 9.779783282 | J27: 12.43076625 | K27: 12.43076625 | L27: 12.43076625 | M27: 12.43076625 | N27: 12.43076625 | O27: 12.43076625 | P27: 12.43076625 | Q27: 12.43076625 | R27: 12.43076625 | T27: 35.25169173 | U27: 35.25169173 | V27: 35.25169173 | W27: 35.25169173 | Z27: 9.779783282 | AA27: 9.779783282 | AB27: 9.779783282 | AC27: 9.779783282 | AD27: 9.779783282 | AE27: 9.779783282 | AF27: 10.16035604 | AG27: 10.16035604 | AH27: 10.16035604 | AI27: 10.16035604 | AJ27: 10.16035604 | AK27: 10.16035604 | AL27: 10.16035604 | AM27: 12.43076625 | AN27: 12.43076625 | AO27: 12.43076625 | AP27: 12.43076625 | AQ27: 12.43076625 | AR27: 12.43076625 | AS27: 9.779783282 | AT27: 9.779783282 | AU27: 9.779783282 | AV27: 9.779783282 | AW27: 9.779783282 | AX27: 9.779783282 | AY27: 9.779783282 | AZ27: 9.779783282 | BA27: 9.779783282 | BB27: 9.779783282 | BC27: 9.779783282
A28: 22 | C28: --hauling | H28: 5.559038134 | I28: 5.559038134 | J28: 6.950572584 | K28: 13.90114517 | L28: 6.950572584 | M28: 13.90114517 | N28: 6.950572584 | O28: 6.950572584 | P28: 6.950572584 | Q28: 13.90114517 | R28: 6.950572584 | Z28: 5.559038134 | AA28: 5.559038134 | AB28: 5.559038134 | AC28: 5.559038134 | AD28: 5.559038134 | AE28: 5.559038134 | AF28: 5.559038134 | AG28: 5.559038134 | AH28: 5.559038134 | AI28: 5.559038134 | AJ28: 5.559038134 | AK28: 2.779519067 | AL28: 5.559038134 | AM28: 6.950572584 | AN28: 3.475286292 | AO28: 3.475286292 | AP28: 3.488652778 | AQ28: 6.950572584 | AR28: 3.475286292 | AS28: 5.559038134 | AT28: 5.559038134 | AU28: 5.559038134 | AV28: 5.559038134 | AW28: 5.559038134 | AX28: 5.559038134 | AY28: 5.559038134 | AZ28: 5.559038134 | BA28: 5.559038134 | BB28: 5.559038134 | BC28: 5.559038134
A29: 23 | C29: --miscellaneous
A30: 24 | C30: --planting | D30: 1.529575045 | E30: 1.529575045 | F30: 1.529575045 | G30: 1.286656329 | H30: 6.433281643 | I30: 6.433281643 | J30: 4.975579911 | K30: 4.975579911 | L30: 4.975579911 | M30: 4.529056714 | N30: 4.975579911 | O30: 4.529056714 | P30: 4.529056714 | Q30: 4.529056714 | R30: 4.975579911 | S30: 4.975579911 | T30: 4.287315338 | U30: 4.287315338 | V30: 4.287315338 | W30: 4.287315338 | X30: 4.975579911 | Y30: 4.529056714 | Z30: 4.975579911 | AA30: 4.975579911 | AB30: 4.975579911 | AC30: 4.529056714 | AD30: 4.529056714 | AE30: 4.975579911 | AF30: 4.975579911 | AG30: 5.536802404 | AH30: 4.975579911 | AI30: 4.975579911 | AJ30: 4.529056714 | AK30: 4.975579911 | AL30: 5.536802404 | AM30: 4.529056714 | AN30: 4.975579911 | AO30: 4.975579911 | AP30: 4.975579911 | AQ30: 4.529056714 | AR30: 4.975579911 | AS30: 6.433281643 | AT30: 7.647875223 | AU30: 6.433281643 | AV30: 7.647875223 | AW30: 6.433281643 | AX30: 7.647875223 | AY30: 6.433281643 | AZ30: 6.433281643 | BA30: 6.358070714 | BB30: 6.433281643 | BC30: 7.647875223
A31: 25 | C31: --spraying | D31: 3.353747692 | E31: 3.353747692 | F31: 3.353747692 | G31: 3.353747692 | H31: 5.030621538 | I31: 8.384369231 | J31: 5.030621538 | K31: 5.030621538 | L31: 5.030621538 | M31: 5.869058462 | N31: 6.707495385 | O31: 3.353747692 | P31: 3.353747692 | Q31: 6.707495385 | R31: 6.707495385 | S31: 5.030621538 | T31: 13.41499077 | U31: 11.73811692 | V31: 11.73811692 | W31: 13.41499077 | X31: 3.353747692 | Y31: 1.676873846 | Z31: 5.030621538 | AA31: 5.030621538 | AB31: 6.707495385 | AC31: 3.353747692 | AD31: 3.353747692 | AE31: 6.707495385 | AF31: 5.030621538 | AG31: 5.030621538 | AH31: 5.030621538 | AI31: 5.030621538 | AJ31: 5.030621538 | AK31: 3.353747692 | AL31: 5.030621538 | AM31: 5.869058462 | AN31: 4.192184615 | AO31: 5.030621538 | AP31: 8.384369231 | AQ31: 6.707495385 | AR31: 4.192184615 | AS31: 3.353747692 | AT31: 3.353747692 | AU31: 3.353747692 | AV31: 3.353747692 | AW31: 6.707495385 | AX31: 10.06124308 | AY31: 3.353747692 | AZ31: 3.353747692 | BA31: 3.353747692 | BB31: 6.707495385 | BC31: 10.06124308
A32: 26 | C32: --tillage | D32: 2.054880882 | E32: 2.298567577 | F32: 2.054880882 | G32: 2.298567577 | H32: 7.030719495 | I32: 7.030719495 | K32: 2.568601103 | M32: 2.568601103 | O32: 7.030719495 | P32: 7.030719495 | Q32: 2.568601103 | T32: 2.568601103 | U32: 2.568601103 | V32: 2.568601103 | W32: 2.568601103 | Y32: 7.030719495 | AC32: 7.030719495 | AD32: 7.030719495 | AJ32: 6.510647949 | AM32: 10.51219276 | AQ32: 10.51219276 | AS32: 10.97276634 | AU32: 10.97276634 | AW32: 7.705803309 | AY32: 12.47365079 | AZ32: 2.568601103 | BA32: 4.813623419 | BB32: 7.705803309
A33: 27 | C33: --other | D33: 0 | E33: 0 | F33: 0 | G33: 0 | H33: 0 | I33: 0 | J33: 0 | K33: 0 | L33: 0 | M33: 0 | N33: 0 | O33: 0 | P33: 0 | Q33: 0 | R33: 0 | S33: 0 | T33: 0 | U33: 0 | V33: 0 | W33: 0 | X33: 0 | Y33: 0 | Z33: 0 | AA33: 0 | AB33: 0 | AC33: 0 | AD33: 0 | AE33: 0 | AF33: 0 | AG33: 0 | AH33: 0 | AI33: 0 | AJ33: 0 | AK33: 0 | AL33: 0 | AM33: 0 | AN33: 0 | AO33: 0 | AP33: 0 | AQ33: 0 | AR33: 0 | AS33: 0 | AT33: 0 | AU33: 0 | AV33: 0 | AW33: 0 | AX33: 0 | AY33: 0 | AZ33: 0 | BA33: 0 | BB33: 0 | BC33: 0
A34: 28 | C34: --custom operations | D34: 108.5926746 | E34: 112.7902085 | F34: 102.9728146 | G34: 160.9705428 | H34: 28.79244586 | I34: 28.79244586 | J34: 15.00957713 | K34: 24.65730307 | L34: 15.00957713 | M34: 9.647725936 | O34: 15.00957713 | P34: 15.00957713 | Q34: 9.044743065 | S34: 164.1468897 | T34: 132.0095771 | U34: 210.0095771 | V34: 210.0095771 | W34: 132.0095771 | X34: 58.24200563 | Y34: 105.3205053 | Z34: 15.00957713 | AA34: 15.00957713 | AC34: 15.00957713 | AD34: 15.00957713 | AM34: 15.00957713 | AN34: 12.65024071 | AP34: 15.00957713 | AQ34: 15.00957713 | AR34: 8.433493806 | AS34: 15.00957713 | AU34: 15.00957713 | AW34: 15.00957713 | AY34: 15.00957713 | BB34: 15.00957713
A35: 29 | C35: Irrigation | G35: 68.48714749 | I35: 24.45753647 | K35: 33.01767423 | M35: 54.06880065 | Q35: 57.67338736 | U35: 33.01767423 | V35: 28.83669368 | AM35: 36.0458671 | AQ35: 36.0458671
A36: 30 | C36: Interest on direct expenses
A37: 31 | C37: <Total Direct Expenses>
A38: 32
A39: 33 | B39: Fixed expenses
A40: 34 | C40: MACHINERY
A41: 35 | C41: --fertilizer application | D41: 2.46576207 | E41: 2.46576207 | F41: 2.46576207 | G41: 2.46576207 | I41: 4.931524141 | J41: 2.46576207 | K41: 2.46576207 | L41: 2.46576207 | N41: 2.46576207 | O41: 2.46576207 | R41: 2.46576207 | S41: 2.46576207 | T41: 2.46576207 | U41: 2.46576207 | V41: 2.46576207 | W41: 4.931524141 | X41: 2.46576207 | Y41: 2.46576207 | Z41: 2.46576207 | AA41: 2.46576207 | AB41: 2.46576207 | AD41: 2.46576207 | AE41: 2.46576207 | AF41: 2.46576207 | AI41: 2.46576207 | AJ41: 2.46576207 | AN41: 2.46576207 | AO41: 2.46576207 | AP41: 2.46576207 | AR41: 2.46576207 | AS41: 2.46576207 | AT41: 2.46576207 | AU41: 2.46576207 | AV41: 2.46576207 | AX41: 2.46576207 | AY41: 2.46576207 | AZ41: 2.46576207 | BA41: 4.931524141 | BC41: 2.46576207
A42: 36 | C42: --harvesting | H42: 18.94833468 | I42: 18.94833468 | J42: 24.10373188 | K42: 24.10373188 | L42: 24.10373188 | M42: 24.10373188 | N42: 24.10373188 | O42: 24.10373188 | P42: 24.10373188 | Q42: 24.10373188 | R42: 24.10373188 | T42: 96.22222988 | U42: 96.22222988 | V42: 96.22222988 | W42: 96.22222988 | Z42: 18.94833468 | AA42: 18.94833468 | AB42: 18.94833468 | AC42: 18.94833468 | AD42: 18.94833468 | AE42: 18.94833468 | AF42: 19.60028452 | AG42: 19.60028452 | AH42: 19.60028452 | AI42: 19.60028452 | AJ42: 19.60028452 | AK42: 19.60028452 | AL42: 19.60028452 | AM42: 24.10373188 | AN42: 24.10373188 | AO42: 24.10373188 | AP42: 24.10373188 | AQ42: 24.10373188 | AR42: 24.10373188 | AS42: 18.94833468 | AT42: 18.94833468 | AU42: 18.94833468 | AV42: 18.94833468 | AW42: 18.94833468 | AX42: 18.94833468 | AY42: 18.94833468 | AZ42: 18.94833468 | BA42: 18.94833468 | BB42: 18.94833468 | BC42: 18.94833468
A43: 37 | C43: --hauling | H43: 6.369716955 | I43: 6.369716955 | J43: 7.964179947 | K43: 15.92835989 | L43: 7.964179947 | M43: 15.92835989 | N43: 7.964179947 | O43: 7.964179947 | P43: 7.964179947 | Q43: 15.92835989 | R43: 7.964179947 | Z43: 6.369716955 | AA43: 6.369716955 | AB43: 6.369716955 | AC43: 6.369716955 | AD43: 6.369716955 | AE43: 6.369716955 | AF43: 6.369716955 | AG43: 6.369716955 | AH43: 6.369716955 | AI43: 6.369716955 | AJ43: 6.369716955 | AK43: 3.184858477 | AL43: 6.369716955 | AM43: 7.964179947 | AN43: 3.982089974 | AO43: 3.982089974 | AP43: 3.997405704 | AQ43: 7.964179947 | AR43: 3.982089974 | AS43: 6.369716955 | AT43: 6.369716955 | AU43: 6.369716955 | AV43: 6.369716955 | AW43: 6.369716955 | AX43: 6.369716955 | AY43: 6.369716955 | AZ43: 6.369716955 | BA43: 6.369716955 | BB43: 6.369716955 | BC43: 6.369716955
A44: 38 | C44: --miscellaneous
A45: 39 | C45: --planting | D45: 1.730444375 | E45: 1.730444375 | F45: 1.730444375 | G45: 1.261869171 | H45: 6.309345857 | I45: 6.309345857 | J45: 6.918820261 | K45: 6.918820261 | L45: 6.918820261 | M45: 6.098195466 | N45: 6.918820261 | O45: 6.098195466 | P45: 6.098195466 | Q45: 6.098195466 | R45: 6.918820261 | S45: 6.918820261 | T45: 5.364123256 | U45: 5.364123256 | V45: 5.364123256 | W45: 5.364123256 | X45: 6.918820261 | Y45: 6.098195466 | Z45: 6.918820261 | AA45: 6.918820261 | AB45: 6.918820261 | AC45: 6.098195466 | AD45: 6.098195466 | AE45: 6.918820261 | AF45: 6.918820261 | AG45: 7.843252578 | AH45: 6.918820261 | AI45: 6.918820261 | AJ45: 6.098195466 | AK45: 6.918820261 | AL45: 7.843252578 | AM45: 6.098195466 | AN45: 6.918820261 | AO45: 6.918820261 | AP45: 6.918820261 | AQ45: 6.098195466 | AR45: 6.918820261 | AS45: 6.309345857 | AT45: 8.652221877 | AU45: 6.309345857 | AV45: 8.652221877 | AW45: 6.309345857 | AX45: 8.652221877 | AY45: 6.309345857 | AZ45: 6.309345857 | BA45: 7.547893847 | BB45: 6.309345857 | BC45: 8.652221877
A46: 40 | C46: --spraying | D46: 3.561396096 | E46: 3.561396096 | F46: 3.561396096 | G46: 3.561396096 | H46: 5.342094144 | I46: 8.903490241 | J46: 5.342094144 | K46: 5.342094144 | L46: 5.342094144 | M46: 6.232443168 | N46: 7.122792193 | O46: 3.561396096 | P46: 3.561396096 | Q46: 7.122792193 | R46: 7.122792193 | S46: 5.342094144 | T46: 14.24558439 | U46: 12.46488634 | V46: 12.46488634 | W46: 14.24558439 | X46: 3.561396096 | Y46: 1.780698048 | Z46: 5.342094144 | AA46: 5.342094144 | AB46: 7.122792193 | AC46: 3.561396096 | AD46: 3.561396096 | AE46: 7.122792193 | AF46: 5.342094144 | AG46: 5.342094144 | AH46: 5.342094144 | AI46: 5.342094144 | AJ46: 5.342094144 | AK46: 3.561396096 | AL46: 5.342094144 | AM46: 6.232443168 | AN46: 4.45174512 | AO46: 5.342094144 | AP46: 8.903490241 | AQ46: 7.122792193 | AR46: 4.45174512 | AS46: 3.561396096 | AT46: 3.561396096 | AU46: 3.561396096 | AV46: 3.561396096 | AW46: 7.122792193 | AX46: 10.68418829 | AY46: 3.561396096 | AZ46: 3.561396096 | BA46: 3.561396096 | BB46: 7.122792193 | BC46: 10.68418829
A47: 41 | C47: --tillage | D47: 3.500519365 | E47: 3.302916404 | F47: 3.500519365 | G47: 3.302916404 | H47: 10.44511561 | I47: 10.44511561 | K47: 4.375649206 | M47: 4.375649206 | O47: 10.44511561 | P47: 10.44511561 | Q47: 4.375649206 | T47: 4.375649206 | U47: 4.375649206 | V47: 4.375649206 | W47: 4.375649206 | Y47: 10.44511561 | AC47: 10.44511561 | AD47: 10.44511561 | AJ47: 9.568590345 | AM47: 15.11392357 | AQ47: 15.11392357 | AS47: 15.63805675 | AU47: 15.63805675 | AW47: 13.12694762 | AY47: 16.523647 | AZ47: 4.375649206 | BA47: 6.547590867 | BB47: 13.12694762
A48: 42 | C48: --other | D48: 0 | E48: 0 | F48: 0 | G48: 0 | H48: 0 | I48: 0 | J48: 0 | K48: 0 | L48: 0 | M48: 0 | N48: 0 | O48: 0 | P48: 0 | Q48: 0 | R48: 0 | S48: 0 | T48: 0 | U48: 0 | V48: 0 | W48: 0 | X48: 0 | Y48: 0 | Z48: 0 | AA48: 0 | AB48: 0 | AC48: 0 | AD48: 0 | AE48: 0 | AF48: 0 | AG48: 0 | AH48: 0 | AI48: 0 | AJ48: 0 | AK48: 0 | AL48: 0 | AM48: 0 | AN48: 0 | AO48: 0 | AP48: 0 | AQ48: 0 | AR48: 0 | AS48: 0 | AT48: 0 | AU48: 0 | AV48: 0 | AW48: 0 | AX48: 0 | AY48: 0 | AZ48: 0 | BA48: 0 | BB48: 0 | BC48: 0
A49: 43 | C49: Irrigation | G49: 162.669274 | I49: 126.6088858 | K49: 126.6088858 | M49: 162.669274 | Q49: 162.669274 | U49: 126.6088858 | V49: 162.669274 | AM49: 162.669274 | AQ49: 162.669274
A50: 44 | C50: Cash rent | D50: 49 | E50: 44 | F50: 35 | G50: 112 | H50: 0 | I50: 0 | J50: 67 | K50: 183 | L50: 118 | M50: 142 | N50: 73.5 | O50: 44 | P50: 53 | Q50: 109 | R50: 52.5 | S50: 118 | T50: 53 | U50: 126 | V50: 95 | W50: 52.5 | X50: 63 | Y50: 44 | Z50: 67 | AA50: 118 | AB50: 73.5 | AC50: 44 | AD50: 53 | AE50: 52.5 | AF50: 67 | AG50: 118 | AH50: 49 | AI50: 44 | AJ50: 53 | AK50: 26.5 | AL50: 52.5 | AM50: 112 | AN50: 63 | AO50: 57 | AP50: 67 | AQ50: 112 | AR50: 63 | AS50: 67 | AT50: 67 | AU50: 118 | AV50: 118 | AW50: 98 | AX50: 73.5 | AY50: 44 | AZ50: 44 | BA50: 53 | BB50: 70 | BC50: 63
T108: Depreciation on irrigation equipment
T109: Interest on irrigation equipment
T110: Cash rent ( $ / acre )

Sheet Add a budget
B3: Budget from Columns E and F of the Budgets page
B4: Crop | C4: (Menu name) | D4: =Budgets!E5 -> Wheat - North Central KS_Rotation
C5: (Short name in budget) | D5: =Budgets!E15 -> Wheat - North Central KS_Rotation
B6: Yield | D6: ='Calculations '!D5 -> 50
B7: Price | D7: ='Calculations '!D6 -> 5.5 | H7: Budget slot | I7: CURRENT BUDGETS
B8: Other income | D8: ='Calculations '!D7 -> 0 | H8: 1 | I8: =INDIRECT("'Name of budgets'!" & J8 & "7") -> Alfalfa - Northwest KS_ | J8: d | T8: 1 | U8: CROP | V8: =C55 -> test budget 2
C9: <Total Revenue> | D9: ='Calculations '!D8 -> 275 | H9: 2 | I9: =INDIRECT("'Name of budgets'!" & J9 & "7") -> Alfalfa - South Central and Southeast KS_ | J9: e | T9: 2 | U9: YIELD | V9: =D6 -> 50
H10: 3 | I10: Alfalfa - South Central and Southeast KS_ | J10: f | T10: 3 | U10: PRICE | V10: =D7 -> 5.5
B11: Direct Expenses | H11: 4 | I11: Alfalfa - Western KS_Irrigated | J11: g | T11: 4 | U11: -----
C12: Seeds | D12: ='Calculations '!D11 -> 24.75 | H12: 5 | I12: Canola - South Central KS_ | J12: h | T12: 5 | U12: -----
C13: Fertilizer (less lime) | D13: ='Calculations '!D12 -> 45.0725 | H13: 6 | I13: Canola - South Central KS_irrigated | J13: i | T13: 6 | U13: -----
C14: --Lime | D14: ='Calculations '!D13 -> 0 | H14: 7 | I14: Corn - North Central KS_ | J14: j | T14: 7 | U14: -----
C15: Herbicides | D15: ='Calculations '!D14 -> 4.95 | H15: 8 | I15: Corn - North Central KS_Irrigated | J15: k | T15: 8 | U15: Seeds | V15: =D12 -> 24.75
C16: Fungicides | D16: ='Calculations '!D15 -> 21.1875 | H16: 9 | I16: Corn - Northeast KS_ | J16: l | T16: 9 | U16: Fertilizer (less lime) | V16: 45.0725
C17: Insecticides | D17: ='Calculations '!D16 -> 0 | H17: 10 | I17: Corn - Northwest KS_Irrigated | J17: m | T17: 10 | U17: --Lime | V17: 0
C18: Crop consulting | D18: ='Calculations '!D17 -> 0 | H18: 11 | I18: Corn - Northwest KS_W-C-F rotation | J18: n | T18: 11 | U18: Herbicides | V18: 4.95
C19: Crop insurance | D19: ='Calculations '!D18 -> 9.912 | H19: 12 | I19: Corn - South Central KS_ | J19: o | T19: 12 | U19: Fungicides | V19: 21.1875
C20: Miscellaneous | D20: ='Calculations '!D19 -> 6.5 | H20: 13 | I20: Corn - Southeast KS_ | J20: p | T20: 13 | U20: Insecticides | V20: 0
C21: Surfactant | D21: ='Calculations '!D20 -> 0 | H21: 14 | I21: Corn - Southwest KS_Irrigated | J21: q | T21: 14 | U21: Crop consulting | V21: 0
C22: Other inputs | D22: ='Calculations '!D21 -> 0 | H22: 15 | I22: Corn - Southwest KS_W-C-F rotation | J22: r | T22: 15 | U22: Crop insurance | V22: 9.912
C23: MACHINERY | D23: ='Calculations '!D22 -> 0 | H23: 16 | I23: Corn Silage - Northeast KS_ | J23: s | T23: 16 | U23: Miscellaneous | V23: 6.5
C24: --fertilizer application | D24: ='Calculations '!D23 -> 2.676079018 | H24: 17 | I24: Cotton - Southeast KS_ | J24: t | T24: 17 | U24: Surfactant | V24: 0
C25: --harvesting | D25: ='Calculations '!D24 -> 9.779783282 | H25: 18 | I25: Cotton - Southeast KS_Irrigated | J25: u | T25: 18 | U25: Other inputs | V25: 0
C26: --hauling | D26: ='Calculations '!D25 -> 5.559038134 | H26: 19 | I26: Cotton - Southwest KS_Irrigated | J26: v | T26: 19 | U26: -----
C27: --miscellaneous | D27: ='Calculations '!D26 -> 0 | H27: 20 | I27: Cotton - Southwest KS_W-CT-F rotation | J27: w | T27: 20 | U27: --fertilizer application | V27: 2.676079018
C28: --planting | D28: ='Calculations '!D27 -> 7.647875223 | H28: 21 | I28: Forage Sorghum Hay - Western KS_W-H-F | J28: x | T28: 21 | U28: --harvesting | V28: 9.779783282
C29: --spraying | D29: ='Calculations '!D28 -> 3.353747692 | H29: 22 | I29: Forage Sorghum Silage - South Central KS_ | J29: y | T29: 22 | U29: --hauling | V29: 5.559038134
C30: --tillage | D30: ='Calculations '!D29 -> 0 | H30: 23 | I30: Grain Sorghum - North Central KS_ | J30: z | T30: 23 | U30: --miscellaneous | V30: 0
C31: --other | D31: ='Calculations '!D30 -> 0 | H31: 24 | I31: Grain Sorghum - Northeast KS_ | J31: aa | T31: 24 | U31: --planting | V31: 7.647875223
C32: --custom operations | D32: ='Calculations '!D31 -> 0 | H32: 25 | I32: Grain Sorghum - Northwest KS_W-S-F rotation | J32: ab | T32: 25 | U32: --spraying | V32: 3.353747692
C33: Irrigation | D33: ='Calculations '!D32 -> 0 | H33: 26 | I33: Grain Sorghum - South Central KS_ | J33: ac | T33: 26 | U33: --tillage | V33: 0
C34: Interest on direct expenses | D34: ='Calculations '!D33 -> 4.2416557 | H34: 27 | I34: Grain Sorghum - Southeast KS_ | J34: ad | T34: 27 | U34: --other | V34: 0
C35: <Total Direct Expenses> | D35: =SUM(D12:D34) -> 145.630179 | H35: 28 | I35: Grain Sorghum - Southwest KS_W-S-F rotation | J35: ae | T35: 28 | U35: --custom operations | V35: 0
H36: 29 | I36: Soybeans - North Central KS_ | J36: af | T36: 29 | U36: Irrigation | V36: 0
B37: Fixed expenses | H37: 30 | I37: Soybeans - Northeast KS_ | J37: ag | T37: 30 | U37: ----- | V37: 4.2416557
C38: MACHINERY | H38: 31 | I38: Soybeans - Northwest KS_W-SB_F rotation | J38: ah | T38: 31 | U38: ----- | V38: 145.630179
C39: --fertilizer application | D39: ='Calculations '!D38 -> 2.46576207 | H39: 32 | I39: Soybeans - South Central KS_ | J39: ai | T39: 32 | U39: ----- | V39: 0
C40: --harvesting | D40: ='Calculations '!D39 -> 18.94833468 | H40: 33 | I40: Soybeans - Southeast KS_ | J40: aj | T40: 33 | U40: ----- | V40: 0
C41: --hauling | D41: ='Calculations '!D40 -> 6.369716955 | H41: 34 | I41: Soybeans - Southeast KS_Double crop | J41: ak | T41: 34 | U41: ----- | V41: 0
C42: --miscellaneous | D42: ='Calculations '!D41 -> 0 | H42: 35 | I42: Soybeans - Southwest KS_W-SB-F rotation | J42: al | T42: 35 | U42: --fertilizer application | V42: 2.46576207
C43: --planting | D43: ='Calculations '!D42 -> 8.652221877 | H43: 36 | I43: Sunflower (Confectionary) - Western KS_Irrigated | J43: am | T43: 36 | U43: --harvesting | V43: 18.94833468
C44: --spraying | D44: ='Calculations '!D43 -> 3.561396096 | H44: 37 | I44: Sunflower (Confectionary) - Western KS_W-SF-F rotation | J44: an | T44: 37 | U44: --hauling | V44: 6.369716955
C45: --tillage | D45: ='Calculations '!D44 -> 0 | H45: 38 | I45: Sunflower (oil-type) - Central and Eastern_Double crop | J45: ao | T45: 38 | U45: --miscellaneous | V45: 0
C46: --other | D46: ='Calculations '!D45 -> 0 | H46: 39 | I46: Sunflower (oil-type) - Eastern KS_ | J46: ap | T46: 39 | U46: --planting | V46: 8.652221877
C47: Irrigation | D47: ='Calculations '!D46 -> 0 | H47: 40 | I47: Sunflower (oil-type) - Western KS_Irrigated | J47: aq | T47: 40 | U47: --spraying | V47: 3.561396096
C48: Cash rent ( $ / acre ) | D48: ='Calculations '!D47 -> 50 | H48: 41 | I48: Sunflower (oil-type) - Western KS_W-SF-F rotation | J48: ar | T48: 41 | U48: --tillage | V48: 0
C49: <Total Fixed Expenses> | D49: =SUM(D39:D48) -> 89.99743168 | H49: 42 | I49: Wheat - North Central KS_Continuous | J49: as | T49: 42 | U49: --other | V49: 0
H50: 43 | I50: Wheat - North Central KS_Rotation | J50: at | T50: 43 | U50: Irrigation | V50: 0
B51: Return above all specified expenses | D51: =D9-D35-D49 -> 39.37238927 | H51: 44 | I51: Wheat - Northeast KS_Continuous | J51: au | T51: 44 | U51: Cash rent ( $ / acre ) | V51: 50
H52: 45 | I52: Wheat - Northeast KS_Rotation | J52: av
H53: 46 | I53: Wheat - Northwest KS_W-F rotation | J53: aw
A54: Menu name | C54: My test budget for kansas 1 | H54: 47 | I54: Wheat - Northwest KS_W-S_C-F rotation | J54: ax
A55: Short name | C55: test budget 2 | H55: 48 | I55: Wheat - South Central KS_Continuous | J55: ay
A56: Slot number | C56: 65 | H56: 49 | I56: Wheat - South Central KS_Rotation | J56: az
H57: 50 | I57: Wheat - Southeast KS_ | J57: ba
H58: 51 | I58: Wheat - Southwest KS_W-F rotation | J58: bb
H59: 52 | I59: Wheat - Southwest KS_W-S_C-F rotation | J59: bc
H60: 53 | I60: 0 | J60: bd
H61: 54 | I61: 0 | J61: be
H62: 55 | I62: 0 | J62: bf
H63: 56 | I63: 0 | J63: bg | P63: c
H64: 57 | I64: 0 | J64: bh
H65: 58 | I65: 0 | J65: bi
H66: 59 | I66: 0 | J66: bj | N66: d
H67: 60 | I67: 0 | J67: bk
A68: Notes: If you have made changes to one of the default budgets on the Budget page, | H68: 61 | I68: 0 | J68: bl
A69: this is the how you can save it. Only the changes made on the first budget (column E and F from the | H69: 62 | I69: 0 | J69: bm
A70: Budget page) can be saved, Make the changes you want using the overides from column F of the | H70: 63 | I70: 0 | J70: bn
A71: Budget page. Once the budget changes look ok, come to this page. The budget shown above | H71: 64 | I71: 0 | J71: bo
A72: reflects those changes. You need to specify a menu name and a short name. Most importantly | H72: 65 | I72: 0 | J72: bp
A73: though, you need to specify a slot number for where this budget will be stored. To the right is the | H73: 66 | I73: =INDIRECT("'Name of budgets'!" & J73 & "7") -> 0 | J73: bq
A74: list of all the budgets currently stored. You can replace a default budget (not recommended) or you | H74: 67 | I74: =INDIRECT("'Name of budgets'!" & J74 & "7") -> 0 | J74: br
A75: can add a budget to one of the empty slots. There should be 10 or so empty spots to add more | H75: 68 | I75: =INDIRECT("'Name of budgets'!" & J75 & "7") -> 0 | J75: bs
A76: budgets. | H76: 69 | I76: =INDIRECT("'Name of budgets'!" & J76 & "7") -> 0 | J76: bt
H77: 70 | I77: =INDIRECT("'Name of budgets'!" & J77 & "7") -> 0 | J77: bu

Sheet Correlations (hidden)
A2: if Crops = 5 | N2: Yield -- Corn - Northeast KS | O2: Price -- Corn - Northeast KS | P2: Yield -- Grain Sorghum - North Central KS | Q2: Price -- Grain Sorghum - North Central KS | R2: Yield -- Soybeans - North Central KS | S2: Price -- Soybeans - North Central KS | T2: Yield -- Corn - North Central KS | U2: Price -- Corn - North Central KS | X2: Yield -- Corn - Northeast KS | Y2: Price -- Corn - Northeast KS | Z2: Yield -- Soybeans - Northeast KS | AA2: Price -- Soybeans - Northeast KS | AB2: Yield -- Wheat - Northeast KS | AC2: Price -- Wheat - Northeast KS | AF2: Yield -- Wheat - Southeast KS_ | AG2: Price -- Wheat - Southeast KS_ | AH2: Yield -- Corn - Northwest KS_Irrigated | AI2: Price -- Corn - Northwest KS_Irrigated | AL2: Yield -- Wheat - North Central KS_Rotation | AM2: Price -- Wheat - North Central KS_Rotation
B3: ='Flex leases'!B28 -> 1 | C3: ='Flex leases'!C28 -> 0.2 | D3: ='Flex leases'!D28 -> 0 | E3: ='Flex leases'!E28 -> 0 | F3: ='Flex leases'!F28 -> 0 | G3: ='Flex leases'!G28 -> 0 | H3: ='Flex leases'!H28 -> 0 | I3: ='Flex leases'!I28 -> 0 | J3: ='Flex leases'!J28 -> 0 | K3: ='Flex leases'!K28 -> 0 | N3: =B3 -> 1 | O3: =C3 -> 0.2 | P3: 0 | Q3: 0 | R3: 0 | S3: 0 | T3: 0 | U3: 0 | V3: Yield -- Corn - Northeast KS | X3: =N3 -> 1 | Y3: 0.2 | Z3: 0 | AA3: 0 | AB3: 0 | AC3: 0 | AD3: Yield -- Corn - Northeast KS | AF3: =X3 -> 1 | AG3: 0.2 | AH3: 0 | AI3: 0 | AJ3: Yield -- Wheat - Southeast KS_ | AL3: =AF3 -> 1 | AM3: =AG3 -> 0.2 | AN3: Yield -- Wheat - North Central KS_Rotation
B4: ='Flex leases'!B29 -> 0 | C4: ='Flex leases'!C29 -> 1 | D4: ='Flex leases'!D29 -> 0 | E4: ='Flex leases'!E29 -> 0 | F4: ='Flex leases'!F29 -> 0 | G4: ='Flex leases'!G29 -> 0 | H4: ='Flex leases'!H29 -> 0 | I4: ='Flex leases'!I29 -> 0 | J4: ='Flex leases'!J29 -> 0 | K4: ='Flex leases'!K29 -> 0 | N4: =B4 -> 0 | O4: =C4 -> 1 | P4: =D4 -> 0 | Q4: =E4 -> 0 | R4: =F4 -> 0 | S4: =G4 -> 0 | T4: =H4 -> 0 | U4: =I4 -> 0 | V4: Price -- Corn - Northeast KS | X4: 0 | Y4: 1 | Z4: 0 | AA4: 0 | AB4: 0 | AC4: 0 | AD4: Price -- Corn - Northeast KS | AF4: 0 | AG4: 1 | AH4: 0 | AI4: 0 | AJ4: Price -- Wheat - Southeast KS_ | AL4: =AF4 -> 0 | AM4: =AG4 -> 1 | AN4: Price -- Wheat - North Central KS_Rotation
B5: ='Flex leases'!B30 -> 0 | C5: ='Flex leases'!C30 -> 0 | D5: ='Flex leases'!D30 -> 1 | E5: ='Flex leases'!E30 -> 0 | F5: ='Flex leases'!F30 -> 0 | G5: ='Flex leases'!G30 -> 0 | H5: ='Flex leases'!H30 -> 0 | I5: ='Flex leases'!I30 -> 0 | J5: ='Flex leases'!J30 -> 0 | K5: ='Flex leases'!K30 -> 0 | N5: 0 | O5: 0 | P5: 1 | Q5: 0 | R5: 0 | S5: 0 | T5: 0 | U5: 0 | V5: Yield -- Grain Sorghum - North Central KS | X5: 0 | Y5: 0 | Z5: 1 | AA5: 0 | AB5: 0 | AC5: 0 | AD5: Yield -- Soybeans - Northeast KS | AF5: 0 | AG5: 0 | AH5: 1 | AI5: 0 | AJ5: Yield -- Corn - Northwest KS_Irrigated
B6: ='Flex leases'!B31 -> 0 | C6: ='Flex leases'!C31 -> 0 | D6: ='Flex leases'!D31 -> 0 | E6: ='Flex leases'!E31 -> 1 | F6: ='Flex leases'!F31 -> 0 | G6: ='Flex leases'!G31 -> 0 | H6: ='Flex leases'!H31 -> 0 | I6: ='Flex leases'!I31 -> 0 | J6: ='Flex leases'!J31 -> 0 | K6: ='Flex leases'!K31 -> 0 | N6: 0 | O6: 0 | P6: 0 | Q6: 1 | R6: 0 | S6: 0 | T6: 0 | U6: 0 | V6: Price -- Grain Sorghum - North Central KS | X6: 0 | Y6: 0 | Z6: 0 | AA6: 1 | AB6: 0 | AC6: 0 | AD6: Price -- Soybeans - Northeast KS | AF6: 0 | AG6: 0 | AH6: 0 | AI6: 1 | AJ6: Price -- Corn - Northwest KS_Irrigated
B7: ='Flex leases'!B32 -> 0 | C7: ='Flex leases'!C32 -> 0 | D7: ='Flex leases'!D32 -> 0 | E7: ='Flex leases'!E32 -> 0 | F7: ='Flex leases'!F32 -> 1 | G7: ='Flex leases'!G32 -> 0 | H7: ='Flex leases'!H32 -> 0 | I7: ='Flex leases'!I32 -> 0 | J7: ='Flex leases'!J32 -> 0 | K7: ='Flex leases'!K32 -> 0 | N7: 0 | O7: 0 | P7: 0 | Q7: 0 | R7: 1 | S7: 0 | T7: 0 | U7: 0 | V7: Yield -- Soybeans - North Central KS | X7: 0 | Y7: 0 | Z7: 0 | AA7: 0 | AB7: 1 | AC7: 0 | AD7: Yield -- Wheat - Northeast KS
B8: ='Flex leases'!B33 -> 0 | C8: ='Flex leases'!C33 -> 0 | D8: ='Flex leases'!D33 -> 0 | E8: ='Flex leases'!E33 -> 0 | F8: ='Flex leases'!F33 -> 0 | G8: ='Flex leases'!G33 -> 1 | H8: ='Flex leases'!H33 -> 0 | I8: ='Flex leases'!I33 -> 0 | J8: ='Flex leases'!J33 -> 0 | K8: ='Flex leases'!K33 -> 0 | N8: 0 | O8: 0 | P8: 0 | Q8: 0 | R8: 0 | S8: 1 | T8: 0 | U8: 0 | V8: Price -- Soybeans - North Central KS | X8: 0 | Y8: 0 | Z8: 0 | AA8: 0 | AB8: 0 | AC8: 1 | AD8: Price -- Wheat - Northeast KS
B9: ='Flex leases'!B34 -> 0 | C9: ='Flex leases'!C34 -> 0 | D9: ='Flex leases'!D34 -> 0 | E9: ='Flex leases'!E34 -> 0 | F9: ='Flex leases'!F34 -> 0 | G9: ='Flex leases'!G34 -> 0 | H9: ='Flex leases'!H34 -> 1 | I9: ='Flex leases'!I34 -> 0 | J9: ='Flex leases'!J34 -> 0 | K9: ='Flex leases'!K34 -> 0 | N9: 0 | O9: 0 | P9: 0 | Q9: 0 | R9: 0 | S9: 0 | T9: 1 | U9: 0 | V9: Yield -- Corn - North Central KS | AL9: Yield -- Wheat - North Central KS_Rotation | AM9: Price -- Wheat - North Central KS_Rotation
B10: ='Flex leases'!B35 -> 0 | C10: ='Flex leases'!C35 -> 0 | D10: ='Flex leases'!D35 -> 0 | E10: ='Flex leases'!E35 -> 0 | F10: ='Flex leases'!F35 -> 0 | G10: ='Flex leases'!G35 -> 0 | H10: ='Flex leases'!H35 -> 0 | I10: ='Flex leases'!I35 -> 1 | J10: ='Flex leases'!J35 -> 0 | K10: ='Flex leases'!K35 -> 0 | N10: 0 | O10: 0 | P10: 0 | Q10: 0 | R10: 0 | S10: 0 | T10: 0 | U10: 1 | V10: Price -- Corn - North Central KS | AL10: 1 | AM10: 0.2 | AN10: Yield -- Wheat - North Central KS_Rotation
B11: ='Flex leases'!B36 -> 0 | C11: ='Flex leases'!C36 -> 0 | D11: ='Flex leases'!D36 -> 0 | E11: ='Flex leases'!E36 -> 0 | F11: ='Flex leases'!F36 -> 0 | G11: ='Flex leases'!G36 -> 0 | H11: ='Flex leases'!H36 -> 0 | I11: ='Flex leases'!I36 -> 0 | J11: ='Flex leases'!J36 -> 1 | K11: ='Flex leases'!K36 -> 0 | AF11: Yield -- Wheat - Southeast KS_ | AG11: Price -- Wheat - Southeast KS_ | AH11: Yield -- Corn - Northwest KS_Irrigated | AI11: Price -- Corn - Northwest KS_Irrigated | AL11: 0.2 | AM11: 1 | AN11: Price -- Wheat - North Central KS_Rotation
B12: ='Flex leases'!B37 -> 0 | C12: ='Flex leases'!C37 -> 0 | D12: ='Flex leases'!D37 -> 0 | E12: ='Flex leases'!E37 -> 0 | F12: ='Flex leases'!F37 -> 0 | G12: ='Flex leases'!G37 -> 0 | H12: ='Flex leases'!H37 -> 0 | I12: ='Flex leases'!I37 -> 0 | J12: ='Flex leases'!J37 -> 0 | K12: ='Flex leases'!K37 -> 1 | AF12: 1 | AG12: 0.2 | AH12: 0.7 | AI12: 0 | AJ12: Yield -- Wheat - Southeast KS_
X13: Yield -- Corn - Northeast KS | Y13: Price -- Corn - Northeast KS | Z13: Yield -- Soybeans - Northeast KS | AA13: Price -- Soybeans - Northeast KS | AB13: Yield -- Wheat - Northeast KS | AC13: Price -- Wheat - Northeast KS | AF13: 0.2 | AG13: 1 | AH13: 0 | AI13: 0.6 | AJ13: Price -- Wheat - Southeast KS_
X14: 1 | Y14: 0.2 | Z14: 0.7 | AA14: 0 | AB14: 0.3 | AC14: 0 | AD14: Yield -- Corn - Northeast KS | AF14: 0.7 | AG14: 0 | AH14: 1 | AI14: 0.1 | AJ14: Yield -- Corn - Northwest KS_Irrigated
N15: Yield -- Corn - Northeast KS | O15: Price -- Corn - Northeast KS | P15: Yield -- Grain Sorghum - North Central KS | Q15: Price -- Grain Sorghum - North Central KS | R15: Yield -- Soybeans - North Central KS | S15: Price -- Soybeans - North Central KS | T15: Yield -- Corn - North Central KS | U15: Price -- Corn - North Central KS | X15: 0.2 | Y15: 1 | Z15: 0 | AA15: 0.6 | AB15: 0 | AC15: 0.2 | AD15: Price -- Corn - Northeast KS | AF15: 0 | AG15: 0.6 | AH15: 0.1 | AI15: 1 | AJ15: Price -- Corn - Northwest KS_Irrigated
N16: 1 | O16: 0.2 | P16: 0.7 | Q16: 0 | R16: 0.3 | S16: 0 | T16: 0.2 | U16: 0.2 | V16: Yield -- Corn - Northeast KS | X16: 0.7 | Y16: 0 | Z16: 1 | AA16: 0.1 | AB16: 0.3 | AC16: 0 | AD16: Yield -- Soybeans - Northeast KS
N17: 0.2 | O17: 1 | P17: 0 | Q17: 0.6 | R17: 0 | S17: 0.2 | T17: 0.2 | U17: 0.2 | V17: Price -- Corn - Northeast KS | X17: 0 | Y17: 0.6 | Z17: 0.1 | AA17: 1 | AB17: 0 | AC17: 0.5 | AD17: Price -- Soybeans - Northeast KS
N18: 0.7 | O18: 0 | P18: 1 | Q18: 0.1 | R18: 0.3 | S18: 0 | T18: 0.2 | U18: 0.2 | V18: Yield -- Grain Sorghum - North Central KS | X18: 0.3 | Y18: 0 | Z18: 0.3 | AA18: 0 | AB18: 1 | AC18: 0.2 | AD18: Yield -- Wheat - Northeast KS
N19: 0 | O19: 0.6 | P19: 0.1 | Q19: 1 | R19: 0 | S19: 0.5 | T19: 0.2 | U19: 0.2 | V19: Price -- Grain Sorghum - North Central KS | X19: 0 | Y19: 0.2 | Z19: 0 | AA19: 0.5 | AB19: 0.2 | AC19: 1 | AD19: Price -- Wheat - Northeast KS
N20: 0.3 | O20: 0 | P20: 0.3 | Q20: 0 | R20: 1 | S20: 0.2 | T20: 0.2 | U20: 0.2 | V20: Yield -- Soybeans - North Central KS
N21: 0 | O21: 0.2 | P21: 0 | Q21: 0.5 | R21: 0.2 | S21: 1 | T21: 0.2 | U21: 0.2 | V21: Price -- Soybeans - North Central KS
N22: 0.2 | O22: 0.2 | P22: 0.2 | Q22: 0.2 | R22: 0.2 | S22: 0.2 | T22: 1 | U22: 0.2 | V22: Yield -- Corn - North Central KS
N23: 0.2 | O23: 0.2 | P23: 0.2 | Q23: 0.2 | R23: 0.2 | S23: 0.2 | T23: 0.2 | U23: 1 | V23: Price -- Corn - North Central KS
